Workbook

Sheet Federal Opportunities
A1: Federal Funding Opportunities for Local Decarbonization | D1: Instructions | H1: Filter Criteria | M1: User Input
D2: 1. Select "User Input" options using the drop down menu from cells M2 through M7 to filter available funding sources automatically. Selecting "Any or All" will show all funding options. 2. Use the Sort/Filter arrow in each column header if desired to further filter by column. 3. Click the "Reset User Inputs" button to reset all input fields to "Any or All" and reset all column filters. 4. Click on the "+" or "-" in the bottom right to zoom in and out as needed. | H2: Purpose | I2: Decarbonization Sector | M2: Any or All
I3: Project Type | M3: Any or All
I4: Project Phase | M4: Any or All
I5: Funding Type | M5: Any or All
H6: Applicant Eligibility | I6: Applicant Type | M6: Any or All
I7: Eligible for Federal Disaster Declaration Funding? | M7: Any or All
A9: Program Details | D9: Agency | F9: Due Diligence | H9: Funding | L9: Deadline | M9: Guidance | R9: Purposes | V9: Applicant Eligibility
A10: New or Existing | B10: Program Name | C10: Purpose | D10: Federal Agency | E10: Sub-Department | F10: Applicant and/or Project Eligibility Requirements | G10: Matching Funds | H10: Funding Available | I10: Max Award Amount | J10: Expected Allocations | K10: Average Award (Estimated) | L10: Announced or Anticipated | M10: Decarbonization Considerations | O10: Equity Considerations | P10: Helpful Tips | Q10: Other Notes | R10: Sector | S10: Type of Project | T10: Phases of Project | U10: Resource Types | V10: Applicant Types
A11: Existing - Decrease | B11: Accelerated Innovation Deployment (AID) Demonstration Program | C11: The AID Demonstration provides funding for activities eligible for assistance in any phase of a highway transportation project between project planning and project delivery including: planning, financing, operation, structures, materials, pavements, environment, and construction. | D11: Department of Transportation (DOT) | E11: Federal Highway Administration (FHA) | F11: This program funds State DOTs, Federal Land Management Agencies, and federally-recognized tribal governments. Metropolitan planning organizations and local governments must apply through the State DOT as a sub-recipient. | G11: 20% match required | H11: 10000000 | I11: 1000000 | J11: 100 | K11: =H11/J11 -> 100000 | L11: July 1, 2021 (Notice of Intent), September 28, 2021 (Application) | M11: The program seeks projects that directly address climate change in addition to the top priority of safety. Applicants are required to provide a brief description of how climate change was considered in the planning stage, and how the project reduces greenhouse gas emissions and supports state or local Climate Action Plans. Consider exploring the use of green cement, focusing on creating dedicated lanes for buses and vanpools, and prioritizing HOV lanes. This could also be used to expand access for hybrid, plug-in, and fully electric vehicles, such as building out HOV lanes to also enable hybrid and electric vehicles or investing in electric vehicle supply equipment to charge electric vehicles at dedicated highway rest stops. | O11: Applicants need to submit a brief description of how environmental justice screening tools were employed. The program also seeks rural projects that address deteriorating conditions and disproportionately high fatality rates on rural transportation infrastructure. | P11: Competitive projects must be a pilot deployment for the applicant of a proven innovation previously deployed by others. | Q11: For information on prior awardees, see this map and press release here: https://www.fhwa.dot.gov/innovation/grants/projects/ https://cms8.fhwa.dot.gov/newsroom/fhwa-provides-56-million-accelerate-innovative-highway-projects-seven-states | R11: Transportation | S11: Public Transit, Smart Growth, Electric Vehicles/Charging Equipment | T11: Implementation/Construction, Planning, Any or All, Design/Engineering | U11: Grant - Competitive/Discretionary | V11: State, Municipality, Public Agency/Local Authority, Tribal
A12: New | B12: Innovative Coordinated Access and Mobility (ICAM) Partnership Grants | C12: To improve access to public transportation by building partnerships among health, transportation, and other service providers. This program provides competitive funding to support innovative projects for the transportation disadvantaged that will improve the coordination of transportation services and non-emergency medical transportation services. | D12: Department of Transportation (DOT) | E12: Federal Transit Administration (FTA) | F12: Eligible applicants must be eligible recipients and subrecipients of the Enhanced Mobility for Seniors and Individuals with Disabilities Program: (1) designated recipients, (2) states and local governmental authorities; (3) private nonprofit organizations, and (4) operators of public transportation. | G12: 20% match required | H12: 3500000 | I12: N/A | J12: 10 | K12: 350000 | L12: 2021-12-06 | M12: Increasing public transportation ridership will reduce the number of personal automobiles on the road and reduce greenhouse gas emissions. Consider coordinating programs with community resilience hubs and other support networks in preparation of extreme weather events. | O12: Funds awarded will finance innovative capital projects for the transportation-disadvantaged, with the goal to improve the coordination of transportation services and non-emergency medical transportation services for underserved groups. | P12: N/A | Q12: N/A | R12: Transportation | S12: Public Transit, Community Resiliency | T12: Implementation/Construction | U12: Grant - Competitive/Discretionary | V12: State, Municipality, Non-Profit, Public Agency/Local Authority, Tribal, Any or All
A13: Existing - Constant | B13: Advanced Transportation and Congestion Management Technologies Deployment Program (ATCMTD) | C13: To make competitive grants for the development of model deployment sites for large scale installation and operation of advanced transportation technologies to improve safety, efficiency, system performance, and infrastructure return on investments. | D13: Department of Transportation (DOT) | E13: Federal Highway Administration (FHA) | F13: Eligible applicants are State or local governments, transit agencies, metropolitan planning organizations (MPO) representing a population of over 200,000, or other political subdivisions of a State or local government (such as publicly owned toll or port authorities), or a multijurisdictional group or consortia of research institutions or academic institutions. | G13: 50% match required | H13: 60000000 | I13: 12000000 | J13: 10 | K13: 6000000 | L13: 2021-08-23 | M13: Ensuring a more efficient flow of public transit would cut greenhouse gas emissions and encourage transit ridership. Although proposals are not limited to DOT priorities, the DOT is particularly interested in deployment programs and projects that concern (1) climate change and environmental justice impacts; (2) integration of intelligent transportation systems with the Smart Grid and other energy distribution and charging systems; and (3) advanced public transportation systems. | O13: Although proposals are not limited to DOT priorities, the DOT is particularly interested in deployment programs and projects that concern (1) racial equity and barriers to opportunity; (2) rural transportation access; and (3) improved access to transportation alternatives, including for underserved populations. | P13: Partnership with the private sector or public agencies, including multimodal and multijurisdictional entities, research institutions, organizations representing transportation and technology leaders, or other transportation stakeholders is encouraged. Any application submitted by a sole research or academic institution and that is not part of a consortium will not be considered for selection. | Q13: N/A | R13: Transportation | S13: Public Transit, Smart Growth | T13: Planning, Design/Engineering, Implementation/Construction, Any or All | U13: Grant - Competitive/Discretionary | V13: State, Municipality, Public Agency/Local Authority, Tribal
A14: Existing - Increase | B14: Air Quality Monitoring Grants (American Rescue Plan Act) | C14: To provide grants and activities for air pollution control agencies and for research on air pollution prevention and control. | D14: Environmental Protection Agency (EPA) | E14: Ambient Monitoring Technology Information Center | F14: Eligible entities include state, local, and tribal air pollution control agencies, and community groups. Other potential grantees under statute include other public or nonprofit private agencies, institutions, and organizations. | G14: Not required | H14: 50000000 | I14: N/A | J14: N/A | K14: N/A | L14: 2022-03-25 | M14: Decarbonization strategies may include air quality monitoring and pollution prevention at sources which are a source of greenhouse gases and criteria air pollutants, including fossil-fuel electric generating sources and industrial facilities. | O14: Goals of the grant competition for community air monitoring include those that: 1) expand use of community monitoring advisory groups and other approaches that give the community a voice in the monitoring of their air quality; and 2) build a foundation of trusting relationships and enhanced understanding from which sustainable solutions to community pollution problems can be found. The PM2.5 continuous monitoring grants are designed to support monitoring in and near communities with environmental justice concerns who face disproportionate exposure to these pollutants and health risks, which are also associated with increased vulnerability to COVID-19. | P14: For further information on Clean Air Act Sec. 103 and 105 grants, please see the following: https://www.epa.gov/clean-air-act-overview/clean-air-act-title-i-air-pollution-prevention-and-control-parts-through-d https://www.epa.gov/sites/production/files/2021-04/documents/tribal_grants_presentation_0.pdf | Q14: One-time funding increase from American Rescue Plan Act. Further information released July 7, 2021. The major components of the $50M funding to enhance air monitoring include: a grants competition that will seek proposals from community groups and state, Tribal and local government air agencies; direct awards to air agencies for continuous monitoring of small particles (known as PM2.5 or soot) and other Clean Air Act pollutants; enhanced capacity for short-term community monitoring; and support to administer the funding. It is unclear whether this program will continue past American Rescue Plan Act funding. | R14: Electricity, Transportation, Buildings, Industry | S14: Retaining & Building Capacity | T14: Planning, Design/Engineering, Implementation/Construction, Any or All | U14: Grant - Competitive/Discretionary, Technical Assistance | V14: Public Agency/Local Authority, Non-Profit
A15: Existing - IIJA Increase | B15: Airport Improvement Program (AIP) Entitlement Grants | C15: To support infrastructure projects, including runways and airfields, airport lighting, and airport markings. These funds do not support projects related to airport terminals, equipment, vehicles, or operations. | D15: Department of Transportation (DOT) | E15: Federal Aviation Administration (FAA) | F15: Funding can be used for any Passenger Facility Charge (PFC) eligible projects except debt service payments. | G15: 5%-30% match required, depending on airport size and type of project | H15: 1126000000 | I15: N/A | J15: 857 | K15: 1300000 | L15: February 15, 2022 (Notice of Intent), April 11, 2022 (Final Application) | M15: Airports are important transportation hubs and contributors to global emissions, whether directly or indirectly (via the airplanes they service). Airport efficiency upgrades can reduce emissions substantially. AIP-eligible projects include those improvements related to enhancing airport safety, lighting, security, and environmental plans. Planning and environmental studies are also eligible, which may include glare studies for on-site solar energy systems or geothermal system design and implementation. | O15: See the "Equity Design Considerations for Federal Funding" for general considerations and additional sector-based resources: https://cityrenewables.org/resources/equity-design-considerations-for-federal-funding/ | P15: This is for larger projects, as eligible projects must involve more than $25,000 in AIP funds. Based on previous awards, grant amounts vary widely from $25,000 to over $30 million. If you have an eligible project, contact the program to discuss how to move forward. | Q15: Lighting was a common project funding in 2021. The Louisville Muhammad Ali International Airport received over $10 million for energy efficiency infrastructure support as part of a major geothermal energy project retrofit. For a complete list of recently funded projects, visit: https://www.faa.gov/airports/aip/2022_aip_grants/ | R15: Transportation | S15: Public Transit, Clean Fuels | T15: Planning, Design/Engineering, Implementation/Construction, Any or All | U15: Grant - Formula/Block | V15: Public Agency/Local Authority
A16: New - IIJA | B16: Airport Terminal Program (ATP) | C16: To provide competitive funds for airport terminal development projects that address aging infrastructure in America's airports, including energy efficiency upgrades and on-site rail access. | D16: Department of Transportation (DOT) | E16: Federal Aviation Administration (FAA) | F16: Eligible airports include those operated by authorities, cities, territories and tribes within the national air transportation system. The first $1 billion in grants can fund projects that will replace aging facilities, improve energy efficiency and increase or improve access to passengers with disabilities and historically disadvantaged populations. Projects that relocate, reconstruct, repair or improve an airport-owned air traffic control tower are also eligible. | G16: 5%-25% match required, depending on airport size | H16: 5000000000 | I16: TBA | J16: TBA | K16: TBA | L16: 2022-03-28 | M16: The program is specifically intended to support on-airport rail access, projects that increase capacity and passenger access, projects that replace aging infrastructure, improving energy efficiency of systems and plant facilities, and achieving LEED accreditation standards. | O16: See the "Equity Design Considerations for Federal Funding" for general considerations and additional sector-based resources: https://cityrenewables.org/resources/equity-design-considerations-for-federal-funding/ | P16: N/A | Q16: Large hub airports will receive up to 55% of the total funding; medium hub airports will receive up to 15% of the total funding; and small hub airports will receive up to 20% of the total funding. At least 10% of the total funding will go to non-hub and non-primary airports. Approximately $1 billion will be available per year, for Fiscal Years 2023-2026. | R16: Transportation | S16: Renewable Energy, Energy Storage, Building Weatherization, Building Efficiency Retrofits, Public Transit | T16: Planning, Design/Engineering, Implementation/Construction, Any or All | U16: Grant - Competitive/Discretionary | V16: Public Agency/Local Authority
A17: Existing - Constant | B17: Area Development Program (ADP) | C17: To invest in two general areas: critical infrastructure and business and workforce development. Critical infrastructure investments mainly include water and wastewater systems, transportation networks, broadband, and other projects anchoring regional economic development. Business and workforce investments primarily focus on entrepreneurship, worker training and education, food systems, leadership, and other human capital development. | D17: Appalachian Regional Commission (ARC) | E17: N/A | F17: Applicants must be in an eligible Appalachian county across the 13-state region: https://www.arc.gov/Appalachian-counties-served-by-arc/ | G17: 20%-70% match required, depending on economic status of county | H17: N/A | I17: N/A | J17: N/A | K17: N/A | L17: Rolling | M17: ARC project guidelines emphasize the following goals: 1) economic opportunity, 2) ready workforce, 3) critical infrastructure, 4) natural and cultural assets, and 5) leadership and community capacity. Communities should consider projects aligned with their local and ARC strategic goals that reduce emissions, increase community resiliency, and/or create new opportunities for workforce training in a clean energy economy. ARC guidelines specifically highlight that funding can support elements of the project that improve a project's energy efficiency, but communities should think expansively and work with their state representative to incorporate energy local renewable energy, energy storage, building weatherization and electrification, and increased multi-modal access. | O17: This program helps communities recover from declines in coal and manufacturing sectors and transition to new industries. In addition, a state may also use a portion of its ARC Area Development allocation to fund job-training and skills development, which could support the growth of a clean energy workforce. The ARC may prioritize its funding and match rates based on levels of economic distress: https://www.arc.gov/match-requirements-for-arc-grants/ | P17: Consider whether the project will improve, on a continuing rather than a temporary basis, the opportunities for employment, the average level of income, or the economic and social development of the area served by the project. To receive ARC approval, a project must implement the Development Plan of the Appalachian State in which it is located and it must have been identified by the state in its annual Strategy Statement. | Q17: For additional information on program priorities and guidelines, visit: https://www.arc.gov/wp-content/uploads/2020/08/ARCProjectGuidelines.pdf | R17: Any or All, Buildings, Electricity, Transportation, Industry, Resiliency & Recovery | S17: Workforce Development, Retaining & Building Capacity, Community Resiliency, Energy Storage, Renewable Energy, Building Weatherization, Building Efficiency Retrofits, Public Transit, Clean Fuels | T17: Planning | U17: Grant - Competitive/Discretionary | V17: State
A18: New - IIJA | B18: Battery Manufacturing and Recycling Grants | C18: To support and sustain a North American battery supply chain; to support battery manufacturing and recycling by funding demonstration projects and facility construction. | D18: Department of Energy (DOE) | E18: Office of Manufacturing and Energy Supply Chains | F18: Eligible uses include demonstration projects, construction of commercial-scale facilities, and retrofit or retooling of existing facilities for battery component manufacturing, advanced battery manufacturing, and recycling. | G18: TBA | H18: 3000000000 | I18: TBA | J18: TBA | K18: TBA | L18: 2022-07-01 | M18: Increasing the supply of batteries could decrease the cost of battery storage, and more reliable domestic production could reduce price volatility. This could be part of a local or regional clean energy economy strategy. | O18: See the "Equity Design Considerations for Federal Funding" for general considerations and additional sector-based resources: https://cityrenewables.org/resources/equity-design-considerations-for-federal-funding/ | P18: N/A | Q18: N/A | R18: Industry | S18: Clean Manufacturing & Supply Chain | T18: Any or All | U18: Grant - Competitive/Discretionary | V18: State, Municipality, Non-Profit, Public Agency/Local Authority, Tribal, Any or All
A19: New - IIJA | B19: Battery Material Processing Grants | C19: To ensure the United States has a viable battery materials processing industry by supporting demonstration projects and the construction of facilities for processing battery materials. | D19: Department of Energy (DOE) | E19: Office of Energy Efficiency & Renewable Energy (EERE) | F19: Eligible uses include demonstration projects, construction of commercial-scale facilities, and retrofit or retooling of existing battery material processing facilities. | G19: 20% match required | H19: 3100000000 | I19: 400000000 | J19: 34 | K19: TBA | L19: 2022-07-01 | M19: Materials processing is a necessary step in manufacturing batteries. Increasing the supply of processed battery materials could decrease the cost of battery-based electricity storage, and more reliable domestic production could reduce price volatility. This could be part of a clean energy economy strategy. | O19: See the "Equity Design Considerations for Federal Funding" for general considerations and additional sector-based resources: https://cityrenewables.org/resources/equity-design-considerations-for-federal-funding/ | P19: Letter of intent strongly encouraged by May 27, 2022 | Q19: $3,100,000,000 available until expended | R19: Industry | S19: Clean Manufacturing & Supply Chain | T19: Any or All | U19: Grant - Competitive/Discretionary | V19: State, Municipality, Non-Profit, Public Agency/Local Authority, Tribal, Any or All
A20: New | B20: BETO Waste Feedstocks and Conversion R&D | C20: To (1) support new strategies for energy and resource recovery from waste streams, curbing fugitive methane emissions, air and water quality impacts, odors, etc.; and (2) develop more robust organisms and catalytic processes for the conversion of sustainable feedstocks and intermediates into biofuels and bioproducts. | D20: Department of Energy (DOE) | E20: Bioenergy Technologies Office (BETO) | F20: Broad eligibility for groups, governments, individuals, and consortia of the above, including alllowances for foreign entities. BETO is interested in the following Topic Areas: - TA 1: MSW Feedstock Technologies - TA 2: Robust Microbial Cells - TA 3: Robust Catalytic Processes - TA 4: Community Scale Resource and Energy Recovery from Organic Wastes | G20: 20% cost share required | H20: 34500000 | I20: 2500000 | J20: 15-27 total | K20: Varies by subtopic | L20: Concept Paper due April 18, 2022 Application due June 7, 2022 | M20: BETO focuses on developing technologies that convert domestic lignocellulosic biomass and waste resources into affordable low-carbon biofuels and bioproducts that significantly reduce carbon emissions on a life-cycle basis as compared to equivalent petroleum-based products. These activities will ultimately aims to improve sustainable fuel production to meet the low-carbon (minimum of 70% decrease in GHGs) and affordable drop-in biofuels and aviation emission reduction goals. | O20: Applicants are required to submit a Diversity, Equity, and Inclusion Plan that describes the actions the applicant will take to foster a welcoming and inclusive environment, support people from underrepresented groups in STEM, advance equity, and encourage the inclusion of individuals from these groups in the project; and the extent the project activities will be located in or benefit underserved communities. | P20: BETO is focusing on applied RD&D to improve the performance and reduce cost of biofuel production technologies and scale-up production systems in partnership with industry. BETO is focused on developing and demonstrating technologies that are capable of producing low-carbon, cost-effective biofuels and co-products by 2030, as well as biofuel production pathways that can deliver at least 70% lower lifecycle greenhouse gas emissions than petroleum. | Q20: N/A | R20: Industry | S20: Clean Manufacturing & Supply Chain, Clean Fuels | T20: Planning, Design/Engineering | U20: Grant - Competitive/Discretionary | V20: State, Municipality, Non-Profit, Public Agency/Local Authority, Tribal, Any or All
A21: Existing - Constant | B21: Biorefinery, Renewable Chemical, and Biobased Product Manufacturing Assistance Program | C21: To assist in the development, construction and retrofitting of advanced biofuels, renewable chemicals, and biobased products manufacturing facilities. | D21: United States Department of Agriculture (USDA) | E21: Rural Development | F21: The program provides loan guarantees to financial institutions on behalf of a broad range of eligible entities, including individuals, public and private entities, state and local governments, corporations, tribes, farm cooperatives and agricultural associations, National Laboratories, higher education institutions, and public power entities. | G21: 20% match required | H21: N/A | I21: 250000000 | J21: N/A | K21: N/A | L21: 2 application cycles each fiscal year. Letter of Intent deadlines: March 2 and September 1 Application deadlines: April 1 and October 1 | M21: This program generally supports two types of projects – biorefineries, and biobased product manufacturing facilities. | O21: See the "Equity Design Considerations for Federal Funding" for general considerations and additional sector-based resources: https://cityrenewables.org/resources/equity-design-considerations-for-federal-funding/ | P21: N/A | Q21: Decarbonization strategies may include carbon capture and sequestration and other retrofits to reduce emissions at existing biorefineries. | R21: Industry | S21: Clean Manufacturing & Supply Chain | T21: Design/Engineering, Implementation/Construction | U21: Loan | V21: State, Municipality, Non-Profit, Public Agency/Local Authority, Tribal, Any or All
A22: Existing - IIJA Increase | B22: Brownfields Assessment Grants | C22: To evaluate potentially contaminated sites that may need cleanup from prior use. The program offers community-wide assessments for multiple community sites, site-specific grants for an already identified single-site project focus, and assessment coalition grants to increase the capacity of multijurisdictional entities to assess sites in multiple communities. | D22: Environmental Protection Agency (EPA) | E22: Office of Brownfields and Land Revitalization | F22: All applicants must meet the "threshold criteria" as outlined in the updated notice of funding opportunity. | G22: Not required | H22: 80500000 | I22: Varies by type of assessment grant | J22: 98 | K22: =H22/J22 -> 821428.5714 | L22: Fall 2023 | M22: Transforming underutilized or abandoned sites in your community into revitalized energy hubs can also spur economic revitalization. These funds can help determine which brownfields and closed landfill sites may be good fits for hosting solar or other renewable energy. The EPA offers explicit guidance for considering such "brightfields" projects: https://www.epa.gov/brownfields/are-you-considering-renewable-energy-or-energy-efficient-approaches-your-brownfields | O22: A critical part of the program is to ensure that residents living in communities historically affected by economic disinvestment, health disparities, and environmental contamination have an opportunity to reap the benefits from brownfields redevelopment. For example, large brownfield sites can be future hubs for new manufacturing and clean energy jobs and offer opportunities to improve distributional equity where communities were previously neglected. | P22: There are 3 different types of assessment grants. Review each type to determine which is most relevant to your community or project: https://www.grants.gov/web/grants/view-opportunity.html?oppId=343486 https://www.grants.gov/web/grants/view-opportunity.html?oppId=343466 https://www.grants.gov/web/grants/view-opportunity.html?oppId=343484 | Q22: The IIJA authorized $1.5 billion in Additional funding over 5 years to scale up EPA's brownfields revitalization program. | R22: Electricity, Resiliency & Recovery, Industry | S22: Brightfields | T22: Planning | U22: Grant - Competitive/Discretionary | V22: State, Municipality, Non-Profit, Public Agency/Local Authority, Tribal, Any or All
A23: Existing - IIJA Increase | B23: Brownfields Cleanup Grants | C23: To clean up one brownfield site, or multiple brownfield sites, contaminated by hazardous substances, pollutants, contaminants (including hazardous substances co-mingled with petroleum), and/or petroleum. | D23: Environmental Protection Agency (EPA) | E23: Office of Brownfields and Land Revitalization | F23: Applicants must own the site for which they are requesting funding and may submit one Cleanup Grant proposal each competition cycle. | G23: Not required | H23: 60000000 | I23: 2000000 | J23: 40 | K23: =H23/J23 -> 1500000 | L23: Fall 2023 | M23: Cleanup grants can help accelerate reuse of brownfield sites, including enhancing site readiness for hosting solar or other renewable energy or other sustainable economic development. | O23: Cleaning up contaminated sites of any size often yields immediate environmental and human health, environmental justice benefit, and distributional equity benefits. | P23: National program priorities tend to change each year, so be sure to tailor your application to the current guidance. | Q23: The IIJA authorized $1.5 billion in Additional funding over 5 years to scale up EPA's brownfields revitalization program. | R23: Electricity, Resiliency & Recovery, Industry | S23: Brightfields | T23: Implementation/Construction | U23: Grant - Competitive/Discretionary | V23: State, Municipality, Non-Profit, Public Agency/Local Authority, Tribal, Any or All
A24: Existing - IIJA Increase | B24: Brownfields Job Training (JT) Grants | C24: To deliver Brownfields Job Training programs that recruit, train, and place local, unemployed and under-employed residents with the skills needed to secure full-time employment in the environmental field. | D24: Environmental Protection Agency (EPA) | E24: Office of Brownfields and Land Revitalization | F24: Eligible entities include states, local governments, land clearance authorities or other quasi-governmental entities, regional councils, redevelopment agencies, tribes, non-profits, etc. Hazardous Waste Operations and Emergency Response (HAZWOPER) training be provided to all individuals being trained. | G24: Not required | H24: 12000000 | I24: 500000 | J24: 25 | K24: =H24/J24 -> 480000 | L24: Summer 2023 | M24: Job Training Grants allow nonprofits, local governments, and other organizations to recruit, train, and place unemployed and under-employed residents of areas affected by the presence of brownfields. Through the Program, graduates develop the skills needed to secure full-time, sustainable employment in various aspects of hazardous and solid waste management and within the larger environmental field, including sustainable cleanup and reuse, water quality improvement, chemical safety, and emergency response. These green jobs reduce environmental contamination and build more sustainable futures for communities. | O24: Each activity must meet one of the following national objectives for the program: benefit low- and moderate-income persons, prevention or elimination of slums or blight, or address community development needs having a particular urgency because existing conditions pose a serious and immediate threat to the health or welfare of the community for which other funding is not available. Employers, workforce investment boards (WIBs), community colleges, and community-based organizations provide critical partnerships needed to deliver a successful training program – especially since grant funds may not be used to provide life skills training or social services which can be leveraged through these partnerships. | P24: Applicants are not required to inform their target community; however, they are strongly encouraged to do so. Applicants who hold a community meeting, notify the community about the proposed environmental training program prior to submission of an application, and work with and solicit feedback from diverse community constituents about the proposed program prior to submission, typically have stronger applications. | Q24: Previously known as Environmental Workforce Development and Job Training (EWDJT) Grants EPA's Program Brochure and Success Stories: https://www.epa.gov/sites/production/files/2016-03/documents/final_ewdjt_tri-fold_brochure_7-30-15_0.pdf Renewable Energy or Energy-Efficient Approaches in Brownfields Redevelopment Fact Sheet: https://www.epa.gov/sites/production/files/2020-08/documents/renewable_energy_or_energy-efficient_approaches.pdf | R24: Electricity, Transportation, Buildings, Industry, Resiliency & Recovery | S24: Brightfields, Workforce Development | T24: Planning, Design/Engineering, Implementation/Construction, Any or All | U24: Grant - Competitive/Discretionary | V24: State, Municipality, Non-Profit, Public Agency/Local Authority, Tribal, Any or All
A25: Existing - IIJA Increase | B25: Brownfields Multipurpose (MP) Grants | C25: To provide grant funding for a range of eligible purposes, including developing inventories of brownfield sites, prioritizing sites, engaging community stakeholders, conducting assessments, developing cleanup and reuse plans for key sites, conducting cleanup activities, and developing a revitalization plan. | D25: Environmental Protection Agency (EPA) | E25: Office of Brownfields and Land Revitalization | F25: All applicants must meet the "threshold criteria" as outlined in the updated notice of funding opportunity. | G25: Not required | H25: 14000000 | I25: 800000 | J25: 17 | K25: =H25/J25 -> 823529.4118 | L25: Fall 2023 | M25: Transforming underutilized or abandoned sites in your community into revitalized energy hubs can also spur economic revitalization. These funds are meant to be transformative in efficiently addressing multiple stages of project redevelopment. Such funding could help communities inventory and prioritize brownfield sites for hosting renewable energy and develop cleanup plans, if needed, as well as reuse and revitalization plans. Funding could also help plan, assess, cleanup, and reinvent a larger industrial site for new clean energy manufacturing. | O25: Large brownfield sites can be future hubs for new manufacturing and clean energy jobs and offer opportunities to improve distributional equity where communities were previously neglected. Funding can be specifically used to conduct community engagement activities. | P25: This program has typically been offered every two years, unlike the annually recurring assessment, cleanup, and revolving loan fund grants. These are highly competitive projects geared at sites with the most compelling reuse. EPA's RE-Powering America's Land program offers detailed reports, case studies, and guidance for those looking to deploy renewable energy on brownfields: https://www.epa.gov/re-powering | Q25: EPA requests that, if applicable, the applicant describe how the reuse of the priority site(s) will facilitate renewable energy from wind, solar, or geothermal energy; or will incorporate energy efficiency measures. For more information on clean energy reuse options, check out EPA's RE-Powering America's Lands initiative. | R25: Electricity, Resiliency & Recovery, Industry | S25: Brightfields | T25: Planning, Design/Engineering, Implementation/Construction, Any or All | U25: Grant - Competitive/Discretionary | V25: State, Municipality, Non-Profit, Public Agency/Local Authority, Tribal, Any or All
A26: Existing - IIJA Increase | B26: Brownfields Revolving Loan Fund (RLF) | C26: To provide seed money to capitalize a revolving loan fund program including loans and subgrants to clean up and remediate sites across a region or community. Revolving loan funds are used to provide no-interest or low-interest loans for eligible brownfield cleanups, subgrants for cleanups, and other eligible programmatic costs necessary to manage the loan fund. | D26: Environmental Protection Agency (EPA) | E26: Office of Brownfields and Land Revitalization | F26: Recipients must have a strong understanding of real estate financing principles and approaches, including loan underwriting, loan servicing, and credit analysis. Recipients also need to have the ability to market the program on an on-going basis during the performance period of the grant and after the closeout of the RLF Grant. Recipients commit to properly manage funds and program income generated by their program until its official close. Only entities without open RLF cooperative agreements are eligible to apply. | G26: Not required | H26: 10000000 | I26: 1000000 | J26: 10 | K26: =H26/J26 -> 1000000 | L26: Fall 2023 | M26: These funds are meant to be transformative in efficiently cleaning up multiple sites for reuse. Consider pursuing with intent to reuse and convert of multiple brownfields into brightfields with one bulk procurement, either on a single or multijurisdictional basis. | O26: This is an opportunity for communities to take ownership of seed funding to accelerate the long-term revitalization of multiple brownfields. Consider creating regional partnerships to leverage financial, marketing, and program administration experience in order to build capacity for localized loans and subgrants. Using this funding to create new hubs for clean energy manufacturing and jobs and offer opportunities to improve distributional equity where communities were previously neglected. | P26: These are highly competitive projects geared at communities with extensive brownfield sites. If structured correctly, these revolving loan fund programs can generate program income from repayment of loans to sustain programs from a few years to decades. | Q26: If selected, the lead entity will be the grant recipient and must administer the grant, be accountable to EPA for proper expenditure of the funds and be the point of contact for the other coalition members. In addition, a Memorandum of Agreement (MOA) documenting the coalition’s site selection process must be in place prior to the expenditure of any funds that are awarded. The coalition members should identify and establish relationships necessary to achieve the project’s goal. A process for successful execution of the project’s goal, including a description and role of each coalition member, should be established along with the MOA. The purpose of the MOA is for coalition members to agree internally on the distribution of funds and the mechanisms for implementing the cleanup work. | R26: Electricity, Resiliency & Recovery, Industry | S26: Brightfields | T26: Implementation/Construction | U26: Revolving Loan, Grant - Competitive/Discretionary | V26: State, Municipality, Non-Profit, Public Agency/Local Authority, Tribal, Any or All
A27: Existing - Increase | B27: Build to Scale (B2S) | C27: To develop and support regional tech-based economic development initiatives that accelerate high quality job growth, create more economic opportunities, and support the future of the next generation of industry leading companies | D27: Department of Commerce | E27: Economic Development Administration (EDA) | F27: Project eligibility specifications vary by program (Venture Challenge, Capital Challenge, and Industry Challenge). | G27: 50% match required | H27: 45000000 | I27: $750,000 for Venture Challenge Build $2,000,000 for Venture Challenge Scale | J27: 50 | K27: =H27/J27 -> 900000 | L27: 2022-06-13 | M27: This funding can support the public infrastructure needed to create new or enhance existing programs for clean energy, hydrogen, battery storage, or electric supply chain opportunities. Explore integrating new clean energy and EV supply chain manufacturing hubs/business parks into comprehensive economic development plans as part of your diversification strategy. Where possible, consider whether partnerships with universities, community college, and industry could be leveraged to launch an economic diversification and workforce development strategy to promote and enhance the growth of emerging clean energy industries and retain local talent. | O27: This is an opportunity to enhance supply chains, attract new energy and transportation sectors, and provide job training for out of work energy and industry professionals or those looking to transition to clean energy, electrification, and EV supply chain related industries. | P27: Unlike many EDA programs, this program does not require eligibility through regional distress criteria. Applicants should still emphasize, if possible, how such funding can be a transformative investment for their community to further technology-based economic development initiatives that accelerate high-quality job growth, create more economic opportunities, and support the future of the next generation of industry-leading companies. Public-private partnerships to accelerate entrepreneurship and company growth are also encouraged to apply. | Q27: In 2020, Department of Energy partnered with EDA to provide $4 million in funding to pilot the Industry Challenge, which supports entrepreneurship and accelerate company growth within the Blue Economy for the FY20 cycle. View the FY20 Industry Challenge grantees here: https://eda.gov/oie/buildtoscale/industry/2020/ | R27: Industry, Electricity, Buildings, Transportation | S27: Workforce Development, Retaining & Building Capacity, Renewable Energy, Energy Storage, Building Efficiency Retrofits, Electric Vehicles/Charging Equipment, Clean Manufacturing & Supply Chain, Clean Fuels | T27: Planning, Implementation/Construction | U27: Grant - Competitive/Discretionary | V27: State, Municipality, Non-Profit, Public Agency/Local Authority, Tribal, Any or All
A28: Existing - Constant | B28: Building Blocks for Sustainable Communities | C28: To provide quick, targeted technical assistance to selected communities to contribute environmental and economic sustainability, using a variety of tools that have demonstrated results and widespread application. | D28: Environmental Protection Agency (EPA) | E28: Office of Community Revitalization | F28: Eligible applicants include local, county, or tribal governments, or nonprofit organizations that have the support of the local government on whose behalf they are applying. | G28: Not required | H28: N/A | I28: N/A | J28: N/A | K28: N/A | L28: 2020-11-20 | M28: Consider projects and plans that can achieve decarbonization while improving community resiliency. For example, what kinds of street design can encourage walking instead of driving? How to integrate distributed energy resources (DERs) when revitalizing downtowns and existing neighborhoods? Can these deployments demonstrate the benefits of decarbonization measures and raise community awareness? | O28: Applicants need to use data to demonstrate the challenge their community faces and describe how this challenge affects low-income, minority, tribal, and/or other communities facing disproportionate environmental or health risks. The letter of interest should also describe plans for engaging traditionally underrepresented communities to ensure equitable access and meaningful engagement. | P28: EPA offers 19 tools through this program. Not every tool is offered in every round. Once EPA has used a tool in several communities, the tool will be refined to create a product that any community can use with limited outside assistance. Local governments are encouraged to navigate emerging challenges with existing tools. Past Recipients and Tools can be found here: https://www.epa.gov/smartgrowth/building-blocks-sustainable-communities-past-recipients-and-tools | Q28: EPA provides direct assistance through a federal contract; therefore, no funds are transferred to the community. The initial application requires a two-page write-up detailing how the assistance will help the community. After that, EPA will request next step memos and notify applicants of the due. Local governments with ideas should submit their letters of interest to seize the opportunities. | R28: Buildings, Transportation, Resiliency & Recovery | S28: Building Weatherization, Building Efficiency Retrofits, Disaster Recovery, Community Resiliency, Public Transit, Smart Growth, Retaining & Building Capacity, Nature-Based Solutions | T28: Planning, Design/Engineering, Implementation/Construction, Any or All | U28: Technical Assistance | V28: Municipality, Non-Profit, Public Agency/Local Authority, Tribal
A29: Existing - IIJA Increase | B29: Building Resilient Infrastructure and Communities (BRIC) | C29: To invest in and undertake hazard mitigation projects, reducing the risks communities face from disasters and natural hazards. | D29: Department of Homeland Security (DHS) | E29: Federal Emergency Management Agency (FEMA) | F29: Local governments/municipalities are eligible to apply as sub-applicants to states. Homeowners, business operators, and non-profit organizations cannot apply directly to FEMA but can be included in a sub-application submitted by an eligible sub-applicant. Note: Applicants must have a FEMA-approved State, Local, or Tribal Hazard Mitigation Plan by the application deadline and at the time of obligation of grant funds. | G29: 25% match required, unless applicant is economically disadvantaged rural community | H29: 2300000000 | I29: TBA | J29: 125 | K29: =H29/J29 -> 18400000 | L29: Expected Winter 2023; state deadlines vary (see "Helpful Tips") | M29: BRIC is designed to advance broad, impactful, flexible, and innovative resiliency solutions that enhance the energy system and access to energy during disasters. For FY 2022, the priorities for the program are to incentivize natural hazard risk reduction activities that mitigate risk to public infrastructure and disadvantaged communities; incorporate nature-based solutions including those designed to reduce carbon emissions; enhance climate resilience and adaptation; and increase funding to applicants that facilitate the adoption and enforcement of the latest published editions of building codes. BRIC encourages hazard mitigation projects that meet multiple program priorities. | O29: BRIC has a priority focus of benefiting disadvantaged communities, defined as those facing conditions including, but not limited to, low income, high and/or persistent poverty, high unemployment/underemployment, racial and ethnic segregation, high housing cost burdens, distressed neighborhoods, disproportionate impacts from climate change, high energy cost burden and low energy access, jobs lost from the energy transition, and limited access to healthcare. Flexible backup power solutions (i.e. local community resiliency hubs) can be deployed to support remote, marginalized residents with limited access to more centralized facilities. | P29: State deadlines will vary for sub-applicants to be considered, typically 1-3 months prior to the FEMA deadline. Contact your State Hazard Mitigation Officer (SHMO) to learn about potential state deadline to plan accordingly: https://www.fema.gov/grants/mitigation/state-contacts | Q29: In addition to project selections, the BRIC Program offers non-financial Direct Technical Assistance (DTA). Read more here: https://www.fema.gov/grants/mitigation/building-resilient-infrastructure-communities/direct-technical-assistance Awardees are eligible to recieve FEMA-subsidized, low-carbon construction materials. Read more at https://www.fema.gov/grants/policy-guidance/low-carbon-goals. For past program details, see here: https://www.fema.gov/grants/mitigation/building-resilient-infrastructure-communities/after-apply/fy-2021-subapplication-status | R29: Resiliency & Recovery, Electricity, Buildings, Transportation | S29: Community Resiliency, Retaining & Building Capacity, Building Weatherization, Energy Storage, Renewable Energy, Electric Vehicles/Charging Equipment, Nature-Based Solutions | T29: Planning, Design/Engineering, Implementation/Construction, Any or All | U29: Grant - Competitive/Discretionary | V29: State, Tribal, Municipality
A30: New - IIJA | B30: Building, Training, and Assessment Centers (BTAC) | C30: To establish a competitive grant program to help institutions of higher education establish building training and assessment centers to educate and train building technicians and engineers on implementing modern building technologies. | D30: Department of Energy (DOE) | E30: Office of State and Community Energy Programs (SCEP) | F30: Eligible entities are state-accredited technical training centers, community colleges, Tribal Colleges or Universities, and local offices of the National Institute of Food and Agriculture. | G30: TBA | H30: 10000000 | I30: TBA | J30: TBA | K30: TBA | L30: Concept paper due May 25, 2023; Application due July 31, 2023 | M30: Skills and knowledge gaps prevent clean energy, efficiency, electrification, and other sustainability solutions from being implemented. By addressing these gaps with specialized education centers, applicants can accelerate deployment of a skilled workforce ready for the clean energy economy. | O30: Education can target underserved communities and give people access to high-road jobs in the clean energy economy. Consider designing training programs aimed at re-training workers from fossil fuel industries, if applicable, as well to help with workforce transitions. | P30: N/A | Q30: $10,000,000 available until expended | R30: Buildings | S30: Building Weatherization, Building Efficiency Retrofits, Workforce Development, Retaining & Building Capacity, Renewable Energy, Energy Storage, Clean Manufacturing & Supply Chain | T30: Implementation/Construction | U30: Grant - Competitive/Discretionary | V30: Non-Profit
A31: Existing - Increase | B31: Bus and Bus Facilities - Section 3017 (Competitive) | C31: To make federal resources available to states and direct recipients to replace, rehabilitate and purchase buses and related equipment and to construct bus-related facilities including technological changes or innovations to modify low or no emission vehicles or facilities. The competitive Bus and Bus Facilities program includes the Low or No Emission Vehicle Program. | D31: Department of Transportation (DOT) | E31: Federal Transit Administration (FTA) | F31: Eligible applicants include designated recipients that allocate funds to fixed route bus operators, states or local governmental entities that operate fixed route bus service, and Indian tribes. Eligible subrecipients include all otherwise eligible applicants and also private nonprofit organizations engaged in public transportation. | G31: 20% match required, with exceptions | H31: 230000000 | I31: N/A | J31: ~100 | K31: 4100000 | L31: 2021-11-19 | M31: Decarbonization strategies may focus on investments that expand transit services in a manner that reduces single passenger vehicle miles traveled, invest in zero-emission vehicles and charging infrastructure, and holistic transportation strategies that emphasize walking, cycling, and public transit connectivity alongside electric vehicle (EV) infrastructure build-out for ride-sharing and vehicle sharing programs. | O31: See the "Equity Design Considerations for Federal Funding" for general considerations and additional sector-based resources: https://cityrenewables.org/resources/equity-design-considerations-for-federal-funding/ | P31: For past program details and awards, see here: https://www.transit.dot.gov/bus-program | Q31: N/A | R31: Transportation | S31: Public Transit, Electric Vehicles/Charging Equipment | T31: Planning, Design/Engineering, Implementation/Construction, Any or All | U31: Grant - Competitive/Discretionary | V31: State, Municipality, Non-Profit, Public Agency/Local Authority, Tribal
A32: Existing - Increase | B32: Bus and Bus Facilities - Section 5339 (Formula) | C32: To make federal resources available to states and direct recipients to replace, rehabilitate and purchase buses and related equipment and to construct bus-related facilities including technological changes or innovations to modify low or no emission vehicles or facilities. | D32: Department of Transportation (DOT) | E32: Federal Transit Administration (FTA) | F32: Eligible applicants include designated recipients that allocate funds to fixed route bus operators, states or local governmental entities that operate fixed route bus service, and Indian tribes. Eligible subrecipients include all otherwise eligible applicants and also private nonprofit organizations engaged in public transportation. | G32: 20% match required, with exceptions | H32: 612000000 | I32: 40590000 | J32: 125 | K32: 1982690 | L32: TBA | M32: FTA encourages applicants to consider significant community benefits related to the environment, including those projects that incorporate low- or no-emission technology or specific elements to address greenhouse gas emissions and climate change impacts. Decarbonization strategies may focus on investments that expand transit services in a manner that reduces single passenger vehicle miles traveled, invest in zero-emission vehicles and charging infrastructure, and holistic transportation strategies that emphasize walking, cycling, and public transit connectivity alongside electric vehicle (EV) infrastructure build-out for ride-sharing and vehicle sharing programs. | O32: FTA encourages applicants to consider projects that encourage racial equity in planning and policies, and project investments that either proactively address racial equity and barriers to opportunity, including automobile dependence as a form of barrier, or redress prior inequities and barriers to opportunity. See the "Equity Design Considerations for Federal Funding" document for general considerations and additional sector-based resources: https://cityrenewables.org/resources/equity-design-considerations-for-federal-funding/ | P32: N/A | Q32: Program funding expires in 2024. There are three components to this program. The first is a continuation of the formula bus program established on under MAP-21. The remaining two components include the bus and bus facilities competitive program based on asset age and condition, and a low or no emissions bus deployment program. A pilot provision allows designated recipients in in urbanized areas between 200,000 and 999,999 in population to participate in voluntary state pools to allow transfers of formula funds between designated recipients during the period of the authorized legislation. | R32: Transportation | S32: Public Transit, Electric Vehicles/Charging Equipment | T32: Planning, Design/Engineering, Implementation/Construction, Any or All | U32: Grant - Formula/Block | V32: State, Municipality, Non-Profit, Public Agency/Local Authority, Tribal
A33: Existing - Constant | B33: Capital Investment Grants Program (CIG) - Core Capacity Improvement Program | C33: To invest in substantial corridor improvements in areas that are at or over capacity (or will be within 10 years). This is a robust project development process not geared at maintaining a state of good repair, rather the focus is on increasing corridor capacity by 10% or more. | D33: Department of Transportation (DOT) | E33: Federal Transit Administration (FTA) | F33: Eligible applicants are state and local government agencies, including transit agencies. | G33: 20% match required | H33: 2300000000 | I33: N/A | J33: N/A | K33: N/A | L33: Rolling | M33: While this program will fund public transit projects generally, applicants should prioritize projects that will increase ridership, reduce the need for private vehicle use, decrease vehicle miles traveled, and be in coordination with regional transit-oriented development planning. When rail projects are not possible, communities should look to deploying extensive, well-connected bus rapid transit projects that can align with local, regional, and statewide vehicle electrification plans. | O33: See the "Equity Design Considerations for Federal Funding" for general considerations and additional sector-based resources: https://cityrenewables.org/resources/equity-design-considerations-for-federal-funding/ | P33: Can be paired with FTA's State of Good Repair funding (Section 5337 SGR Formula Funds). This can fund infrastructure repairs and deferred maintenance while the Core Capacity investments can support increased capacity. | Q33: To apply, submit a letter to FTA's Office of Planning and Environment. This should be a short letter that stresses project managers, staff, partners, and sponsors; amount of funding being sought and total cost, if known; committed funds to do project development; project schedule, proof that corridor is at capacity or will be in 10 years; and verification that the project will increase capacity by 10%. | R33: Transportation | S33: Public Transit, Smart Growth, Electric Vehicles/Charging Equipment | T33: Planning, Design/Engineering, Implementation/Construction, Any or All | U33: Grant - Competitive/Discretionary | V33: State, Municipality, Non-Profit, Public Agency/Local Authority, Tribal
A34: Existing - Constant | B34: Capital Investment Grants Program (CIG) - New Starts | C34: To fund major investments in new or extended fixed guideway public transit systems, including light rail, heavy rail, commuter rail, streetcar, and bus rapid transit (BRT) projects. | D34: Department of Transportation (DOT) | E34: Federal Transit Administration (FTA) | F34: Eligible applicants are state and local government agencies, including transit agencies. Eligible projects are those with a total estimated project cost of $400M or more or that are seeking funding of $150M or more. | G34: 40% match required | H34: 2300000000 | I34: N/A | J34: N/A | K34: N/A | L34: Rolling | M34: While this program will fund public transit projects generally, applicants should prioritize projects that will increase ridership, reduce the need for private vehicle use, decrease vehicle miles traveled, and be in coordination with regional transit-oriented development planning. When rail projects are not possible, communities should look to deploying extensive, well-connected bus rapid transit projects that can align with local, regional, and statewide vehicle electrification plans. | O34: Criteria air pollutants are often co-pollutants at greenhouse gas emitting sources, including industrial sources and freight transportation hubs. These facilities often have a disproportionate impact on environmental justice communities. | P34: N/A | Q34: N/A | R34: Transportation | S34: Public Transit, Smart Growth, Electric Vehicles/Charging Equipment | T34: Planning, Design/Engineering, Implementation/Construction, Any or All | U34: Grant - Competitive/Discretionary | V34: State, Municipality, Non-Profit, Public Agency/Local Authority, Tribal
A35: Existing - Constant | B35: Capital Investment Grants Program (CIG) - Small Starts | C35: To fund major investments in new or extended fixed guideway public transit systems, including light rail, heavy rail, commuter rail, streetcar, and bus rapid transit (BRT) projects. This may include corridor-based BRT systems. | D35: Department of Transportation (DOT) | E35: Federal Transit Administration (FTA) | F35: Eligible applicants are state and local government agencies, including transit agencies. Eligible projects are those with a total estimated project cost of less than $400M. | G35: 20% match required | H35: 2300000000 | I35: 150000000 | J35: N/A | K35: N/A | L35: Rolling | M35: While this program will fund public transit projects generally, applicants should prioritize projects that will increase ridership, reduce the need for private vehicle use, decrease vehicle miles traveled, and be in coordination with regional transit-oriented development planning. When rail projects are not possible, communities should look to deploying extensive, well-connected bus rapid transit projects that can align with local, regional, and statewide vehicle electrification plans. | O35: See the "Equity Design Considerations for Federal Funding" for general considerations and additional sector-based resources: https://cityrenewables.org/resources/equity-design-considerations-for-federal-funding/ | P35: N/A | Q35: N/A | R35: Transportation | S35: Public Transit, Smart Growth, Electric Vehicles/Charging Equipment | T35: Planning, Design/Engineering, Implementation/Construction, Any or All | U35: Grant - Competitive/Discretionary | V35: State, Municipality, Non-Profit, Public Agency/Local Authority, Tribal
A36: New - IIJA | B36: Carbon Capture Demonstration Projects Programs (CCDPP, Energy Act) | C36: To demonstrate substantial improvements in the efficiency, effectiveness, cost, and environmental performance of carbon capture technologies for power, industrial, and other commercial applications. | D36: Department of Energy (DOE) | E36: Office of Clean Energy Demonstrations (OCED) | F36: Eligible applicants are broad and include: Technology Developers, Industry, Utilities, Universities, National Laboratories, Engineering and Construction firms, State and Local Governments, Tribal, Environmental Groups, and Community Based Organizations. | G36: 50% match required | H36: 1700000000 | I36: Varies by topic area | J36: 6 | K36: =H36/J36 -> 283333333.3 | L36: Letter of Intent due March 28, 2023 Application due May 23, 2023 | M36: Consider projects that have the highest potential for carbon reduction in the region or that can scale nationally. Maximize the carbon capture quantity and efficiency by leveraging existing public-private partnerships and federal resources. | O36: Consider prioritizing projects that are located in economically and environmentally distressed communities, maximizing the long-term benefits for residents of the region. Partner with community-based organizations and engage local community during the process of program planning, design and implementation. | P36: Of the demonstration projects, 2 shall be designed for natural gas electric generation facilities, 2 for coal electric generation facilities, and 2 for industrial facilities not purposed for electric generation. | Q36: $500,000,000 are eligible for each of fiscal years 2021 through 2024; and $600,000,000 for fiscal year 2025. | R36: Industry | S36: Carbon Capture & Storage (CCS) | T36: Planning, Design/Engineering, Implementation/Construction, Any or All | U36: Grant - Competitive/Discretionary, Technical Assistance | V36: State, Municipality, Non-Profit, Public Agency/Local Authority, Tribal, Any or All
A37: New - IIJA | B37: Carbon Reduction Program (CRP) | C37: To reduce transportation emissions via alternative fueling infrastructure, efficiency, electrification, and other planning strategies. | D37: Department of Transportation (DOT) | E37: Federal Highway Administration (FHA) | F37: Eligible projects include traffic monitoring and control facilities; public transportation projects eligible for assistance under section 142 (Public Transportation); off-road trail facilities; advanced transportation and congestion management technologies; infrastructure-based intelligent transportation systems; vehicle-to-infrastructure communications equipment; the replacement of inefficient street lighting and traffic control devices; and development of carbon reduction strategies. | G37: 20% match required | H37: 1234000000 | I37: N/A | J37: N/A | K37: N/A | L37: 2023-11-15 | M37: This program is specifically designed to reduce carbon emissions across a variety of sources, including alternative fuels, the purchase or lease of zero-emissions construction vehicles, port electrification, energy-efficient traffic lights and street lights, bike paths, public transit routes, and/or route shifting. | O37: See the "Equity Design Considerations for Federal Funding" for general considerations and additional sector-based resources: https://cityrenewables.org/resources/equity-design-considerations-for-federal-funding/ | P37: Implementation guidance can be found here: https://www.fhwa.dot.gov/environment/sustainability/energy/policy/crp_guidance.pdf | Q37: For areas of 50,000 or more, a State is required to provide obligation authority (OA). When obligation authority is provided alongside contract authority, the entity in receipt of OA is able to obligate – or spend – the funds designated for their area, versus OA remaining with the state and the state retaining control over project selection. | R37: Transportation | S37: Public Transit, Smart Growth, Electric Vehicles/Charging Equipment, Clean Fuels | T37: Planning, Design/Engineering, Implementation/Construction, Any or All | U37: Grant - Formula/Block | V37: State
A38: Existing - IIJA Increase | B38: Carbon Storage Validation and Testing / Large-scale Carbon Storage Commercialization Program | C38: To expand DOE's Carbon Storage program to fund development of new or expanded commercial large-scale carbon sequestration projects and associated carbon dioxide transport infrastructure, including funding for the feasibility, site characterization, permitting, and construction stages of project development. | D38: Department of Energy (DOE) | E38: Office of Clean Energy Demonstrations (OCED) | F38: Eligible projects include the development of new or expanded commercial large-scale carbon sequestration projects and associated carbon dioxide transport infrastructure, including funding for the feasibility, site characterization, permitting, and construction stages of project development. | G38: 20% match required | H38: 2250000000 | I38: TBA | J38: TBA | K38: TBA | L38: 2022-11-28 | M38: Leveraging existing Regional Carbon Sequestration Partnerships and expanding resources to demonstrate and deploy safe underground storage of CO2. | O38: See the "Equity Design Considerations for Federal Funding" for general considerations and additional sector-based resources: https://cityrenewables.org/resources/equity-design-considerations-for-federal-funding/ | P38: N/A | Q38: $2,500,000,000 for FY22-26 | R38: Industry | S38: Clean Manufacturing & Supply Chain, Carbon Capture & Storage (CCS) | T38: Planning, Design/Engineering, Implementation/Construction, Any or All | U38: Loan | V38: State, Municipality, Non-Profit, Public Agency/Local Authority, Tribal, Any or All
A39: New - IIJA | B39: Carbon Utilization Program (CUP) | C39: To procure and use products derived from captured carbon oxides. | D39: Department of Energy (DOE) | E39: Office of Fossil Energy and Carbon Management | F39: An eligible entity shall use a grant received under this paragraph to procure and use commercial or industrial products that-- (i) use or are derived from anthropogenic carbon oxides; and (ii) demonstrate significant net reductions in lifecycle greenhouse gas emissions compared to incumbent technologies, processes, and products. | G39: TBA | H39: 310140781 | I39: TBA | J39: TBA | K39: TBA | L39: Expected 4th quarter 2022 | M39: Recovering and repurposing carbon reduces the amount of airborne pollution and may help to monetize these emissions reductions. | O39: See the "Equity Design Considerations for Federal Funding" for general considerations and additional sector-based resources: https://cityrenewables.org/resources/equity-design-considerations-for-federal-funding/ | P39: N/A | Q39: The Carbon Utilization Program already exists, primarily as a research program within the National Energy Technology Laboratory (NETL). | R39: Industry | S39: Clean Manufacturing & Supply Chain, Carbon Capture & Storage (CCS) | T39: Implementation/Construction | U39: Grant - Competitive/Discretionary | V39: State, Municipality, Public Agency/Local Authority
A40: New - IIJA | B40: Career Skills Training | C40: To pay the Federal share of associated career skills training programs under which students concurrently receive classroom instruction and on-the-job training for the purposes of obtaining an industry-related certification to install energy efficient building technologies. | D40: Department of Energy (DOE) | E40: Office of Energy Efficiency & Renewable Energy (EERE) | F40: Grants will be awarded to non-profit partnerships, which may include industry, workforce investment boards, community-based organizations, qualified service and conservation corps, educational institutions, small businesses, cooperatives, State and local veterans’ agencies, and veterans service organizations. | G40: 50% match required | H40: 10000000 | I40: N/A | J40: TBA | K40: TBA | L40: Expected 1st quarter 2023 | M40: Skills and knowledge gaps prevent clean energy solutions from being deployed. By addressing these gaps with specialized training, applicants can accelerate deployment of energy efficiency building and retrofit programs. | O40: Education and career training programs can help underserved communities and give people access to high-road jobs in the clean energy economy. Working with local and regional partner institutions and organizations can help ensure programs support underserved populations seeking employment. | P40: N/A | Q40: N/A | R40: Buildings | S40: Workforce Development, Retaining & Building Capacity | T40: Implementation/Construction | U40: Grant - Competitive/Discretionary | V40: Non-Profit
A41: Existing - Increase | B41: Choice Neighborhoods - Implementation Grants | C41: To support those communities that have undergone a comprehensive local planning process and are ready to implement their “Transformation Plan” to redevelop the neighborhood. | D41: Department of Housing & Urban Development (HUD) | E41: Public and Indian Housing | F41: The eligible applicant must demonstrate that the proposal targets an eligible housing project and is located in an eligible neighborhood. Eligible applicants include Public Housing Agencies (PHAs), local governments, tribal entities, and nonprofits. | G41: 5% match required | H41: 150000000 | I41: 50000000 | J41: 5 | K41: =H41/J41 -> 30000000 | L41: Fall 2022 | M41: Consider integrating community solar, building-tied solar and storage for backup power, EV charging infrastructure, nature-based heat island mitigation strategies, and other sustainable solutions that benefit the broader community. | O41: For community solutions, align the solutions with the priorities of the community. For housing-specific solutions, consider prioritizing the distributed energy resource solutions that have the largest reduction on occupants' energy burden. | P41: Use HUD Mapping tool to determine eligible neighborhoods: https://www.huduser.gov/portal/maps/CN/home.html | Q41: N/A | R41: Transportation, Resiliency & Recovery, Buildings | S41: Smart Growth, Community Resiliency, Nature-Based Solutions | T41: Implementation/Construction | U41: Grant - Competitive/Discretionary | V41: State, Municipality, Non-Profit, Public Agency/Local Authority, Tribal
A42: Existing - Increase | B42: Choice Neighborhoods - Planning Grants | C42: To support the development of comprehensive neighborhood revitalization plans which focused on directing resources to address three core goals: Housing, People and Neighborhoods. The Transformation Plan will become the guiding document for the revitalization of the public and/or assisted housing units while simultaneously directing the transformation of the surrounding neighborhood and positive outcomes for families. | D42: Department of Housing & Urban Development (HUD) | E42: Public and Indian Housing | F42: The eligible applicant must demonstrate that the proposal targets an eligible housing project and is located in an eligible neighborhood. Eligible applicants include Public Housing Agencies (PHAs), local governments, tribal entities, and nonprofits. | G42: 5% match required | H42: 10000000 | I42: 500000 | J42: 20 | K42: =H42/J42 -> 500000 | L42: 2022-07-28 | M42: Consider integrating community solar, resilience hubs, building-tied solar and storage for backup power, EV charging infrastructure, nature-based heat island mitigation strategies, and other sustainable solutions that benefit the broader community. | O42: For community solutions, align the solutions with the priorities of the community. For housing-specific solutions, consider prioritizing the distributed energy resource solutions that have the largest reduction on occupants' energy burden. | P42: Ensure that your planning grant is optimized by embracing decarbonization and resilience strategies. Effectively implemented planning grants make your community more competitive for the Choice Implementation grants. Use HUD Mapping tool to determine eligible neighborhoods: https://www.huduser.gov/portal/maps/CN/home.html | Q42: N/A | R42: Transportation, Resiliency & Recovery, Buildings | S42: Smart Growth, Community Resiliency, Retaining & Building Capacity, Nature-Based Solutions | T42: Planning | U42: Grant - Competitive/Discretionary | V42: State, Municipality, Non-Profit, Public Agency/Local Authority, Tribal
A43: New - IIJA | B43: Clean Energy Demonstration Program on Current and Former Mine Land | C43: To demonstrate the technical and economic viability of clean energy projects on current and former mines. | D43: Department of Energy (DOE) | E43: Office of Clean Energy Demonstrations (OCED) | F43: At least 2 projects must be solar. Other projects can be solar, microgrid, geothermal, direct air capture, fossil fuel generated electricity with carbon capture/utilization/sequestration, energy storage (including pumped storage hydropower and compressed air storage), and advanced nuclear technology. | G43: 50% match required | H43: 450000000 | I43: 150000000 | J43: 5 | K43: 90000000 | L43: Concept paper due by 5/11/2023 | M43: Net impact on greenhouse gas emissions is one prioritization criteria used by the DOE. This is a demonstration project seeking projects that can be deployed and scaled quickly to other mine lands while having large net impacts on reducing greenhouse gas emissions are strong candidates for this demonstration program. | O43: Job creation in economically distressed areas or in energy transition communities is one prioritization criteria. Community and worker consultation should be incorporated into any project planning, design, and implementation. | P43: "Reasonable expectation of commercial viability", as determined by the Secretary, is one of the project eligibility criteria. Prioritization criteria include: job creation, particularly in economically distressed areas and dislocated workers previously employed in manufacturing, coal power plants, or coal mining; net impact in avoiding or reducing greenhouse gas emissions; lowest levelized cost of generated or stored energy; greatest potential for technological innovation and deployment; and shortest project time from permitting to completion. | Q43: MINE LAND.—The term ‘‘mine land’’ means— (A) land subject to titles IV and V of the Surface Mining Control and Reclamation Act of 1977 (30 U.S.C. 1231 et seq.; 30 U.S.C. 1251 et seq.); and (B) land that has been claimed or patented subject to sections 2319 through 2344 of the Revised Statutes (commonly known as the ‘‘Mining Law of 1872’’) (30 U.S.C. 22 et seq.) | R43: Electricity | S43: Renewable Energy, Energy Storage, Carbon Capture & Storage (CCS), Brightfields | T43: Implementation/Construction, Planning, Design/Engineering, Any or All | U43: Grant - Competitive/Discretionary, Technical Assistance | V43: State, Municipality, Non-Profit, Public Agency/Local Authority, Tribal
A44: New - IIJA | B44: Clean Hydrogen Electrolysis Program | C44: To establish an R&D, demonstration, commercialization, and deployment program to improve the efficiency, increase the durability, and reduce the cost of producing clean hydrogen using electrolyzers. | D44: Department of Energy (DOE) | E44: Office of Energy Efficiency & Renewable Energy (EERE) | F44: Eligible uses include (1) the demonstration of technologies that produce clean hydrogen using electrolyzers; and (2) the validation of information on the cost, efficiency, durability, and feasibility of commercial deployment. | G44: TBA | H44: 1000000000 | I44: TBA | J44: TBA | K44: TBA | L44: Expected 4th quarter 2022 | M44: Hydrogen is a potential substitute for carbon-based fuels. Developing clean, effective electrolysis methods are critical for production. Municipalities and local leaders can partner to create regional hydrogen clusters, working in tandem with grant-eligible private entities. | O44: See the "Equity Design Considerations for Federal Funding" for general considerations and additional sector-based resources: https://cityrenewables.org/resources/equity-design-considerations-for-federal-funding/ | P44: N/A | Q44: $1,000,000,000 in funding available until expended. | R44: Industry, Electricity | S44: Clean Manufacturing & Supply Chain, Clean Fuels | T44: Implementation/Construction, Planning, Design/Engineering, Any or All | U44: Grant - Competitive/Discretionary | V44: Municipality, Non-Profit, Public Agency/Local Authority
A45: New - IIJA | B45: Clean Hydrogen Manufacturing Recycling Research, Development, and Demonstration Program (RD&D) | C45: To support R&D and demonstration projects that advance new clean hydrogen production, processing, delivery, and storage; use equipment manufacturing technologies and techniques; and increase the reuse and recycling of clean hydrogen technologies. | D45: Department of Energy (DOE) | E45: Office of Energy Efficiency & Renewable Energy (EERE) | F45: Industry stakeholders are eligible to apply. Local governments are encouraged to partner with the private sector as sub-applicants. | G45: TBA | H45: 500000000 | I45: TBA | J45: TBA | K45: TBA | L45: Expected 2nd quarter 2022 | M45: Clean hydrogen is a potential substitute for carbon-based fuels. Developing effective production, storage, and recycling methods can help ensure sufficient supply of this resource. Municipalities and local leaders can partner to create regional hydrogen clusters, working in tandem with private entities. | O45: The Clean Hydrogen Manufacturing Initiative aims to support domestic supply chains for materials and components, operating in partnership with tribal energy development organizations, Indian Tribes, Tribal organizations, Native Hawaiian community-based organizations, and territories/freely associated States. Preference will be given to projects in economically distressed areas in the major natural gas-producing regions of the United States. | P45: N/A | Q45: $500,000,000 in funding available until expended. | R45: Industry | S45: Clean Manufacturing & Supply Chain, Clean Fuels | T45: Implementation/Construction, Planning, Design/Engineering, Any or All | U45: Grant - Competitive/Discretionary | V45: Municipality, Non-Profit, Public Agency/Local Authority
A46: New - IIJA | B46: Clean School Bus Program (CSB) | C46: To decarbonize school bus fleets by replacing existing school buses with zero-emission buses and alternative fuel-based buses. | D46: Environmental Protection Agency (EPA) | E46: TBA | F46: Eligible recipients include: State, local and tribal governmental agencies that are responsible for providing school bus service to one or more public school systems; or purchase of school buses. Eligible expenses include buses, charging units, and electrical panels. | G46: Not required | H46: 5000000000 | I46: 9375000 | J46: TBA | K46: TBA | L46: 2022-08-19 | M46: Half of the available funding is dedicated for zero-emission school buses and half is for clean school buses. These are defined as follows: a zero-emission school bus is a school bus that produces zero exhaust emission of any air pollutant and any greenhouse gas, and a clean school bus is one that reduces emissions and is operated entirely or in part using an alternative fuel or is a zero-emission bus. | O46: EPA is allowed to prioritize applications that will replace buses serving high-need local education agencies, Tribal Schools, and rural or low-income areas to further support Justice40 goals. In addition, EPA will focus education and outreach efforts on underserved communities, including partnering with stakeholders to reach communities that may have never applied for a Federal grant or rebate. | P46: For additional information on planning effectively for clean school bus fleets, see this guide here: https://www.wri.org/insights/how-states-can-transition-electric-school-buses | Q46: The maximum rebate amount per bus is dependent on (1) the bus fuel type, (2) the bus size, and (3) whether the school district to be served by the buses meets one or more prioritization criteria. | R46: Transportation | S46: Electric Vehicles/Charging Equipment, Public Transit, Energy Storage, Clean Fuels | T46: Implementation/Construction | U46: Grant - Competitive/Discretionary | V46: State, Municipality, Public Agency/Local Authority, Tribal
A47: Existing - IIJA Increase | B47: Carbon Dioxide Transportation Infrastructure Finance and Innovation Act Program (CIFIA) & Future Growth Grants | C47: To provide secured loans or loan guarantee to projects (of at least $100m) involving common carrier carbon dioxide transportation infrastructure or associated equipment, including pipeline, shipping, rail, or other transportation infrastructure and associated equipment, that will transport or handle carbon dioxide captured from anthropogenic sources or ambient air. | D47: Department of Energy (DOE) | E47: Loan Programs Office | F47: Loan-eligible projects must be greater than $100M. Grants must (A) attract public or private investment, (B) enable a project to proceed at an earlier date, or (C) reduce the lifecycle costs (including debt service costs) of the project. Future Growth Grants may only pay the costs of any additional flow rate capacity of a carbon dioxide transportation infrastructure asset. | G47: 20% match required for Future Growth Grants | H47: 2100000000 | I47: Up to 100% of development phase activities; max loan of 80% of total project costs; max loan maturity of 35 years | J47: N/A | K47: N/A | L47: Expected 4th quarter 2022 | M47: CIFIA will help finance the development of carbon capture, utilization, and storage infrastructure to reduce CO2 emissions. Extracting CO2 directly from the atmosphere has the potential to act as an important tool to achieving a net-zero future, yet utilizing such systems can be costly. Improving technology can help to address the cost issue and further reduce the carbon emissions. | O47: DOE will enable geographical diversity in associated projects that capture carbon dioxide from anthropogenic sources or ambient air, with the goal of enabling projects in all major carbon dioxide-emitting regions of the United States. | P47: N/A | Q47: N/A | R47: Industry | S47: Carbon Capture & Storage (CCS), Clean Manufacturing & Supply Chain | T47: Planning, Design/Engineering, Implementation/Construction, Any or All | U47: Loan, Grant - Competitive/Discretionary | V47: State, Municipality, Public Agency/Local Authority
A48: Existing - Increase | B48: Combined Heat and Power Technical Assistance Partnership Program (CHP TAP) | C48: To encourage deployment of combined heat and power, waste heat to power, and efficient district energy technologies by providing education and outreach to building, industry, and utility professionals, state and local policymakers, and other individuals and organizations as relevant. Support also includes onsite assessments and engineering support in addition to general informational activities. Redesignates the Clean Energy Application Centers of DOE as the CHP Technical Assistance Program. | D48: Department of Energy (DOE) | E48: Advanced Manufacturing Office | F48: Eligible applicants include institutions of higher education, research centers, and other appropriate institutions to ensure the continued operations and effectiveness of the regional CHP Technical Assistance Partnerships. | G48: Not required | H48: 12000000 | I48: N/A | J48: N/A | K48: N/A | L48: Rolling, funding expires 2025 | M48: Combined heat and power, also known as cogeneration, improves energy efficiency by capturing heat that is otherwise lost during the electric power generation process and uses this heat for heating and cooling services. CHP operates at higher efficiency levels than when heat and electricity are provided separately and may use both fossil and renewable fuels. Decarbonization strategies supported by this program include identifying candidates for the deployment of CHP technologies, hybrid renewable-CHP technologies, biomass CHP, microgrids, and clean energy. Education and outreach activities provided to building, industrial, and electric and natural gas utility professionals; state and local policymakers; and other individuals and organizations with an interest in efficient energy use, local or opportunity fuel use, resiliency, or energy security, microgrids, and district energy. | O48: See the "Equity Design Considerations for Federal Funding" for general considerations and additional sector-based resources: https://cityrenewables.org/resources/equity-design-considerations-for-federal-funding/ | P48: Funding will continue to go through ten existing CHP Technical Assistance Partnerships. Local entities with an interest in CHP support and assessments should reach out to their regional contact: https://betterbuildingssolutioncenter.energy.gov/chp/chp-taps | Q48: N/A | R48: Industry, Buildings, Electricity | S48: Renewable Energy, Community Resiliency | T48: Planning, Design/Engineering | U48: Technical Assistance | V48: State, Municipality, Non-Profit, Public Agency/Local Authority, Tribal
A49: Existing - Increase | B49: Community Development Block Grants (CDBG) | C49: To develop viable urban communities by providing decent housing, a suitable living environment, and expand economic opportunities for low- and moderate-income persons. | D49: Department of Housing & Urban Development (HUD) | E49: Community Planning and Development | F49: CDBG funds may be used for activities that include, but are not limited to: acquisition of real property, relocation and demolition, rehabilitation of residential and non-residential structures, construction of public facilities and improvements, such as water and sewer facilities, streets, neighborhood centers, and the conversion of school buildings for eligible purposes, public services, within certain limits, activities relating to energy conservation and renewable energy resources, provision of assistance to profit-motivated businesses to carry out economic development and job creation/retention activities. | G49: Not required | H49: FY22 CDBG Formula Grant Allocations by Jurisdiction: https://www.hud.gov/program_offices/comm_planning/budget/fy22 | I49: Varies by city and state | J49: Allocation by formula | K49: Varies by city and state | L49: Annual Action Plans are typically due in May for next federal fiscal year | M49: CDBG funds remain one of the most versatile and well-known funding streams utilized by state and local governments. The ability to acquire, develop, rehabilitate, relocate real property assets in conjunction with eligibility to use funds for energy and renewable energy creates a vital, recurring and dependable source of public funds for physical assets. Local and state program administrators have significant opportunity to influence and guide funding towards: new construction of public facilities that with net-zero energy performance and resilience systems; development and implementation of energy efficiency programs for municipal buildings and more broadly to commercial and residential sectors; investment in clean energy projects serving municipal operations and essential community services; and workforce development and job training programs surrounding community solar and other renewable energy resources | O49: A grantee must develop and follow a detailed plan which provides for, and encourages, citizen participation and which emphasizes participation by persons of low- or moderate-income, particularly residents of predominantly low- and moderate-income neighborhoods, slum or blighted areas, and areas in which the grantee proposes to use CDBG funds. | P49: Each activity must meet one of the following national objectives for the program: benefit low- and moderate-income persons, prevention or elimination of slums or blight, or address community development needs having a particular urgency because existing conditions pose a serious and immediate threat to the health or welfare of the community for which other funding is not available. | Q49: N/A | R49: Any or All, Buildings, Electricity, Transportation, Industry, Resiliency & Recovery | S49: Renewable Energy, Energy Storage, Community Resiliency, Public Transit, Workforce Development, Retaining & Building Capacity, Building Electrification, Nature-Based Solutions | T49: Planning, Implementation/Construction, Design/Engineering, Any or All | U49: Grant - Formula/Block | V49: State, Municipality, Public Agency/Local Authority
A50: New | B50: Community Development Block Grants - CV Public Facilities (CDBG-CV) | C50: To help communities prevent, prepare for, and respond to the direct and indirect effects of the current COVID-19 pandemic and to mitigate future risk. | D50: Department of Housing & Urban Development (HUD) | E50: Community Planning and Development | F50: Projects must meet the eligible CDBG activities, CDBG national objectives, and COVID-19 relevance. The term "public facilities" is broadly interpreted under CDBG to include publicly accessible facilities that are owned by public entities or nonprofit organizations such as libraries, community centers, and places where people receive services. | G50: Not required | H50: Contact your CDBG field representative to understand local administration and availability of funding | I50: Varies by state and locality | J50: Varies by state and locality | K50: N/A | L50: N/A | M50: Facility energy resiliency is key, and ensuring that power systems can effectively filter air, provide heating, cooling, and lighting, and support medical assistance is essential for effective resiliency. For example, during the COVID-19 pandemic, Texas and other states faced numerous power outages due to Winter Storm Uri. A lack of reliable electricity, gas, and water forced many residents to congregate more closely to support each other, which limited their ability to effectively social distance. The same would be true for future heat waves and cold spells. | O50: CDBG national objectives stress that funding must benefit low- and moderate-income persons, meet community development needs having a particular urgency (urgent need), and aid in the prevention or elimination of slums or blight. Ensuring that community resiliency hubs are sited in areas that best serve the most vulnerable neighborhoods will be critical, and robust community engagement can help in that planning. Regardless of the national objective met, at least 70% of a grantee’s CDBG-CV funds must be spent on activities that meet the CDBG national objective of benefitting low- and moderate-income people. | P50: The proposed project must be designed to prevent, prepare for, or respond to the coronavirus. Grantees must document this relationship, often referred to as the "tieback," by documenting a logical relationship between the benefits of the assisted activity and the effects of the coronavirus. This tieback may relate to the current pandemic and may also relate to mitigating potential future coronavirus pandemic impacts. Applicants should ensure that they are making an effective connection between their facilities' energy resiliency and risk mitigation for COVID-19 or other pandemics and should discuss any questions with their CDBG program contact. | Q50: The public facilities activity category is generally intended to address the physical costs of improving the facility rather than provide support for operating costs or services that may be provided within the facility. | R50: Any or All, Buildings, Electricity, Transportation, Industry, Resiliency & Recovery | S50: Energy Storage, Building Weatherization, Community Resiliency, Building Electrification | T50: Planning, Implementation/Construction, Design/Engineering, Any or All | U50: Grant - Formula/Block | V50: Municipality, Public Agency/Local Authority
A51: Existing - Increase | B51: Community Development Block Grants - Disaster Recovery (CDBG-DR) | C51: To help cities, counties, and states recover from Presidentially-declared disasters. The grants focus on low-income areas, subject to availability of supplemental appropriations. | D51: Department of Housing & Urban Development (HUD) | E51: Community Planning and Development | F51: Funds are awarded to state and local governments that become grantees. Those who receive grant money include state agencies, non-profit organizations, economic development agencies, citizens, and businesses. Eligible use of funds can be found here: https://files.hudexchange.info/resources/documents/CDBG-DR-Policy-Guide.pdf | G51: Not required | H51: Depends on Stafford Act funding | I51: Varies by city and state | J51: Varies by city and state | K51: Varies by city and state | L51: As released by Congress enacting the Stafford Act after Federally Declared Disaster. | M51: States and local governments have encountered tragic circumstances and the road to recovery is long. Given those circumstances, this adaptive funding resource arrives after the wave of initial FEMA and inter-agency "response" support and provides a longer-term, strategic set of funds for spurring physical investments that prioritize the safety and economic well-being of those most vulnerable in a community. Eligible activities for CDBG-DR can be used for both resilience, recovery and decarbonization of the building, transportation, and power service sectors through infrastructure investments. For example, deploying renewable energy and incorporating energy storage into community facilities and public institutions are suitable measures to maintain reliability. Also, consider establishing local loan loss reserves (possibly in partnership with a local Community Development Financial Institution) to support financing programs for solar energy that are accessible to members of marginalized communities | O51: Developing the required Action Plan is a critical step in unlocking CDBG-DR funds for a local government or other qualified recipient (county/state), both procedural and distributional equity emphasis can be and should be employed as stakeholder input is gathered and integrated into the development of the plan and the future use of the CDBG-DR funds within a community. As set forth in HUD guidance, this process encourages local governments and other eligible entities to be proactive and inclusive in implementation. Per HUD's CDBG-DR Guidance, citizen participation is both encouraged and required throughout the CDBG-DR grant process. Each grantee’s Action Plan must include a Citizen Participation Plan which describes how the public will be informed and engaged throughout the grant’s lifecycle. For additional information on planning with equity in mind, check out HUD CDBG-DR's guidance: https://www.hudexchange.info/programs/cdbg-dr/resources/#equity-in-disaster-planning-and-recovery | P51: For additional guidance, see HUD's policy guidance and fact sheet for CDBG-DR: https://files.hudexchange.info/resources/documents/CDBG-DR-Policy-Guide.pdf https://files.hudexchange.info/resources/documents/CDBG-DR-Fact-Sheet.pdf | Q51: To determine eligibility for federal disaster declaration funding, please check FEMA's website at https://www.fema.gov/disasters/disaster-declarations. | R51: Resiliency & Recovery, Electricity, Transportation, Buildings | S51: Disaster Recovery, Renewable Energy, Energy Storage, Building Weatherization, Building Efficiency Retrofits, Community Resiliency, Building Electrification, Nature-Based Solutions | T51: Planning, Implementation/Construction, Design/Engineering, Any or All | U51: Grant - Formula/Block | V51: State, Municipality, Public Agency/Local Authority
A52: Existing - Constant | B52: Community Facilities Program (CF) | C52: To develop community facilities that provide essential services to the local community for the orderly development of the community in a primarily rural area. Funds can be used to purchase, construct, and/or improve essential community facilities, buy equipment, or pay necessary project costs. | D52: United States Department of Agriculture (USDA) | E52: Rural Development | F52: Eligible entities limited to rural areas including cities, villages, townships, and towns including Federally Recognized Tribal Lands with no more than 20,000 residents according to the latest U.S. Census Data are eligible for this program. | G52: 25%-85% match required, depending on population and the median household income of the proposed rural community | H52: Unknown | I52: N/A | J52: N/A | K52: N/A | L52: Rolling | M52: Funding is intended to construct or renovate existing community facilities. Consider focusing on fundamental improvements to the energy efficiency and electrification of existing buildings, including weatherization of support facilities like community centers, schools, libraries, prisons, or transitional housing. Upgrading community facilities with solar plus battery storage can convert such facilities into community resiliency hubs that serve as emergency power centers and cooling centers. Community centers, libraries, schools, town halls, courthouses, and small airports could all serve in this capacity for emergencies. Similarly, consider using this funding to support resiliency through battery storage (as opposed to generators) for public safety operations and other critical facilities. | O52: This funding directly helps rural communities that are removed from broader infrastructure systems. Enhancing community facilities to serve multiple purposes, including resiliency, is key as rural communities have less direct access to broader community health and safety services when disasters occur. | P52: N/A | Q52: A list of prior grantees can be found here for 2020 and 2021: https://www.communitydevelopmentgrants.info/GrantDetails.aspx?gid=14925. | R52: Electricity, Transportation, Buildings, Industry, Resiliency & Recovery | S52: Energy Storage, Building Weatherization, Building Efficiency Retrofits, Community Resiliency, Building Electrification | T52: Implementation/Construction | U52: Grant - Competitive/Discretionary, Loan | V52: Municipality, Non-Profit, Public Agency/Local Authority, Tribal, Any or All, State
A53: Existing - Decrease | B53: Community Project Funding (CPF) | C53: To support a broad array of projects for infrastructure and community development to meet local and regional needs. | D53: United States Congress | E53: U.S. House of Representatives | F53: Members of Congress may submit 15 qualified local projects to be considered by the Appropriations Committee. Among other requirements, Members must identify the "federal nexus" authorizing each project and demonstrate each project's merit and community support. For-profit entities and commemorative projects are ineligible for CPF. Each project must be for the current fiscal year only and cannot include multiyear funding. | G53: Maybe | H53: No more than 0.5% of discretionary spending | I53: N/A | J53: N/A | K53: N/A | L53: Varies by committee, but typically in April each year. Requests may be sought sooner by Congressional offices. | M53: While not explicitly oriented toward clean energy and climate action, CPF is a general source of funding that may be used to advance such projects. Accordingly, you have ample leeway to use CPF to meet your city’s needs. Projects funded in recent years include floating solar, heat pump campaigns, solar workforce training, and community cooling. To learn more about these examples, check out: https://cityrenewables.org/funding-guidance/understanding-available-funding/community-project-funding-for-local-climate-action/ | O53: This flexible program can help transform communities and create broad economic opportunity. Consult disadvantaged and vulnerable community groups to ensure your funding is allocated most equitably. | P53: While planning projects are eligible for funding, CPF prioritizes projects that are "shovel-ready" and "shovel-worthy." Coordinate early with congressional representatives to ensure that projects are aligned with their priorities, as well as community needs. Given the current political leadership in the House of Representatives, applicants may benefit by framing their projects as tangible, community-supported, and rational from a cost-benefit perspective. | Q53: CPF is similar to "earmarks," which were discontinued in 2009. This program is subject to congressional direction, rules, requirements, and process may evolve each year. For example, the Republican majority substantially redesigned the program for FY24. Note: Some representatives have abstained from participating in this request process. Check with your representative to confirm their participation and process. Funded projects can be found here: https://appropriations.house.gov/fiscal-year-2024-member-request-guidance | R53: Any or All, Electricity, Transportation, Buildings, Industry, Resiliency & Recovery | S53: Any or All, Renewable Energy, Energy Storage, Building Weatherization, Building Efficiency Retrofits, Disaster Recovery, Community Resiliency, Electric Vehicles/Charging Equipment, Public Transit, Smart Growth, Workforce Development, Retaining & Building Capacity, Clean Manufacturing & Supply Chain, Carbon Capture & Storage (CCS), Clean Fuels, Building Electrification, Brightfields, Nature-Based Solutions | T53: Planning, Implementation/Construction, Design/Engineering, Any or All | U53: Congressionally Directed Spending | V53: State, Municipality, Public Agency/Local Authority, Tribal
A54: Existing - Constant | B54: Congressionally Directed Spending | C54: To support a broad array of projects for infrastructure and community development to meet local and regional needs. | D54: United States Congress | E54: U.S. Senate | F54: Members of Congress may submit 15 qualified local projects to be considered by the Appropriations Committee. Among other requirements, Members must demonstrate each project's community support. For-profit entities and commemorative projects are ineligible for CPF. Each project must be for the current fiscal year only and cannot include multiyear funding. | G54: Maybe | H54: No more than 1% of discretionary spending | I54: N/A | J54: N/A | K54: N/A | L54: Varies by committee, but typically in April each year. Requests may be sought sooner by Congressional offices. | M54: While not explicitly oriented toward clean energy and climate action, CPF is a general source of funding that may be used to advance such projects. Accordingly, you have ample leeway to use CPF to meet your city’s needs. Projects funded in recent years include floating solar, heat pump campaigns, solar workforce training, and community cooling. To learn more about these examples, check out: https://cityrenewables.org/funding-guidance/understanding-available-funding/community-project-funding-for-local-climate-action/ | O54: This flexible program can help transform communities and create broad economic opportunity. Consult disadvantaged and vulnerable community groups to ensure your funding is allocated most equitably. | P54: While planning projects are eligible for funding, CPF prioritizes projects that are "shovel-ready" and "shovel-worthy." Coordinate early with congressional representatives to ensure that projects are aligned with their priorities, as well as community needs. | Q54: CPF is similar to "earmarks," which were discontinued in 2009. This program is subject to congressional direction, rules, requirements, and process may evolve each year. For example, the Republican majority substantially redesigned the program for FY24. Note: Some representatives have abstained from participating in this request process. Check with your representative to confirm their participation and process. Funded projects can be found here: https://appropriations.house.gov/fiscal-year-2024-member-request-guidance | R54: Any or All, Electricity, Transportation, Buildings, Industry, Resiliency & Recovery | S54: Any or All, Renewable Energy, Energy Storage, Building Weatherization, Building Efficiency Retrofits, Disaster Recovery, Community Resiliency, Electric Vehicles/Charging Equipment, Public Transit, Smart Growth, Workforce Development, Retaining & Building Capacity, Clean Manufacturing & Supply Chain, Carbon Capture & Storage (CCS), Clean Fuels, Building Electrification, Brightfields, Nature-Based Solutions | T54: Planning, Design/Engineering, Implementation/Construction | U54: Congressionally Directed Spending | V54: State, Municipality, Public Agency/Local Authority, Tribal
A55: Existing - Increase | B55: Congestion Mitigation and Air Quality Improvement Program (CMAQ) | C55: To support most low-carbon transportation modes including public transit, active transportation, electrification, and port and freight pollution mitigation. | D55: Department of Transportation (DOT) | E55: Federal Highway Administration (FHA) | F55: Proposed projects or programs must have a high level of effectiveness in reducing air pollution and be included in the metropolitan planning organization’s (MPO’s) current transportation plan and transportation improvement program (TIP) or the current state transportation improvement program (STIP) in areas without an MPO. | G55: Not required | H55: 2536000000 | I55: Unknown | J55: Unknown | K55: Unknown | L55: Rolling | M55: CMAQ supports two important US DOT goals: improving air quality and relieving congestion. Since some congestion relief projects also reduce idling, the negative emissions impacts of "stop and go" driving, and the number of vehicles on the road, they also improve air quality. Based on their emissions reductions, these types of projects are eligible for CMAQ funding. Applicants should consider projects that reduce vehicle miles traveled (VMT), encourage multi-modal transportation options, and encourage lower-emitting vehicles. The 2021 IIJA expands eligibility to shared micro-mobility (bikeshares, shared scooter systems, etc.) and heavy- or medium-duty Zero Emission Vehicles. | O55: In order to effectively and equitably reduce vehicles on the road, understand which communities lack reasonable and convenient access to transit and multi-modal options. This could include additional collaboration with frontline communities and other stakeholders to address both procedural and distributional equity concerns. | P55: The funding flows through state transportation agencies to local governments. Local governments and non-state partners should ensure that state agencies understand local and regional needs. | Q55: N/A | R55: Transportation | S55: Electric Vehicles/Charging Equipment, Public Transit, Smart Growth | T55: Planning, Implementation/Construction, Design/Engineering, Any or All | U55: Grant - Formula/Block | V55: State, Municipality, Public Agency/Local Authority, Tribal
A56: Existing - Constant | B56: Connected Communities (CC) | C56: To expand DOE’s network of grid-interactive efficient building communities nationwide and demonstrate the ability of groups of buildings and distributed energy resources (DERs) to provide cost effective grid services through demand flexibility and efficiency that maximize use of renewable resources and reduce emissions, while maintaining (if not enhancing) occupant satisfaction and productivity. | D56: Department of Energy (DOE) | E56: Office of Energy Efficiency and Renewable Energy (EERE), Building Technologies Office (BTO), and Solar Energy Technologies Office (SETO) | F56: Municipal and tribal entities are eligible prime recipients. Other organizations, including for-profit entities, non-profits, and educational entities, are eligible as both prime recipients and subrecipients. | G56: 30% match required | H56: 65000000 | I56: 7000000 | J56: 10 | K56: =H56/J56 -> 6500000 | L56: 2021-03-17 | M56: The Connected Communities funding program selects projects that will demonstrate how groups of buildings combined with other types of distributed energy resources (DERs), such as electric vehicle (EV) charging and photovoltaic (PV) generation, can reliably and cost‐effectively serve as grid assets by strategically deploying efficiency and demand flexibility. | O56: Considerations for projects include transforming multi-family buildings in affordable housing developments into grid-interactive efficient buildings (GEBs) to optimize buildings and distributed energy resources to maintain the comfort of the building occupants, lower utility bills, and reduce grid system costs. Projects focusing on historically underserved neighborhoods to reduce their energy burden and increase community resiliency are encouraged.. | P56: Find the full funding opportunity on the EERE Exchange website: https://eere-exchange.energy.gov/Default.aspx#FoaId9d24afcd-e292-4ea2-a4d3-d36e2b9dd9c7 | Q56: To learn more about "Connected Communities"-related research, see this resource here: https://connectedcommunities.lbl.gov/ The announcement of funded projects for 2021 can be found here: https://www.energy.gov/articles/doe-invests-61-million-smart-buildings-accelerate-renewable-energy-adoption-and-grid | R56: Buildings, Electricity | S56: Renewable Energy, Energy Storage, Building Weatherization, Building Efficiency Retrofits | T56: Planning, Design/Engineering, Implementation/Construction, Any or All | U56: Grant - Competitive/Discretionary | V56: Any or All, State, Municipality, Non-Profit, Public Agency/Local Authority, Tribal
A57: Existing - Increase | B57: Consolidated Rail Infrastructure and Safety Improvements Program (CRISI) | C57: To fund projects that improve the safety, efficiency, and reliability of intercity passenger and freight rail. | D57: Department of Transportation (DOT) | E57: Federal Railroad Administration (FRA) | F57: In general, eligible projects include (1) Deployment of railroad safety technology; (2) Capital projects for intercity passenger rail service; (3) Capital projects that reduce congestion and facilitate ridership; (4) Capital projects that improve short-line or regional railroad infrastructure; (5) Highway-rail grade crossing improvements; (6) Rail line relocation and improvement projects; (7) Regional rail and corridor service development plans and environmental analyses; (8) Enhancement of multimodal connections; (9) Development and implementation of a safety program or institute; (10) Research to advance rail related capital, operations, or safety improvements; and (11) Workforce development and training activities. | G57: 20% match required | H57: 359737500 | I57: N/A | J57: N/A | K57: N/A | L57: 2021-11-29 | M57: Consistent with Biden-Harris Administration priorities, DOT seeks to fund projects that address climate change impacts and environmental justice. Projects should include components that reduce emissions, promote energy efficiency, increase resiliency, and recycle or redevelop existing infrastructure. | O57: DOT encourages applications that would direct resources and benefits towards low-income communities, disadvantaged communities, or communities underserved by affordable transportation. Projects should include components that improve or expand transportation options, and mitigate the safety risks and detrimental quality of life effects that rail lines can have on communities, particularly low-income areas and communities of color. Consistent with the Rural Opportunities to Use Transportation for Economic Success (R.O.U.T.E.S.) initiative, DOT seeks rural projects that address deteriorating conditions and disproportionately high fatality rates on rural transportation infrastructure. Accordingly, 25% of funds are available only for rural communities. | P57: N/A | Q57: N/A | R57: Transportation | S57: Public Transit, Smart Growth, Retaining & Building Capacity | T57: Planning, Design/Engineering, Implementation/Construction, Any or All | U57: Grant - Competitive/Discretionary | V57: State, Municipality, Non-Profit, Public Agency/Local Authority
A58: New | B58: Cooperative Agreement to Facilitate Coordination Between DOE-NE and Energy Communities, Vital Constituencies, and Educational Groups | C58: To seek partners that can help NE advance its primary missions of maintaining the current nuclear fleet, developing and deploying advanced nuclear reactor technologies, and tackling spent nuclear fuel storage. These partners will, with an emphasis on environmental justice, work with local energy communities, educational entities, and other constituencies to find opportunities to accomplish the shared mission of utilizing nuclear energy to advance national and international energy, environmental, and economic needs. | D58: Department of Energy (DOE) | E58: Office of Nuclear Energy (NE) | F58: Broad eligibility | G58: Not required | H58: $480,000 in FY22 $1,600,000 total | I58: N/A | J58: 2-11 total | K58: Program A (Constituency & Community Engagement): $360,000-$600,000 over 2 years Program B (Education Programs): $120,000-$200,000 over 2 years | L58: Letter of Intent due June 29, 2022 Application due July 18, 2022 | M58: NE aims "to advance nuclear power as a resource capable of contributing toward the nation’s energy supply, environmental, and national security needs." While sometimes contentious, nuclear energy is a carbon-free method of generating electricity. | O58: This program is governed by the J40 Executive Order. NE will "work with partners to reach out to underserved communities that could benefit from nuclear energy projects ensuring that the growth clean energy projects produce is equitably delivered." Program A authorizes applicants to foster engagement [with disadvantaged] energy communities. Program B authorizes applicants to (1) develop policy to support just and equitable deployment of nuclear technology and the siting of spent fuel; (2) synthesize and communicate research allowing communities to better understand and deploy nuclear technologies; and (3) engage with underserved communities to promote an equitable distribution of opportunities in nuclear energy. | P58: Applcants will be judged based on Technical and Management Capabilities (50%) and Quality of Proposal (50%). It may be desirable (1) to award a group of organizations which represents a diversity of technical approaches, methods, Applications, and/or market segments; (2) to support complementary and/or duplicative efforts or projects; (3) that different kinds and sizes of organizations be selected for Award in order to provide a balanced programmatic effort and a variety of different technical perspectives; and (4) to award a group of projects with a broad or specific geographic distribution. | Q58: Awards under this agreement take the form of "cooperative agreements" between DE and constituent groups. | R58: Electricity | S58: Renewable Energy | T58: Planning | U58: Technical Assistance, Grant - Competitive/Discretionary | V58: State, Municipality, Non-Profit, Public Agency/Local Authority, Tribal, Any or All
A59: New | B59: Coordination of Energy Retrofitting Assistance for Schools (Energy Act) | C59: To review federal opportunities and programs for schools and provide streamlined communication and technical assistance for states, local education agencies, local governments and non-profits on developing and financing renewable energy, energy efficiency, and energy retrofits. Will include development of a single resource website. | D59: Department of Energy (DOE) | E59: Office of Energy Efficiency & Renewable Energy (EERE) | F59: Eligible entities include tribal schools and universities, a postsecondary vocational institution, higher education schools, and schools operated by the Bureau of Indian Education. | G59: Not required | H59: N/A | I59: N/A | J59: N/A | K59: N/A | L59: N/A | M59: No new funding opportunities will be available for schools immediately. However, increased federal support for energy efficiency, renewable energy, and energy retrofit projects at schools is a long-term goal of the coordination effort. Decarbonization strategies at this time may include project planning for future funding opportunities and technical assistance for energy efficiency, renewable energy, and energy retrofit projects at schools. | O59: Consider prioritizing schools and educational institutions that serve disadvantaged students, as appropriate. This may include criteria based on local indoor and outdoor air quality, percentage of students receiving free or reduced lunch, schools in areas with high rates of childhood asthma and other health metrics, and other criteria as appropriate. | P59: Long-term goals include more effective use of federal opportunities, partnerships with state and local entities to support the initiation of projects, and technical assistance for States, local educational agencies, and schools to help develop and finance energy efficiency, renewable energy, and energy retrofitting projects. | Q59: This effort is intended to increase the accessibility of existing federal programs for energy efficiency, renewable energy, and energy retrofitting projects for schools. It will not result in new funding opportunities for schools immediately, but aims to increase coordination, education, and outreach from existing federal programs for schools from the USDA, DOE, Treasury, the IRS, the EPA, and other appropriate federal entities. | R59: Electricity, Buildings | S59: Renewable Energy, Energy Storage, Building Weatherization, Building Efficiency Retrofits, Building Electrification | U59: Technical Assistance | V59: State, Municipality, Non-Profit, Public Agency/Local Authority, Tribal
A60: New - IIJA | B60: Building Codes Implementation for Efficiency and Resilience | C60: To enable sustained, cost-effective implementation of updated building energy codes to save customers money on their energy bills. | D60: Department of Energy (DOE) | E60: Office of Energy Efficiency & Renewable Energy (EERE) | F60: Eligible Uses: (A) To create or enable State or regional partnerships to provide training and material; (B) to collect and disseminate quantitative data on construction and codes implementation; (C) to develop and implement a plan for highly effective codes implementation, including measuring compliance; (D) to address various implementation needs in rural, suburban, and urban areas; and (E) to implement updates in energy codes. | G60: TBA | H60: 225000000 | I60: N/A | J60: TBA | K60: TBA | L60: Expected end of 2022 | M60: Municipalities can implement stricter energy codes to reduce emissions from buildings, one of the single largest contributing sectors to climate change. Codes can regulate electric/gas systems, appliances, etc. | O60: Updating building energy codes can enhance energy efficiency, reduce energy burdens, address split incentive situations between tenants and landlords, and make everyday living expenses more affordable for all. Energy codes can reduce the amount of gas burned in the home, a health hazard that disproportionately affects underserved groups. Codes can also address update baseline standards that particular impact structures in underserved communities.Learn more here: https://newbuildings.org/energy-efficiency-and-equity/ | P60: N/A | Q60: $225,000,000 in funding available until expended. | R60: Buildings | S60: Renewable Energy, Energy Storage, Building Weatherization, Building Efficiency Retrofits, Building Electrification | T60: Planning, Design/Engineering, Implementation/Construction, Any or All | U60: Grant - Competitive/Discretionary | V60: State, Municipality, Non-Profit
A61: Existing - IIJA Increase | B61: Deployment of Technologies to Enhance Grid Flexibility (Smart Grid Investment Grant Program) | C61: To fund grid investments that provide flexibility and help quickly rebalance the electrical system, facilitate the aggregation or integration of distributed energy resources, provide energy storage, provide voltage support, and anticipate and mitigate impacts of extreme weather events or natural disasters on grid resilience. | D61: Department of Energy (DOE) | E61: Office of Electricity (OE) | F61: Eligible applicants include electric utilities, such as investor-owned utilities, municipality-owned utilities; Load serving entities, or load distribution companies, which provide electricity distribution services; Retail distributors or marketers of electricity which sell electricity to consumers; System operators which coordinate, control, and monitor the operation of the electrical power transmission systems within a single state or region; and Manufacturers of appliances and equipment to enable smart grid functionalities. Projects must promote the goal of deployment, including development of component technologies. | G61: New program, more information forthcoming. | H61: 600000000 | I61: TBA | J61: TBA | K61: TBA | L61: Expected end of 2022 | M61: This program helps to implement the necessary upgrades to the electric grid enabling it to work more efficiently and be more resilient, as well as making it capable to effectively integrate renewable and energy efficient technologies and demand management practices. Applicants should partner with utilities to identify local and regional needs. | O61: Applicants should consider partnering with utilities to train a next-generation smart grid workforce. | P61: N/A | Q61: Original program details can be found here: https://www.smartgrid.gov/recovery_act/overview/smart_grid_investment_grant_program.html. IIJA-specific updates are forthcoming. | R61: Electricity | S61: Energy Storage, Community Resiliency, Electric Grid Upgrades | T61: Implementation/Construction | U61: Grant - Competitive/Discretionary | V61: Municipality, Public Agency/Local Authority
A62: Existing - Increase | B62: Diesel Emissions Reduction Act (DERA) -Tribal and Insular Areas Grants | C62: To achieve significant reductions in diesel emissions and exposure, particularly from fleets operating in areas designated by the Administrator as poor air quality areas. | D62: Environmental Protection Agency (EPA) | E62: Diesel Emissions Reduction Act (DERA) | F62: Eligible entities include tribal governments (or intertribal consortia) and Alaska Native villages, and insular area government agencies, which have jurisdiction over transportation or air quality. Insular areas include the U.S. Virgin Islands, Guam, American Samoa, and the Commonwealth of the Northern Mariana Islands. | G62: Not required | H62: 8000000 | I62: 800000 | J62: 15 | K62: =H62/J62 -> 533333.3333 | L62: 2022-10-26 | M62: Consider replacing eligible vehicles to electric engines. These include: school buses; Class 5 – Class 8 heavy-duty highway vehicles; Locomotive engines; marine engines; non-road engines, equipment or vehicles used in construction, handling of cargo (including at ports or airports), agriculture, mining or energy production (including stationary generators and pumps). | O62: Consider prioritizing bus fleet electrification that serve disadvantaged communities who historically breathe disproportionately less healthy air. | P62: Eligible vehicles for replacement must be fully operational; the participating fleet owner must have owned and operated the vehicle during the 2 years prior to upgrade; the existing vehicle must have at least 3 years of remaining life at the time of upgrade (remaining life is the fleet owner’s estimate of the number of years until the unit would have been retired from service if the unit were not being upgraded or scrapped because of the grant funding); highway usage must have reached 7,000 miles/year during 2 years prior to upgrade; school buses may use mileage from 2019 (due to COVID limitations/restrictions). | Q62: N/A | R62: Transportation, Industry | S62: Electric Vehicles/Charging Equipment, Public Transit, Clean Fuels | T62: Implementation/Construction | U62: Grant - Competitive/Discretionary | V62: Tribal, Public Agency/Local Authority
A63: Existing - Increase | B63: Diesel Emissions Reduction Act (DERA) National Grants | C63: To achieve significant reductions in diesel emissions and exposure, particularly from fleets operating in areas designated by the Administrator as poor air quality areas. | D63: Environmental Protection Agency (EPA) | E63: Diesel Emissions Reduction Act (DERA) | F63: Eligible applicants include 1) regional, state, local or tribal agencies/consortia or port authorities with jurisdiction over transportation or air quality, and 2) nonprofit organizations or institutions that represent or provide pollution reduction or educational services to persons or organizations that own or operate diesel fleets. | G63: 55% match required for vehicle or equipment replacement with zero-tailpipe emissions | H63: 46000000 | I63: 4000000 | J63: 80 | K63: =H63/J63 -> 575000 | L63: NOFO expected mid-2023 | M63: Consider replacing eligible vehicles to electric engines. These include: school buses; Class 5 – Class 8 heavy-duty highway vehicles; Locomotive engines; marine engines; non-road engines, equipment or vehicles used in construction, handling of cargo (including at ports or airports), agriculture, mining or energy production (including stationary generators and pumps). | O63: Consider prioritizing bus fleet electrification that serve disadvantaged communities who historically breathe disproportionately less healthy air and other vehicles that regularly service communities (garbage, recycling, transit, etc.). | P63: Eligible vehicles for replacement must be fully operational; the participating fleet owner must have owned and operated the vehicle during the 2 years prior to upgrade; the existing vehicle must have at least 3 years of remaining life at the time of upgrade (remaining life is the fleet owner’s estimate of the number of years until the unit would have been retired from service if the unit were not being upgraded or scrapped because of the grant funding); highway usage must have reached 7,000 miles/year during 2 years prior to upgrade; school buses may use mileage from 2019 (due to COVID limitations/restrictions). | Q63: N/A | R63: Transportation, Industry | S63: Electric Vehicles/Charging Equipment, Public Transit, Clean Fuels | T63: Implementation/Construction | U63: Grant - Competitive/Discretionary | V63: State, Municipality, Non-Profit, Public Agency/Local Authority, Tribal, Any or All
A64: Existing - Constant | B64: Disaster Recovery (DR) Supplemental Funding | C64: To help communities and regions devise and implement long-term economic recovery strategies through a variety of non-construction and construction projects. | D64: Department of Commerce | E64: Economic Development Administration (EDA) | F64: Projects must be in areas where a Presidential declaration of a major disaster was issued under the Robert T. Stafford Disaster Relief and Emergency Assistance Act as a result of natural disasters occurring in the calendar year 2018, and tornadoes and floods occurring in the calendar year 2019. | G64: Minimum match of 20%, varying based on level of economic distress | H64: 587000000 | I64: N/A | J64: N/A | K64: N/A | L64: Rolling | M64: Projects must address local and/or regional economic development needs and priorities. When aligning decarbonization strategies with economic development needs, consider planning to rebuild/enhance public transit system resiliency and access to major commercial centers and emerging economic hubs; providing weatherization and energy storage solutions to enhance the resiliency of grocery stores, shops, and other businesses to reduce interruptions to business operations; and adapting large commercial areas (i.e. shopping malls) into resiliency hubs/shelters with on-site solar and energy storage. EDA also funds strategic planning grants to develop, update, or refine a Comprehensive Economic Development Strategy (CEDS) to alleviate long-term economic deterioration or other economic disruptions. This is an opportunity for communities to update how energy and transportation systems are supporting the goods, services, and jobs of the region. | O64: Communities in transition due to closing industries, major technological changes, or repeated disasters can use this funding to reduce burdens on historically marginalized communities especially. Focusing clean energy solutions like solar plus storage on localized grocery stores and other shops can help support businesses and residents during future disasters. | P64: EDA encourages the submission of applications based on long-term, regionally oriented, coordinated and collaborative economic development or redevelopment strategies that foster economic growth and resilience. EDA will regard applications that are substantively supported by such strategies as more competitive, while applications for rebuilding damaged infrastructure that are not demonstrably supported by or otherwise related to a long-term plan for economic growth and resilience will not be considered competitive. Reaching out to EDA regional contacts can help ensure that your project is eligible for funding and in line with EDA regional priorities. | Q64: To determine eligibility for federal disaster declaration funding, please check FEMA's website at https://www.fema.gov/disasters/disaster-declarations. | R64: Electricity, Transportation, Buildings, Industry, Resiliency & Recovery | S64: Disaster Recovery, Community Resiliency, Retaining & Building Capacity, Energy Storage, Building Weatherization, Public Transit | T64: Planning, Design/Engineering, Implementation/Construction, Any or All | U64: Grant - Competitive/Discretionary | V64: Municipality, Non-Profit, Public Agency/Local Authority, Tribal, Any or All, State
A65: Existing - Increase | B65: Disaster Relief Fund (DRF, American Rescue Plan Act) | C65: To carry out the purposes of the Disaster Relief Fund (DRF) for costs associated with major disaster declarations. Through the DRF, FEMA can fund authorized federal disaster support activities as well as eligible state, territorial, tribal, and local actions such as providing emergency protection and debris removal. The DRF also funds: 1. The repair and restoration of qualifying disaster-damaged public infrastructure 2. Hazard mitigation initiatives 3. Financial assistance to eligible disaster survivors 4. Fire Management Assistance Grants for qualifying large forest or grassland wildfires | D65: Department of Homeland Security (DHS) | E65: Federal Emergency Management Agency (FEMA) | F65: Eligibility is determined by a federal disaster declaration. | G65: Cost share determined by major disaster declaration, typically 75%, although that has changed to 100% for COVID-19 related disasters | H65: 50000000000 | I65: N/A | J65: N/A | K65: N/A | L65: Rolling | M65: A broad range of disaster recovery and climate resilience projects may be considered in Disaster Recovery Funds. Consider projects that build long-term resiliency and climate adaptation while reducing greenhouse gas emissions and/or sequestering carbon. This may include natural infrastructure and ecosystem restoration in flood-prone areas; renewable energy and energy storage investments that may be used for critical infrastructure during a disaster; and wildfire hazard mitigation activities. | O65: Consider prioritizing equity throughout the disaster recovery process, including planning and investments in at-risk communities. | P65: Deadlines are determined by the disaster. Eligible entities should contact their local FEMA contacts to understand what limitations or time constraints exist for eligible funding. | Q65: The Disaster Relief Fund (DRF) is an appropriation against which FEMA can direct, coordinate, manage, and fund eligible response and recovery efforts associated with domestic major disasters and emergencies that overwhelm State resources pursuant to the Robert T. Stafford Disaster Relief and Emergency Assistance Act. To determine eligibility for federal disaster declaration funding, please check FEMA's website at https://www.fema.gov/disasters/disaster-declarations. | R65: Resiliency & Recovery | S65: Disaster Recovery | T65: Planning, Design/Engineering, Implementation/Construction, Any or All | U65: Grant - Competitive/Discretionary | V65: State, Municipality, Tribal
A66: New | B66: Drivers and Environmental Impacts of Energy Transitions in Underserved Communities | C66: To engage in community-driven research that will address the drivers and environmental impacts of energy transitions in underserved communities. | D66: Environmental Protection Agency (EPA) | E66: N/A | F66: Nonprofit institutions/organizations, public and private institutions of higher education, and hospitals located in the U.S. and its territories or possessions; state and local governments; Federally Recognized Indian Tribal Governments; and U.S. territories or possessions are eligible to apply. | G66: Not required | H66: 10000000 | I66: 1125000 | J66: 6 | K66: N/A | L66: 2022-04-28 | M66: The program seeks to address the following research areas: 1) Understanding how air quality, the environment, and public health in underserved communities might be improved through the transformations of the energy sector; 2) approaches or strategies to ensure that energy transitions provide air quality benefits and reduce environmental risks while meeting the energy and mobility needs of underserved communities; 3) Understanding how socioeconomic, cultural, behavioral, institutional, and systems factors drive individual and household decisions and impact decision-making regarding the adoption of renewable energy sources, energy-efficient technologies and building modifications, and new transportation modes in underserved communities;and 4) Identifying and evaluating potential multi-pollutant and/or multi-sectoral approaches to achieve climate, air quality, and other environmental goal. | O66: For purposes of this competition and the evaluation of applications, “underserved communities” refers to populations sharing a particular characteristic, as well as geographic communities, that have been systematically denied a full opportunity to participate in aspects of economic, social, and civic life, including people of color, low income, rural, tribal, indigenous, and other populations that may be disproportionately impacted by environmental harms and risks. | P66: N/A | Q66: In addition to regular awards, this solicitation includes the opportunity for early career awards. The purpose of the early career award is to fund research projects smaller in scope and budget by early career PIs. | R66: Electricity, Transportation, Buildings | S66: Renewable Energy, Energy Storage, Building Efficiency Retrofits, Building Weatherization, Public Transit, Electric Vehicles/Charging Equipment, Building Electrification | T66: Planning, Design/Engineering | U66: Grant - Competitive/Discretionary | V66: State, Municipality, Non-Profit, Public Agency/Local Authority, Tribal, Any or All
A67: New | B67: Economic Adjustment Assistance (EAA, American Recue Plan) | C67: To plan, build, innovate, and put people back to work through construction or non-construction projects designed to meet local needs. This flexible program supports a wide range of technical, planning, workforce development, entrepreneurship, and public works and infrastructure projects. | D67: Department of Commerce | E67: Economic Development Administration (EDA) | F67: States, local governments (including cities, townships, counties), special district governments (e.g. public utilities), federally recognized tribal governments, nonprofits, institutions of higher education. | G67: 20% match required, though EDA has discretion to fund up to 100% | H67: 500000000 | I67: 10000000 | J67: 250 | K67: $650,000 (ranging from $150,000 to $2,500,000) | L67: Rolling, early application recommended | M67: The NOFO includes the following consideration for climate and resiliency, broadly defined: "The extent to which the project is resilient to future pandemics or other sudden and severe economic dislocations, as defined in section A.4 (e.g., closures of major local employers, climate change), and resilience is integrated into the project scope of work;". Accordingly, decarbonization options may include workforce training and development for 1) industries impacted by climate change and 2) industries and major local employers impacted by the energy transition. Explore integrating new clean energy and EV supply chain manufacturing hubs/business parks into regional economic development plans. Where possible, consider whether partnerships with universities or community colleges could be leveraged to launch an economic diversification and workforce development strategy to promote and enhance the growth of emerging clean energy industries and retain local talent. | O67: The NOFO includes the following consideration for equity: " The extent to which the application articulates a plan for ensuring that the project’s benefits are shared across all affected communities. Although not required, EDA encourages efforts to reach historically underserved areas, rural areas, minority populations, and women." | P67: Unlike with past EDA grant programs, applications that provide more match may be more competitive. | Q67: This is the EDA's most flexible funding program under the American Rescue Plan. | R67: Resiliency & Recovery | S67: Community Resiliency, Workforce Development, Retaining & Building Capacity | T67: Planning, Implementation/Construction | U67: Grant - Competitive/Discretionary | V67: State, Municipality, Non-Profit, Public Agency/Local Authority, Tribal, Any or All
A68: Existing - Increase | B68: Economic Adjustment Assistance Program (EAA) - Assistance to Coal Communities (ACC) | C68: To produce multiple economic and workforce development outcomes for workers and communities negatively impacted by changes in the coal economy, such as promoting regional economic growth and diversification, new job creation, and reemployment opportunities for displaced coal economy workers. | D68: Department of Commerce | E68: Economic Development Administration (EDA) | F68: There is no pre-defined list of impacted coal communities. Projects must be consistent with the region’s current Comprehensive Economic Development Strategy (CEDS) or equivalent EDA-accepted regional economic development strategy that meets EDA’s CEDS or strategy requirements. | G68: Minimum match of 20%, varying based on level of economic distress | H68: 48000000 | I68: 30000000 | J68: N/A | K68: $500,000 to $3 million for implementation projects and from $100,000 to $350,000 for planning activities | L68: Rolling, early application recommended | M68: This funding can support the public infrastructure needed to create new or enhance existing programs for clean energy or EV supply chain opportunities. Explore integrating new clean energy and EV supply chain manufacturing hubs/business parks into regional economic development plans. Where possible, consider whether partnerships with universities or community colleges could be leveraged to launch an economic diversification and workforce development strategy to promote and enhance the growth of emerging clean energy industries and retain local talent. | O68: This is an opportunity to enhance supply chains, attract new energy and transportation sectors, and provide job training for out of work energy and industry professionals or those looking to transition to clean energy and EV supply chain related industries. This is particularly critical for communities in transition from being heavily reliant on coal. | P68: Applicants are strongly encouraged to contact the EDA representative listed for their applicable State in Section G of this NOFO before submitting an application to EDA to clarify technical matters involving their project, its alignment with EDA’s mission and Investment Priorities, and all other relevant publicly available information relating to general technical matters. | Q68: Due to the extraordinary level of interest in EDA’s CARES Act Recovery Assistance there has been an unusually high volume of applications received. Prospective applicants are strongly encouraged to contact their applicable EDA Regional Office representatives to discuss their needs and availability of funds. Prospective applicants can find current contact information for EDA Regional Office staff at https://www.eda.gov/contact/. | R68: Any or All, Electricity, Transportation, Buildings, Industry, Resiliency & Recovery | S68: Workforce Development, Retaining & Building Capacity, Community Resiliency | T68: Planning, Design/Engineering, Implementation/Construction, Any or All | U68: Grant - Competitive/Discretionary | V68: Municipality, Non-Profit, Public Agency/Local Authority, Tribal, Any or All, State
A69: Existing - Increase | B69: Economic Adjustment Assistance Program (EAA) - Nuclear Closure Communities (NCC) | C69: To support communities impacted by closures of nuclear power plants throughout the United States have had a significant impact on the economic foundations of surrounding communities through sudden job losses and a reduction to the local tax base. | D69: Department of Commerce | E69: Economic Development Administration (EDA) | F69: Projects must meet the NCC Special Need eligibility criterion in Section C.3.b.k. NCC funds may be used to make awards for any activity eligible for an award under EAA, including but not limited to early-stage strategic planning activities, public works (construction) investments, and economic diversification initiatives. | G69: Minimum match of 20%, varying based on level of economic distress | H69: 16500000 | I69: $2,000,000 for implementation; $350,000 for planning | J69: N/A | K69: $500,000 to $3 million for implementation projects and from $100,000 to $350,000 for planning activities | L69: Rolling, early application recommended | M69: This funding can support the public infrastructure needed to create new or enhance existing programs for clean energy or EV supply chain opportunities. Explore integrating new clean energy and EV supply chain manufacturing hubs/business parks into regional economic development plans. | O69: This is an opportunity to enhance supply chains, attract new energy and transportation sectors, and provide job training for out of work energy and industry professionals or those looking to transition to clean energy and EV supply chain related industries. This is particularly critical for communities in transition from being heavily reliant on nuclear plants. | P69: Applicants are strongly encouraged to contact the EDA representative listed for their applicable State in Section G of this NOFO before submitting an application to EDA to clarify technical matters involving their project, its alignment with EDA’s mission and Investment Priorities, and all other relevant publicly available information relating to general technical matters. | Q69: Due to the extraordinary level of interest in EDA’s CARES Act Recovery Assistance there has been an unusually high volume of applications received. Prospective applicants are strongly encouraged to contact their applicable EDA Regional Office representatives to discuss their needs and availability of funds. Prospective applicants can find current contact information for EDA Regional Office staff at https://www.eda.gov/contact/. | R69: Any or All, Electricity, Transportation, Buildings, Industry, Resiliency & Recovery | S69: Workforce Development, Retaining & Building Capacity, Community Resiliency | T69: Planning, Design/Engineering, Implementation/Construction, Any or All | U69: Grant - Competitive/Discretionary | V69: Municipality, Non-Profit, Public Agency/Local Authority, Tribal, Any or All, State
A70: Existing - Increase | B70: Economic Adjustment Assistance Program (EAA) (including CARES ACT funding) | C70: To help communities experiencing or anticipating economic dislocations to plan and implement specific solutions to leverage their existing regional economic advantages to support economic development and job creation. | D70: Department of Commerce | E70: Economic Development Administration (EDA) | F70: Projects must be consistent with the region’s current Comprehensive Economic Development Strategy (CEDS) or equivalent EDA-accepted regional economic development strategy that meets EDA’s CEDS or strategy requirements. | G70: Minimum match of 20%, varying based on level of economic distress | H70: 39500000 | I70: 2500000 | J70: N/A | K70: 650000 | L70: Rolling | M70: This funding can support the public infrastructure needed to create new or enhance existing programs for clean energy or EV supply chain opportunities. Explore integrating new clean energy and EV supply chain manufacturing hubs/business parks into regional economic development plans. Where possible, consider whether partnerships with universities or community colleges could be leveraged to launch an economic diversification and workforce development strategy to promote and enhance the growth of emerging clean energy industries and retain local talent. | O70: This is an opportunity to enhance supply chains, attract new energy and transportation sectors, and provide job training for out of work energy and industry professionals or those looking to transition to clean energy and EV supply chain related industries. | P70: Applicants are strongly encouraged to contact the EDA representative listed for their applicable State in Section G of this NOFO before submitting an application to EDA to clarify technical matters involving their project, its alignment with EDA’s mission and Investment Priorities, and all other relevant publicly available information relating to general technical matters. | Q70: Due to the extraordinary level of interest in EDA’s CARES Act Recovery Assistance there has been an unusually high volume of applications received. Prospective applicants are strongly encouraged to contact their applicable EDA Regional Office representatives to discuss their needs and availability of funds. Prospective applicants can find current contact information for EDA Regional Office staff at https://www.eda.gov/contact/. | R70: Any or All, Electricity, Transportation, Buildings, Industry, Resiliency & Recovery | S70: Workforce Development, Retaining & Building Capacity, Community Resiliency | T70: Planning, Design/Engineering, Implementation/Construction, Any or All | U70: Grant - Competitive/Discretionary | V70: Municipality, Non-Profit, Public Agency/Local Authority, Tribal, Any or All, State
A71: New - IIJA | B71: Electric Drive Vehicle Battery Recycling and Second-Life Applications Program | C71: To improve the recycling rates and second-use adoption rates of electric vehicle batteries; to optimize the design and adaptability of electric vehicle batteries to make electric vehicle batteries more easily recyclable; to establish alternative supply chains for critical materials that are found in electric vehicle batteries; to reduce the cost of manufacturing, installation, purchase, operation, and maintenance of electric vehicle batteries; to improve the environmental impact of electric vehicle battery recycling processes. | D71: Department of Energy (DOE) | E71: Office of Energy Efficiency & Renewable Energy (EERE) | F71: Eligible applicants include institutions of higher education, National Laboratories, nonprofit and for-profit private entities, state and local governments, and consortia of these entities. | G71: 20% match required | H71: 60000000 | I71: 12000000 | J71: 8 | K71: 7500000 | L71: Concept paper by May 31, 2022 Full application by July 19, 2022 | M71: Battery recycling would reduce the need for carbon-intensive battery manufacturing and increase the supply of useable batteries, thereby enabling widespread electrification. | O71: In awarding grants under the Secretary shall give priority to projects that are located in geographically diverse regions of the United States and support the development or demonstration of projects in economically distressed areas. | P71: To better understand potential pathways for battery second use, check out NREL's ongoing research: https://www.nrel.gov/transportation/battery-second-use.html | Q71: DOE highlights two key topic areas: 1. Advanced Materials Separation, Scale-Up, and Reintegration for Lithium-Ion Battery Recycling for the Battery Supply Chain 2. Second Use Scale-Up Demonstration Projects | R71: Industry | S71: Clean Manufacturing & Supply Chain | T71: Planning, Design/Engineering, Implementation/Construction, Any or All | U71: Grant - Competitive/Discretionary | V71: State, Municipality, Non-Profit
A72: Existing - Increase | B72: Electric Infrastructure Loan & Loan Guarantee Program (LGP) | C72: To finance the construction of electric distribution, transmission, and generation facilities, including system improvements and replacement required to furnish and improve electric service in rural areas, as well as demand-side management, energy conservation programs, and on-grid and off-grid renewable energy systems. | D72: United States Department of Agriculture (USDA) | E72: Rural Development | F72: Check with a General Field Representative (GFR) to determine whether the proposed service area qualifies as rural. Funds may be used to finance: - Maintenance, Upgrades, Expansion, Replacement of distribution, sub transmission and headquarters (service, warehouse) facilities - Energy efficiency - Renewable energy systems | G72: Not required | H72: Loan Guarantees up to 100% | I72: None | J72: 25 | K72: 45700000 | L72: Rolling | M72: Consider utilizing this loan guarantee program for financing rural on-grid and off-grid renewable energy systems, smart meters for demand-side management, and building electrical upgrades for electrification. | O72: See the "Equity Design Considerations for Federal Funding" for general considerations and additional sector-based resources: https://cityrenewables.org/resources/equity-design-considerations-for-federal-funding/ | P72: N/A | Q72: N/A | R72: Electricity, Buildings, Resiliency & Recovery, Industry | S72: Renewable Energy, Energy Storage, Building Weatherization, Building Efficiency Retrofits, Community Resiliency, Building Electrification, Electric Grid Upgrades | T72: Implementation/Construction | U72: Loan | V72: State, Municipality, Non-Profit, Public Agency/Local Authority, Tribal, Any or All
A73: New - IIJA | B73: Electric or Low-Emitting Ferry Pilot Program | C73: To purchase electric or low-emitting ferries and the electrification of or other reduction of emissions from existing ferries. | D73: Department of Transportation (DOT) | E73: Federal Transit Administration (FTA) | F73: Eligible applicants under this program are any eligible recipient of 5307 or 5311 funding, including the entity that operates ferry service that serves the State with the largest number of Marine Highway System miles and bi-State ferry services. | G73: 20% match required | H73: 49000000 | I73: N/A | J73: 10 | K73: =H73/J73 -> 4900000 | L73: 2022-09-06 | M73: This program explicitly intends to reduce emissions from ferries and ferry fleets. | O73: Ferries provide transportation options to people in communities separated by water, and to people without personal automobiles. Ferries can be an important element of equitable, multimodal transit systems. | P73: The Federal government will cover 85% (additional 5%) of the cost of leasing or purchasing a Clean Air Act (CAA) or Americans with Disabilities Act (ADA) ferry. | Q73: At least one grant will serve the State with the largest number of Marine Highway System miles, and one grant will serve a bi-State ferry service (A) with an aging fleet; and (B) whose development will propose to advance the state of the technology toward increasing the range and capacity of zero emission power source ferries. | R73: Transportation | S73: Electric Vehicles/Charging Equipment, Public Transit, Smart Growth, Clean Fuels | T73: Implementation/Construction | U73: Grant - Competitive/Discretionary | V73: Public Agency/Local Authority, Municipality
A74: New - IIJA | B74: Charging and Fueling Program Discretionary Grants - Community Program | C74: As part of the Electric Vehicle Charging and Refueling Infrastructure Program at least 50% of this funding must be used for a community grant program "Community Charging" where priority is given to projects that expand access to EV charging and alternative fueling infrastructure within rural areas, low- and moderate-income neighborhoods, and communities with a low ratio of private parking spaces. | D74: Department of Transportation (DOT) | E74: Federal Highway Administration (FHA) | F74: Eligible applicants include state or political subdivision of a State, Metropolitan Planning Organization, Local government, Special purpose district or public authority with a transportation function, Indian Tribe, Territory. | G74: 20% match required | H74: 350000000 | I74: 15000000 | J74: N/A | K74: N/A | L74: 2023-05-30 | M74: Community grants are focused on the installation of electric vehicle charging and alternative fuel in locations on public roads, schools, parks, and in publicly accessible parking facilities. | O74: Funding is prioritized for rural areas, low-and moderate-income neighborhoods, and communities with low ratios of private parking, or high ratios of multiunit dwellings. | P74: N/A | Q74: N/A | R74: Transportation | S74: Electric Vehicles/Charging Equipment, Community Resiliency, Clean Fuels | T74: Implementation/Construction | U74: Grant - Competitive/Discretionary | V74: State, Municipality, Public Agency/Local Authority, Tribal
A75: New - IIJA | B75: Charging and Fueling Program Discretionary Grants - Corridor Program | C75: To strategically deploy publicly accessible electric vehicle charging infrastructure and other alternative fueling infrastructure along designated alternative fuel corridors. | D75: Department of Transportation (DOT) | E75: Federal Highway Administration (FHA) | F75: Eligible applicants include state or political subdivision of a State, Metropolitan Planning Organization, Local government, Special purpose district or public authority with a transportation function, Indian Tribe, Territory. | G75: 20% match required | H75: 350000000 | I75: 1000000 | J75: N/A | K75: N/A | L75: 2023-05-30 | M75: Eligible projects under Corridor Charging component of the program umbrella specifically call out fossil-based technologies. Additional FHA guidance and clarification may be useful in understanding if competitive funds will prioritize the deployment of publicly accessible EV charging infrastructure and hydrogen over alternatives like propane and natural gas for fueling infrastructure in designated alternative fuel corridors. | O75: See the "Equity Design Considerations for Federal Funding" for general considerations and additional sector-based resources: https://cityrenewables.org/resources/equity-design-considerations-for-federal-funding/ | P75: N/A | Q75: N/A | R75: Transportation | S75: Electric Vehicles/Charging Equipment, Community Resiliency, Clean Fuels | T75: Implementation/Construction | U75: Grant - Competitive/Discretionary | V75: State, Municipality, Public Agency/Local Authority, Tribal
A76: Existing - Increase | B76: Emergency Management Performance Grants (EMPG, American Rescue Plan Act) | C76: To provide state, local, tribal and territorial emergency management agencies with the resources required for implementation of the National Preparedness System and works toward the National Preparedness Goal of a secure and resilient nation. The EMPG’s allowable costs support efforts to build and sustain core capabilities across the prevention, protection, mitigation, response and recovery mission areas. | D76: Department of Homeland Security (DHS) | E76: Federal Emergency Management Agency (FEMA) | F76: Eligible entities include state or territorial governments (the State Administrative Agency [SAA] or the state’s Emergency Management Agency [EMA]). Recipients must ensure and maintain adoption and implementation of the National Incident Management System (NIMS). Non-territorial recipients must belong to, be located in, or act as an Emergency Management Assistance Compact (EMAC) temporary member state. | G76: 50% match required | H76: 355100000 | I76: N/A | J76: 56 | K76: 0.25%-0.75% of total funding | L76: 2023-05-18 | M76: The EPMG program focuses on all-hazards emergency preparedness and is designed to build and sustain core capabilities. Consider resilience hubs and resilience facilities with solar and storage equipment, which is an allowable equipment expense. Decarbonization strategies may include disaster preparedness projects that include battery storage systems and microgrids with carbon-free generating resources. | O76: EPMG Program grants may be used to foster whole community preparedness. Examples given in the Preparedness Grants Manual including planning with stakeholders who may face particular challenges in the aftermath of a disaster, such as seniors and those with accessibility and functional needs. | P76: The FY23 NOFO may be viewed here: https://www.fema.gov/grants/preparedness/emergency-management-performance/fy-23-nofo#submission More information on eligible activities may be found in the Preparedness Grants Manual: https://www.fema.gov/grants/preparedness/manual | Q76: Emergency Management Performance Grants are allocated to 50 states and 6 other entities according to a formula. State emergency management authorities may then hold competitive sub-grant award process. An EPMG application must submit a work plan and consult with the FEMA regional manager to ensure the plan addresses state and regional priorities. To determine eligibility for federal disaster declaration funding, please check FEMA's website at https://www.fema.gov/disasters/disaster-declarations. | R76: Resiliency & Recovery | S76: Energy Storage, Disaster Recovery, Community Resiliency | T76: Planning, Design/Engineering, Implementation/Construction, Any or All | U76: Grant - Formula/Block | V76: State, Tribal
A77: Existing - Constant | B77: Emergency Relief Program (ERP) | C77: To assist public transit operators in the aftermath of an emergency or major disaster. | D77: Department of Transportation (DOT) | E77: Federal Transit Administration (FTA) | F77: Eligible recipients include states, territories, and FTA direct recipients affected by major declared disasters. | G77: 10% match required | H77: 212301048 | I77: N/A | J77: N/A | K77: N/A | L77: 2023-05-26 | M77: When possible, projects should focus less on retrofits of dirty diesel equipment and more on new zero-emission equipment. | O77: See the "Equity Design Considerations for Federal Funding" for general considerations and additional sector-based resources: https://cityrenewables.org/resources/equity-design-considerations-for-federal-funding/ | P77: The Emergency Relief Program does not have annual or permanent authorizations. Past authorizations for the program have been made by Congress following disasters. | Q77: A March 13, 2020 announcement expanded project eligibility and allows all transit providers in states where the Governor has declared an emergency related to COVID-19 to use their federal formula funds for operating expenses in addition to capital expenses, and permits operating expenses to be covered at an 80 percent federal share rather than 50 percent. An FY2020 Emergency Relief Docket was also created through which transit providers can request relief from FTA administrative and statutory requirements. An additional $212.3 million has been made available for disaster relief from disasters in 2017, and 2020-2022 | R77: Transportation, Resiliency & Recovery | S77: Public Transit, Disaster Recovery, Energy Storage, Clean Fuels | T77: Implementation/Construction | U77: Grant - Formula/Block | V77: State, Public Agency/Local Authority
A78: New - IIJA | B78: Energy Auditor Training Grant Program (State Energy Program) | C78: To provide grants to eligible States to train individuals to conduct energy audits or surveys of commercial and residential buildings to build the clean energy workforce, save customers money on their energy bills, and reduce pollution from building energy use. | D78: Department of Energy (DOE) | E78: Office of Energy Efficiency & Renewable Energy (EERE) | F78: Eligible states will have a demonstrated need for assistance for training energy auditors. Funds may cover any costs associated with individuals being trained or certified to conduct energy audits by the State or a State-certified third-party training program. Funds may also pay the wages of a trainee during the period in which they receive training and certification. | G78: TBA | H78: 40000000 | I78: 2000000 | J78: TBA | K78: TBA | L78: TBA | M78: Well-trained energy auditors are necessary to identify opportunities for energy and emissions reductions and to verify that retrofits are successful. | O78: Training programs can focus on underserved communities, providing people with high-road jobs in an evolving, in-demand field. Consider working with existing workforce training, labor, and community college programs. | P78: Maximum funding of $2,000,000 is limited on a per state basis. | Q78: N/A | R78: Buildings, Electricity | S78: Building Efficiency Retrofits, Workforce Development, Retaining & Building Capacity , Building Weatherization | T78: Implementation/Construction | U78: Grant - Competitive/Discretionary | V78: State
A79: Existing - IIJA Increase | B79: Energy Efficiency and Conservation Block Grant Program (EECBG) | C79: To directly invest in projects that develop, promote, implement, and manage energy efficiency and conservation, including clean energy. | D79: Department of Energy (DOE) | E79: Office of Energy Efficiency & Renewable Energy (EERE) | F79: Cities, towns and villages with a population of at least 35,000 are eligible to apply; at a minimum, the ten largest cities in each state, including Puerto Rico, regardless of population, are eligible to apply; all other cities, villages, and towns can apply for EECBG funds through their state. | G79: No match required | H79: 550000000 | I79: N/A | J79: N/A | K79: Varies by municipality | L79: Pre-award information sheet due by July 31, 2023 | M79: Consider using funds to enhance or enable innovative energy financing strategies that spread project costs out over time or capture additional incentives. These may be more complex, but can often extend the impact - bill savings and energy savings were at least 2X higher in the original EECBG program than other efforts when EECBG funds were utilized for more ambitious and/or "complex" financial incentive programs. | O79: EECBG can help provide technical assistance to assist disadvantaged communities who lack the capacity or resources to put forward competitive applications. | P79: As an alternative to traditional grants, DOE will providing Local and Tribal governments with the option to apply for vouchers to receive technical assistance and/or equipment rebates. Vouchers provide a streamlined application process with fewer administrative requirements and allow Local and Tribal governments to take advantage of customized technical expertise or get reimbursed for eligible equipment. Eligible entities may choose to use a voucher or a grant, but not both. Further instructions on how to apply for vouchers will be forthcoming. Voucher applicants do NOT need to follow the grant application process. For additional information on past program use, how EECBG funding was used to accelerate partners, and case studies, check out: http://www.usmayors.org/wp-content/uploads/2017/06/0227-report-eecbgsurvey.pdf | Q79: EECBG was first passed in 2007, amended with the American Reinvestment and Recovery Act (ARRA) of 2009, and expired in 2016. The Infrastructure Investment and Jobs Act (IIJA) of 2021 recapitalizes the program and expands upon previous eligibility. $550,000,000 in funding available until expended. | R79: Electricity, Buildings | S79: Renewable Energy, Energy Storage, Building Weatherization, Building Efficiency Retrofits, Retaining & Building Capacity , Building Electrification | T79: Planning, Design/Engineering, Implementation/Construction, Any or All | U79: Grant - Formula/Block | V79: State, Municipality, Tribal
A80: New - IIJA | B80: Renew America's Nonprofits Program | C80: To fund a pilot program for materials (including products, equipment, or systems) that result in a reduction in use by a nonprofit organization of energy or fuel. | D80: Department of Energy (DOE) | E80: Office of Energy Efficiency & Renewable Energy (EERE) | F80: Eligible entities include 501(c)3 non-profits. Priority will be given to applicants based on (A) the energy savings achieved; (B) the cost effectiveness of the use of energy-efficiency materials; (C) an effective plan for evaluation, measurement, and verification of energy savings; and (D) the financial need of the applicant. | G80: TBA | H80: 50000000 | I80: 200000 | J80: TBA | K80: TBA | L80: Available until expended | M80: The program helps to deploy energy-efficient materials in non-profit buildings. These projects may demonstrate the success of energy efficient materials, encouraging adoption in surrounding buildings. | O80: Non-profits are often unable to pay for such capital improvements on their own. Supported non-profits may include community organizations in underserved areas. | P80: More information forthcoming in May 2023 | Q80: Performance-based evaluation criteria include (A) energy savings; (B) cost-effectiveness of materials used; (C) plans for evaluation, measurement, and verification of energy savings; and (D) financial need. $50,000,000 in funding available until expended | R80: Buildings | S80: Building Weatherization, Building Efficiency Retrofits | T80: Implementation/Construction | U80: Grant - Competitive/Discretionary | V80: Non-Profit
A81: New - IIJA | B81: Energy Efficiency Revolving Loan Fund (RLF) Capitalization Grant Program (State Energy Program) | C81: To provide capitalization grants to states to establish a revolving loan fund under which the state shall provide loans and grants for energy efficiency audits, upgrades, and retrofits to increase energy efficiency and improve the comfort of buildings. | D81: Department of Energy (DOE) | E81: Office of State and Community Energy Programs (SCEP) | F81: Eligible uses include residential and commercial energy audits, upgrades, and retrofits. 40% of capitalization grants will be allocated, by formula, to states eligible for funding under the State Energy Program. 60% will be allocated to the 15 states with highest per-capita residential and commercial sector energy consumption or the highest annual per capita energy-related carbon emissions. | G81: Not required | H81: 250000000 | I81: N/A | J81: N/A | K81: N/A | L81: April 2023 | M81: Many of the programs funded through this program (namely, energy audits) are essential to ensure that retrofits are necessary and effective. | O81: A state that receives a capitalization grant may use up to 25% of funds to provide grants or technical assistance to eligible entities. Eligible entities include businesses with fewer than 500 employees and low-income owners of residential buildings. | P81: N/A | R81: Buildings | S81: Building Weatherization, Building Efficiency Retrofits | T81: Implementation/Construction | U81: Loan, Grant - Competitive/Discretionary, Technical Assistance | V81: State
A82: New | B82: Energy Storage Demonstration and Pilot Grant Program | C82: To research and develop large-scale energy storage systems. There will be at least three demonstration projects. | D82: Department of Energy (DOE) | E82: Office of Clean Energy Demonstrations (OCED) | F82: Eligible entities include a State Energy Office, an Indian Tribe or tribal organization, an institution of higher education, an electric utility (including IOUs, POUs, and rural electric cooperatives), and a private energy storage company. | G82: Not required | H82: 355000000 | I82: N/A | J82: 3 | K82: =H82/J82 -> 118333333.3 | L82: Expected Q3 2023 | M82: Each project under this new energy storage grant program must meet at least one objective out of the program’s list of objectives. These objectives include: energy storage services that improve the reliability, resiliency, and optimization of transmission or distribution system operation; to supply energy at peak periods and to reduce peak loads; to integrate renewable energy resource production; to enable the use of stored energy in forms other than electricity to support the natural gas system and other industrial processes; to integrate fast charging of electric vehicles; and to improve energy efficiency. To reduce peak loads of homes and businesses and increase the feasibility of microgrids (grid-connected or islanded mode). | O82: See the "Equity Design Considerations for Federal Funding" for general considerations and additional sector-based resources: https://cityrenewables.org/resources/equity-design-considerations-for-federal-funding/ | P82: While no matching funds are required, priority will be given to those leveraging non-federal funding. Consider projects that have the potential to scale up in the nation and explicitly address the intermittent supply risks of renewable energy resources. | Q82: This is part of the larger Energy Storage System Research, Development, and Deployment Program established under the better energy storage technology section of the Act. The intent is for the Secretary to enter into agreements with at least three demonstration projects by Sep. 30, 2023. Funding expires in 2025. | R82: Electricity | S82: Energy Storage | T82: Planning, Design/Engineering, Implementation/Construction, Any or All | U82: Grant - Competitive/Discretionary | V82: State, Public Agency/Local Authority
A83: Existing - Increase | B83: Enhanced Mobility of Seniors & Individuals with Disabilities - Section 5310 | C83: To assist private, non-profit, and public transportation operators in meeting the transportation needs of older adults and people with disabilities when the transportation service provided is unavailable, insufficient, or inappropriate to meeting these needs. The program aims to improve mobility for seniors and individuals with disabilities by removing barriers to transportation service and expanding transportation mobility options. | D83: Department of Transportation (DOT) | E83: Federal Transit Administration (FTA) | F83: States and designated recipients are direct recipients; eligible subrecipients include private nonprofit organizations, states or local government authorities, or operators of public transportation. Rural areas and small urban areas should review program guidelines for different process. | G83: 20% match required for capital projects; 50% required for operating assistance | H83: 289080000 | I83: Varies by state | J83: Varies by state | K83: Varies by state | L83: Varies by state | M83: This program funds a number of capital and operating expenses, including new buses, vans, accessible taxis, ride-sharing, and vanpooling. Consider integrating electric vehicles and charging equipment to support needed services and routes for eligible activities when starting or scaling a program to avoid costly replacements and upgrades in the future. Consider integrating the goals of this program into any broader local or regional vehicle electrification planning to ensure that this funding is not only part of that strategy but also efficiently leverages existing operations, structures, and programs. See eligible activities: https://www.transit.dot.gov/funding/grants/enhanced-mobility-seniors-individuals-disabilities-section-5310 | O83: This program is intended to support increased accessibility and mobility for older adults and people with disabilities. Projects in rural areas have a designated carve out of 20% of funding. | P83: A new discretionary grant pilot program was added to this program totaling $3.5 million. This pilot program is intended to focus on financing innovative projects for the transportation disadvantaged. | Q83: Funds are apportioned among the states by a formula which is based on the number of seniors and people with disabilities in each state according to the latest available U.S. Census data. Unlike most federal programs, matching funds can come from other Federal (non-DOT) funds. This can allow local communities to implement programs with 100% federal funding. For more information, see this program fact sheet: https://www.transit.dot.gov/funding/grants/enhanced-mobility-seniors-people-disabilities-fact-sheet-section-5310 | R83: Transportation | S83: Public Transit, Smart Growth, Electric Vehicles/Charging Equipment | T83: Planning, Design/Engineering, Implementation/Construction, Any or All | U83: Grant - Formula/Block, Grant - Competitive/Discretionary | V83: State, Municipality, Non-Profit, Public Agency/Local Authority, Any or All
A84: Existing - IRA Increase | B84: Environmental Justice Collaborative Problem-Solving Cooperative Agreement Program (EJCPS) | C84: To help eligible organizations build collaborative partnerships with other stakeholders (e.g., local businesses and industry, local government, medical service providers, academia, etc.) to develop solutions to environmental or public health issue(s) at the community level. | D84: Environmental Protection Agency (EPA) | E84: Office of Environmental Justice and External Civil Rights (OEJECR) | F84: Eligible organizations include community-based nonprofit organizations (CBOs) or CBO partnerships. CBOs with 5 or fewer full-time employees are eligible for the Small Community-based Nonprofit Set Aside. | G84: Not required | H84: 30000000 | I84: $500,000 for general awards; $150,000 for Small Community-based Nonprofit Set Aside | J84: 50 general awards; 33 awards for Small Community-based Nonprofit Set Aside | K84: $10,000 for general awards; $4,500 for Small Community-based Nonprofit Set Aside | L84: 2023-04-14 | M84: Applications must propose one of the following: (1) community-led air and other pollution monitoring, prevention, and remediation, and investments in low- and zero-emission and resilient technologies and related infrastructure and workforce development that help reduce greenhouse gas emissions and other air pollutants; (2) mitigating climate and health risks from urban heat islands, extreme heat, wood heater emissions, and wildfire events; (3) climate resiliency and adaptation; (4) reducing indoor toxics and indoor air pollution; or (5) facilitating engagement of marginalized communities in Local, State and Federal public processes, such as advisory groups, workshops, and rulemakings. | O84: This program specifically aims to empower CBOs from marginalized communities. Applications may focus on facilitating engagement of marginalized communities in Local, State and Federal public processes, such as advisory groups, workshops, and rulemakings. | P84: N/A | Q84: N/A | R84: Any or All, Electricity, Transportation, Buildings, Industry, Resiliency & Recovery | S84: Community Resiliency, Electric Vehicles/Charging Equipment, Renewable Energy, Energy Storage, Building Efficiency Retrofits, Building Weatherization, Disaster Recovery, Workforce Development, Nature-Based Solutions | T84: Planning, Design/Engineering, Implementation/Construction, Any or All | U84: Grant - Competitive/Discretionary, Technical Assistance | V84: Non-Profit
A85: Existing - IRA Increase | B85: Environmental Justice Government-to-Government Program (EJG2G) | C85: To support government activities that lead to measurable environmental or public health impacts in communities disproportionately burdened by environmental harms. Model EJG2G programs should leverage existing resources to develop processes or tools that integrate environmental justice considerations into governmental decision-making at all levels. | D85: Environmental Protection Agency (EPA) | E85: Office of Environmental Justice and External Civil Rights (OEJECR) | F85: Eligible applicants include States, territories, Tribal governments, and local governments in partnership with a community-based nonprofit organization. | G85: Not required | H85: 70000000 | I85: $20,000,000; $10,000,000 for certain entities | J85: 70 | K85: 1000000 | L85: 2023-04-14 | M85: This program specifically aims to achieve measurable and meaningful environmental and/or public health results in communities. Consider using it to coordinate between governments to build toward common climate goals and reduce redundant or conflicting efforts. | O85: This program specifically aims to (1) build broad and robust, results-oriented partnerships, particularly with community-based nonprofit organizations (CBO) within disproportionately impacted areas; (2) pilot activities in specific communities that create transferable models, which can be expanded or replicated in other geographic areas, and; (3) strengthen the development and implementation of meaningful approaches to achieve environmental justice. | P85: N/A | Q85: This program was formerly known as EPA's State Environmental Justice Cooperative Agreement Program (SEJCA). | R85: Any or All, Electricity, Transportation, Buildings, Industry, Resiliency & Recovery | S85: Community Resiliency, Electric Vehicles/Charging Equipment, Renewable Energy, Energy Storage, Building Efficiency Retrofits, Building Weatherization, Disaster Recovery, Workforce Development, Nature-Based Solutions | T85: Planning, Design/Engineering, Implementation/Construction, Any or All | U85: Grant - Competitive/Discretionary, Technical Assistance | V85: State, Municipality, Public Agency/Local Authority, Tribal
A86: Existing - Decrease | B86: Environmental Justice Small Grant Program (EJSG) | C86: To improve the environment and public health conditions of low-income communities and communities of color through the advancement of racial equity and environmental justice and address disproportionate environmental or public health harms and risks in minority populations or low-income populations under designated sections of environmental statutes. | D86: Environmental Protection Agency (EPA) | E86: Office of Environmental Justice and External Civil Rights (OEJECR) | F86: Eligible entities include non-profits, territories, tribal governments, and tribal organizations | G86: Not required | H86: 1600000 | I86: 100000 | J86: 20 | K86: =H86/J86 -> 80000 | L86: 2022-05-20 | M86: This funding includes special consideration tracks: priority programs include (1) Public Education, Training, Emergency Planning, and/or Investigations on Impacts of COVID-19 on Underserved Communities and Vulnerable Populations; and (2) Projects addressing Climate, Disaster Resiliency, and/or Emergency Preparedness. Consider exploring avenues to integrate clean energy opportunities such public education, training, surveys and studies, experiments, or demonstration projects incorporating green infrastructure. | O86: To address these multiple crises, this announcement places emphasis on projects focusing on COVID-19 impacts, as well as climate and disaster resiliency. Additionally, EPA is emphasizing projects addressing diesel pollution in underserved communities living near ports and railyards as part of EPA’s Ports Initiative (see details further described in this solicitation). Finally, to promote equitable accessibility to EPA grant funding and to assist small entities, approximately half of the total available funding under this announcement is intended to be reserved for small non-profit organizations with 10 or fewer full-time employees subject to the quality of applications received and other relevant considerations. | P86: Determine which program – the Environmental Justice Small Grants Program (EJSG) or the EJ Collaborative Problem Solving Program (EJCPS) which is issued separately – to apply for. Be aware, an applicant can receive a grant under only one of these programs – not both – so you need to carefully consider which one to apply for. While you are not prohibited from applying for both, you can only receive an award under one of them. View prior awardees here: https://www.epa.gov/environmentaljustice/environmental-justice-small-grants-program | Q86: In short, EJCPS funding under the other competition is designed for organizations that are more established and familiar with federal grants, while EJSG funding is designed for organizations that are: 1) more recently established and/or just starting out, 2) have smaller staffs and operating budgets, and/or 3) have never received a federal grant before. | R86: Electricity, Transportation, Buildings, Industry, Resiliency & Recovery | S86: Workforce Development, Retaining & Building Capacity, Community Resiliency, Nature-Based Solutions | T86: Planning, Implementation/Construction | U86: Grant - Competitive/Discretionary | V86: Non-Profit, Tribal
A87: Existing - IIJA Increase | B87: Federal Lands Transportation Program (FLTP) | C87: To improve the transportation infrastructure owned and maintained by Federal Lands Management Agencies. | D87: Department of Transportation (DOT) | E87: Federal Highway Administration (FHA) | F87: The program focuses on improving Federal lands transportation facilities (FLTFs) that are located on, adjacent to, or provide access to Federal lands. The FLTFs must be owned and maintained by the Federal government and must be included in the national FLTF inventory. | G87: Not required | H87: 421965000 | I87: 20000000 | J87: N/A | K87: N/A | L87: TBA | M87: The program seeks, in part, to reduce auto congestion and related emissions. The IIJA requires entities carrying out FLTF projects to consider designs that minimize climate effects like runoff and heat generation. While funding for this program focuses on Federal facilities, these facilities need not be located on Federal land. Local governments may benefit from improvements to facilities that are "on a public road within or adjacent to, or that provide access to, Federal lands open to the public" or integrate into other transportation systems managed by state or local entities. | O87: See the "Equity Design Considerations for Federal Funding" for general considerations and additional sector-based resources: https://cityrenewables.org/resources/equity-design-considerations-for-federal-funding/ | P87: In evaluating an application, the Secretary shall consider the extent to which the programs support performance management, including (i) the transportation goals of (I) a state of good repair of transportation facilities (II) a reduction of bridge deficiencies; and (III) an improvement of safety; (ii) high-use Federal recreational sites or Federal economic generators; and (iii) the resource and asset management goals of the Secretary of the respective Federal land management agency. | Q87: N/A | R87: Transportation | S87: Public Transit, Smart Growth | T87: Planning, Design/Engineering, Implementation/Construction, Any or All | U87: Grant - Competitive/Discretionary | V87: Public Agency/Local Authority
A88: New - IIJA | B88: Federal Share Flexibility Pilot Program | C88: To give up to 10 States additional flexibility to determine the Federal share on a project, multiple-project, or program basis for projects under any of the following funded under the National Highway Performance Program, the Surface Transportation Block Grant Program, the Highway Safety Improvement Program, the Congestion Mitigation and Air Quality Improvement Program National Highway Freight Program, the Carbon Reduction Program, and the PROTECT grant program. | D88: Department of Transportation (DOT) | E88: N/A | F88: All states are eligible for this program. | G88: Not required | H88: 100% of project costs | I88: N/A | J88: 10 | K88: N/A | L88: State DOTs should contact US DOT if interested in participating in this pilot program | M88: This pilot program allows participating states to reduce cost sharing requirements for various decarbonization programs offered by DOT, shifting up to 100% of project costs to the federal government. | O88: This pilot program could encourage less-resourced states to participate in DOT decarbonization programs, not just those that can afford cost matches. Based on the programs referenced, US territories and Tribal governments may be eligible to apply, but that should be confirmed with the administrators and/or Secretary prior to proceeding. | P88: N/A | Q88: N/A | R88: Any or All, Electricity, Transportation, Buildings, Industry, Resiliency & Recovery | S88: Any or All, Renewable Energy, Energy Storage, Building Weatherization, Building Efficiency Retrofits, Disaster Recovery, Community Resiliency, Electric Vehicles/Charging Equipment, Public Transit, Smart Growth, Workforce Development, Retaining & Building Capacity, Carbon Capture & Storage (CCS), Clean Manufacturing & Supply Chain | T88: Planning, Design/Engineering, Implementation/Construction, Any or All | U88: Grant - Formula/Block, Grant - Competitive/Discretionary | V88: State
A89: New | B89: Good Jobs Challenge (American Rescue Plan) | C89: To build and strengthen regional workforce training systems and sectoral partnerships that bring together employers who have hiring needs with other key entities to train workers with in-demand skills that lead to good-paying jobs. | D89: Department of Commerce | E89: Economic Development Administration (EDA) | F89: States, local governments (including cities, townships, counties), special district governments (e.g. public utilities), federally recognized tribal governments, nonprofits, labor unions, institutions of higher education. | G89: Not required (depends on economic impact and distress) | H89: 500000000 | I89: 25000000 | J89: 50 | K89: =H89/J89 -> 10000000 | L89: 2022-01-26 | M89: The NOFO includes the following consideration for climate and resiliency, broadly defined: "The extent to which the project is resilient to future pandemics or other sudden and severe economic dislocations, as defined in section A.4 (e.g., closures of major local employers, climate change), and resilience is integrated into the project scope of work;". Accordingly, decarbonization options may include workforce training and development for 1) industries impacted by climate change and 2) industries and major local employers impacted by the energy transition. Explore integrating new clean energy and EV supply chain manufacturing hubs/business parks into regional economic development plans. Where possible, consider whether partnerships with universities or community colleges could be leveraged to launch an economic diversification and workforce development strategy to promote and enhance the growth of emerging clean energy industries and retain local talent. | O89: Projects will be more competitive if applicants articulate a plan for ensuring that the project’s benefits are shared across all affected communities and the extent to which the application demonstrates the capacity to account for the unique needs of historically underserved populations and areas. EDA also encourages systems and partnerships to address populations with labor market barriers such as persons with disabilities, at-risk youth, individuals in recovery, individuals with past criminal records including justice‑impacted and reentry participants, and veterans. | P89: EDA is looking to fund within the following phases: System Development, Program Design, and Program Implementation. Applicants are strongly encouraged to work with EDA regarding methods of encouraging outside leveraging of funds. EDA has further determined that due to the pervasive nature of the economic impacts of the coronavirus pandemic, any project that would address those impacts by creating or retaining jobs or increasing the economic diversity or resiliency of a region is eligible for funding. For example, an infrastructure project that creates new jobs in a region is responsive to the requirement that the funds be spent to respond to “economic injury as a result of coronavirus.” | Q89: Program is designed to support the needs of an applicant’s identified regional workforce system through a single integrated award. EDA will make awards to either the System Lead Entity of a regional workforce system or the Backbone Organization of a sectoral partnership as the lead applicant. | R89: Resiliency & Recovery | S89: Community Resiliency, Workforce Development, Retaining & Building Capacity | T89: Planning, Implementation/Construction | U89: Grant - Competitive/Discretionary | V89: State, Municipality, Non-Profit, Public Agency/Local Authority, Tribal, Any or All
A90: New - IIJA | B90: Renew America's Schools Grant | C90: To make energy efficiency, renewable energy, and alternative fueled vehicle upgrades and improvements at public schools. | D90: Department of Energy (DOE) | E90: Office of Energy Efficiency & Renewable Energy (EERE) | F90: Eligible entities include local educational entities; nonprofit, for-profit, and community organizations that have the knowledge and capacity to assist with energy improvements. See notes for more information on eligible project types. | G90: Minimum 5% match required | H90: 80000000 | I90: 15000000 | J90: 20-100 | K90: N/A | L90: Second round forthcoming in FY24 | M90: Eligible projects include energy efficiency (envelope, HVAC, lighting, controls, etc.), ventilation, renewable energy, alternative vehicles, and alternative fuel vehicle infrastructure improvements. Electric vehicles should be prioritized over other alternative fuel sources such as propane. Schools and their project partners should evaluate current emission profiles associated with their building stock, electricity use and generation sources, and student transportation and prioritize projects with the greatest greenhouse gas mitigation potential. | O90: Rural schools and schools that serve a high percentage of students receiving a free and reduced price lunch are prioritized. Projects which improve building performance and energy efficiency may also improve indoor air quality. When evaluating school bus and student transportation projects, replacing older diesel buses which were manufactured prior to updated EPA regulations will have greater impacts on both greenhouse gas and conventional air pollutant emissions for students, workers, and surrounding communities. | P90: Secretary shall give priority to an eligible entity— (A) that has renovation, repair, and improvement funding needs; (B)(i) that, as determined by the Secretary, serves a high percentage of students, including students in a high school in accordance with paragraph (2), who are eligible for a free or reduced price lunch under the Richard B. Russell National School Lunch Act (42 U.S.C. 1751 et seq.); or (ii) the partnering local educational agency of which is designated with a school district locale code of 41, 42, or 43 [indicating rural locations], as determined by the National Center for Education Statistics in consultation with the Bureau of the Census; and (C) that leverages private sector investment through energy-related performance contracting. | Q90: Eligible projects include projects that result in a direct reduction in school energy costs; leads to an improvement in teacher and student health, including indoor air quality and achieves energy savings; involves the installation of renewable energy technologies; installs alternative fueled vehicle infrastructure on school grounds for exclusive use of school buses or the general public; the purchase or lease of alternative fueled vehicles to be used by a school. | R90: Electricity, Transportation, Buildings | S90: Renewable Energy, Energy Storage, Building Weatherization, Building Efficiency Retrofits, Electric Vehicles/Charging Equipment, Building Electrification | T90: Planning, Design/Engineering, Implementation/Construction, Any or All | U90: Grant - Competitive/Discretionary | V90: Public Agency/Local Authority, Non-Profit
A91: Existing - Constant | B91: Green Streets, Green Jobs, Green Towns (G3) Grant Program | C91: To help communities develop and implement plans that reduce stormwater runoff, increase the number and size of green spaces in urban areas, improve the health of local streams and the Chesapeake Bay, and enhance quality of life and community livability. | D91: Environmental Protection Agency (EPA) | E91: EPA Region 3 & Chesapeake Bay Trust | F91: Funding can be applied anywhere in the Chesapeake Bay watershed portion of EPA Region 3 (excluding New York). | G91: Not required | H91: 1900000 | I91: Implementation: $150,000 Greening urban areas: $50,000 Engineered design projects: $30,000 Community greening projects: $50,000 Conceptual plans: $15,000 White papers and tool development: $20,000 | J91: N/A | K91: N/A | L91: 2023-03-08 | M91: Consider enhancing urban and suburban tree canopies, especially where heat islands and flooding are more common. Trees can be strategically deployed to help cool pavement and buildings alike, reducing energy needs in particularly hot areas. Another strategy to mitigate both heat islands and flooding could be to deploy solar canopies on large parking surfaces as a part of a water catchment system, which would not only generate clean electricity but could be strategically designed to redirect rainfall into bioswales and other stormwater retention areas. Check out this example in Brooklyn, NY: https://betterbuildingssolutioncenter.energy.gov/showcase-projects/whole-foods-market-brooklyn-third-and-3rd | O91: Cooling communities that historically have hosted a disproportionate amount of heat-absorbing surface with fewer investments in greenery and parks can advance local equity and improve quality of life, especially during intense periods of heat. In many non-white neighborhoods, there has consistently been a lack of investment in green space and tree canopies. The NYTimes examined how racist housing policies continues to impact heat islands throughout the country: https://www.nytimes.com/interactive/2020/08/24/climate/racism-redlining-cities-global-warming.html | P91: Up to $15,000 for conceptual plans, up to $30,000 for engineered designs, up to $150,000 for implementation projects, up to $50,000 for community greening projects, up to $20,000 for white papers. | Q91: Since 2010, the G3 Partnership has awarded 60 grants to Mid-Atlantic communities. These grants have infused over $4.9 million into green initiatives and resulted in over $9 million in G3 Projects. For additional information and case studies, visit: https://www.epa.gov/G3/g3-grant-fact-sheets | R91: Buildings, Transportation, Resiliency & Recovery, Electricity | S91: Smart Growth, Renewable Energy, Community Resiliency, Nature-Based Solutions | T91: Planning, Design/Engineering, Implementation/Construction, Any or All | U91: Grant - Competitive/Discretionary | V91: Municipality, Non-Profit
A92: Existing - Constant | B92: Hazard Mitigation Grant Program (HMGP) | C92: To reduce vulnerability of communities, promotes individual and community safety and resiliency, lessens response and recovery needs, results in safer communities. | D92: Department of Homeland Security (DHS) | E92: Federal Emergency Management Agency (FEMA) | F92: Local governments are eligible to apply as sub applicants to states. Primary applicants must have a FEMA-approved mitigation plan. | G92: Typically, 25% match required | H92: Subject to a sliding scale formula based on the estimated total cost of disaster assistance. | I92: N/A | J92: N/A | K92: N/A | L92: Within 12 months of the date of the presidential major disaster declaration. | M92: HMGP may fund a range of projects to mitigate risk. To enhance energy system resiliency, consider prioritizing building retrofits for weatherization or adding solar plus battery storage at critical facilities and community hubs as well as building out localized energy storage and/or microgrid facilities in partnership with utilities to reduce the risk of failure. Undergrounding transmission and distribution system wiring can also reduce the risk of electric failure and reduce the reliance on generators. | O92: If certain pockets of your community are repeatedly impacted by natural disasters, consider prioritizing flexible backup power generation solutions like solar plus battery storage at community hubs closer to the more vulnerable populations. | P92: States with enhanced mitigations plans can qualify for up to 20% of the cost/assistance needed, not to exceed $35.3 billion. | Q92: Contacting the State Hazard Mitigation Officer (SHMO), or equivalent representative for a respective tribal government (federally recognized) or territory can be helpful in choosing which hazards pose the greatest threat and determining the best strategy for mitigation. For local governments, please contact your State Hazard Mitigation Officer to learn about the applicant’s priorities, deadlines, and additional requirements. Awardees are eligible to recieve FEMA-subsidized, low-carbon construction materials. Read more at https://www.fema.gov/grants/policy-guidance/low-carbon-goals. To determine eligibility for federal disaster declaration funding, please check FEMA's website at https://www.fema.gov/disasters/disaster-declarations. | R92: Resiliency & Recovery, Electricity | S92: Renewable Energy, Energy Storage, Building Weatherization, Community Resiliency, Electric Grid Upgrades | T92: Planning, Implementation/Construction | U92: Grant - Competitive/Discretionary | V92: State, Tribal
A93: Existing - IIJA Increase | B93: Superfund Technical Assistance Grant Program (TAG) | C93: To provide funding to community groups to contract their own technical advisor to interpret and explain technical reports, site condi­tions, and EPA’s proposed cleanup proposals and decisions. EPA's Superfund program is responsible for cleaning up some of the nation’s most contaminated lands. | D93: Environmental Protection Agency (EPA) | E93: Office of Land and Emergency Management (OLEM) | F93: Eligible recipients include groups incorporated to address the impacts of a Superfund site on members' health, economic wellbeing, or environmental enjoyment. EPA is authorized to award only one TAG at a time for each Superfund site. | G93: Minimum 20% match required | H93: N/A | I93: Initial funding of $50,000, with optional future funding | J93: N/A | K93: N/A | L93: Letters of intent accepted on rolling basis by EPA Regional Coordinators | M93: Transforming underutilized or abandoned Superfund sites in your community into clean energy hubs can also spur economic revitalization. These funds can help determine which brownfields and closed landfill sites may be good fits for hosting solar or other renewable energy. The EPA offers explicit guidance for considering such "brightfields" projects: https://www.epa.gov/brownfields/are-you-considering-renewable-energy-or-energy-efficient-approaches-your-brownfields | O93: More than one in four Black and Hispanic Americans live within 3 miles of a Superfund site. No community deserves to have contamination near where they live, work, play, and go to school. With this funding, communities living near many of the most serious uncontrolled or abandoned releases of contamination will finally get the support they deserve to reconsider the future of these sites. This program is specifically designed to ensure more equitable participation in Superfund planning, helping community groups interpret and explain site reports and conditions, as well as proposed cleanup plans and decisions. | P93: The EPA identifies ideal TAG recipients, including (1) community groups or citizens’ associations formed because Superfund site issues, (2) groups of individuals actively involved at the Superfund site, including all the affected individuals and groups who joined in applying for the TAG, and (3) consortia of groups with community concerns about the Superfund site and its effects on the surrounding area. | Q93: For more information on EPA's RE-Powering America's Lands program, see here: https://www.epa.gov/re-powering/re-powering-tracking-matrix | R93: Industry, Resiliency & Recovery, Electricity | S93: Renewable Energy, Energy Storage, Clean Manufacturing & Supply Chain, Brightfields | T93: Planning | U93: Technical Assistance | V93: Non-Profit
A94: Existing - IIJA Increase | B94: Technical Assistance Services for Communities Program (TASC) | C94: To provide independent assistance through an EPA contract to help communities better understand the science, regulations and policies of environmental issues and EPA actions. Under the TASC contract, a contractor provides scientists, engineers and other professionals to review and explain information to communities. | D94: Environmental Protection Agency (EPA) | E94: Office of Land and Emergency Management (OLEM) | F94: Types of technical assistance include a needs assessment, community education, independent technical advisors, and site decision planning. | G94: Not required | H94: N/A | I94: N/A | J94: N/A | K94: N/A | L94: Requests accepted on rolling basis by EPA Regional Coordinators | M94: The TASC program benefits communities by explaining technical findings and answering community questions, helping them understand complex environmental issues, and supporting their active roles in protecting healthy communities and advancing environmental protection. | O94: This program is specifically designed to ensure more equitable participation in Superfund planning, helping community groups interpret and explain site reports and conditions, as well as proposed cleanup plans and decisions. TASC can provide opportunities for environmental education, bring diverse groups together and help them get more involved, and offer training and support environmental employment opportunities through the Superfund Job Training Initiative. | P94: N/A | Q94: EPA may provide TASC services to a community group that is a Technical Assistance Grant (TAG) or Technial Assistance Plan (TAP) recipient. However, TASC services only provide assistance that is not available or allowable under the TAG or TAP. Additionally, EPA will likely prioritize TASC resources for communities not eligible for a TAG or without potential access to a TAP. | R94: Industry, Resiliency & Recovery, Electricity | S94: Renewable Energy, Energy Storage, Clean Manufacturing & Supply Chain, Brightfields | T94: Planning | U94: Technical Assistance | V94: State, Municipality, Public Agency/Local Authority, Tribal
A95: New | B95: Healthy Homes and Weatherization Cooperation Demonstration Program | C95: To support demonstrations in up to 5 communities that are served by both a HUD-funded LHC program and a DOE-funded WAP to demonstrate the potential advantages of the coordination of home intervention services. | D95: Department of Housing & Urban Development (HUD) | E95: Office of Lead Hazard Control and Healthy Homes | F95: Applicants must not have any outstanding civil rights matters, have an LHC program with a HUD grant that is active until October 1, 2022 or longer, have two years of experience conducting lead hazard control and healthy homes interventions with HUD grant support, have maintained a minimum of YELLOW designation for the last two Quarterly Reports in 2019, and have a weatherization program that is a current DOE Weatherization Assistance Program grantee. | G95: Not required | H95: 5000000 | I95: 1000000 | J95: 5 | K95: =H95/J95 -> 1000000 | L95: Expected Q4 2023 | M95: Consider prioritizing building electrification efforts (i.e., induction stovetops and heat pumps for space and water heating) that overlap with both energy conservation measures and health improvements by decreasing indoor air pollution from natural gas combustion. | O95: Consider addressing the disparities in both energy burden and indoor air quality by prioritizing building electrification. Direct subsidization is likely required given the upfront cost premiums of building electrification. | P95: N/A | Q95: Program funding expires in 2024. | R95: Buildings | S95: Building Weatherization, Building Efficiency Retrofits, Building Electrification | T95: Implementation/Construction | U95: Grant - Competitive/Discretionary | V95: State, Municipality, Non-Profit, Public Agency/Local Authority
A96: Existing - Constant | B96: High Energy Cost Grants (Assistance to High Energy Cost Communities) | C96: To assist energy providers and other eligible entities in lowering energy costs for families and individuals in areas with extremely high per-household energy costs (275% of the national average or higher). | D96: United States Department of Agriculture (USDA) | E96: Rural Development | F96: Eligible areas must demonstrate annual average household energy cost exceeding 275% of the national average under benchmarks. The program finances the acquisition, construction or improvement of facilities serving eligible communities as well as equipment, materials, activities, land, right of way acquisition, professional expenses, engineering, and permitting for electric generation, transmission, and distribution facilities. This includes a carve-out for eligible tribal communities. | G96: Not required | H96: 10000000 | I96: 3000000 | J96: 10 | K96: =H96/J96 -> 1000000 | L96: 2021-07-06 | M96: Consider renewable facilities such as solar, wind, hydropower or biomass electric power generation water or space heating process heating and power or backup or emergency power generation or energy storage technology, including generation equipment installed on consumer premises water or space heating process heating and power. Also consider efficiency improvements and conservation measures (i.e. weatherization of residences and community facilities) and programs that encourage the use of energy-saving appliances and devices. | O96: This program helps to offset extremely high household energy costs in areas where local conditions cause energy costs to exceed 275% of the national average. This type of assistance increases economic opportunity and the quality of life in rural communities nationwide by maintaining a seamless electric network for all Americans, regardless of where they live. | P96: N/A | Q96: N/A | R96: Electricity, Buildings | S96: Building Weatherization, Building Efficiency Retrofits, Renewable Energy, Energy Storage | T96: Implementation/Construction | U96: Grant - Competitive/Discretionary | V96: State, Municipality, Non-Profit, Public Agency/Local Authority, Tribal, Any or All
A97: Existing - Increase | B97: Highway Safety Improvement Program (HSIP) | C97: To reduce traffic fatalities and serious injuries on all public roads, including non-State-owned public roads and roads on tribal lands. The program requires a data-driven, strategic approach to improving highway safety on all public roads that focuses on performance. | D97: Department of Transportation (DOT) | E97: Federal Highway Administration (FHA) | F97: Funds are distributed to each state. Funded projects must be consistent with the State's strategic highway safety plan (SHSP). Most eligible activities are infrastructure-safety related. Up to 10% of funding can be used to fund certain non-infrastructure activities and behavioral safety projects, such as educational campaigns about traffic safety and enforcement activities. | G97: 10% match required | H97: 3111500000 | I97: N/A | J97: N/A | K97: N/A | L97: N/A | M97: While this program will fund safety projects generally, applicants should prioritize projects that will decrease the need for private vehicles on the road and increase transit ridership, promote carpooling and ridesharing, and be in coordination with regional transit-oriented development planning. Communities should look to deploy extensive, convenient, well-connected bus rapid transit projects that can align with local, regional, and statewide vehicle electrification plans. | O97: In order to effectively and equitably improve road safety, understand which communities lack reasonable and convenient access to transit and multi-modal options. This could include additional collaboration with frontline communities and other stakeholders to address both procedural and distributional equity concerns. | P97: N/A | Q97: $15,557,600,000 are available over 5 years. | R97: Transportation | S97: Public Transit, Smart Growth | T97: Implementation/Construction | U97: Grant - Formula/Block, Grant - Competitive/Discretionary | V97: State, Municipality, Non-Profit, Public Agency/Local Authority, Tribal, Any or All
A98: Existing - Constant | B98: HOME Investment Partnerships Program (HOME) | C98: To provide formula grants to states and localities to fund a wide range of activities including building, buying, and/or rehabilitating affordable housing for rent or homeownership or providing direct rental assistance to low-income people. | D98: Department of Housing & Urban Development (HUD) | E98: N/A | F98: Participating jurisdictions may choose among a broad range of eligible activities, using HOME funds to provide home purchase or rehabilitation financing assistance to eligible homeowners and new homebuyers; build or rehabilitate housing for rent or ownership; or for "other reasonable and necessary expenses related to the development of non-luxury housing." | G98: 25% match required | H98: Varies | I98: States receive no less than $3,000,000 | J98: Varies by state | K98: Varies by state | L98: Rolling | M98: Consider integrating rooftop solar, efficient electric appliances, weatherization, demand management, and other related distributed energy resources to reduce energy costs and emissions when building new and/or rehabilitating current affordable housing. | O98: Consider prioritizing the distributed energy resource solutions that have the largest reduction on occupants' energy burden. The program's formula allocation considers the relative inadequacy of each jurisdiction's housing supply, its incidence of poverty, its fiscal distress, and other factors. | P98: States are automatically eligible for HOME funds and receive either their formula allocation or $3 million, whichever is greater. Local jurisdictions eligible for at least $500,000 under the formula ($335,000 in years when Congress appropriates less than $1.5 billion for HOME) also can receive an allocation. | Q98: N/A | R98: Buildings | S98: Renewable Energy, Building Weatherization, Building Efficiency Retrofits, Building Electrification | T98: Planning, Design/Engineering, Implementation/Construction, Any or All | U98: Grant - Formula/Block, Technical Assistance | V98: State, Municipality, Public Agency/Local Authority, Non-Profit
A99: Existing - Increase | B99: Housing Preservation Grants (HPG) | C99: To repair or rehabilitate housing owned or occupied by low- and very-low-income rural citizens; to assist rental property owners and cooperative housing complexes in repairing and rehabilitating units made available to low- and very low-income rural citizens. | D99: United States Department of Agriculture (USDA) | E99: Rural Development | F99: Applicants must have the necessary background and experience with proven ability to perform the responsibility of repair and rehabilitation of low-income housing. This program includes carve-outs for eligible tribal communities. | G99: Not required | H99: 16000000 | I99: 50000 | J99: 160 | K99: =H99/J99 -> 100000 | L99: 2022-07-11 | M99: Consider reviewing state LIHEAP eligible use guidelines. While energy bill assistance will remain the priority, consider whether energy efficiency improvements (particularly of furnace, water heater, or AC replacement) could be further expanded. Focus on improvements that will create safer, more efficient living environments by replacing old wiring, improving insulation, and installing high efficiency heating and cooling systems, including heat pumps. Not only will this improve the health and safety of the house, but it will help low-income households save money with more energy efficiency. | O99: Program is exclusively for low-income families and households in rural and Tribal communities. | P99: N/A | Q99: To assist with any inquiries and/or resources in your area, please see the Rural Development State Office for your state. | R99: Electricity, Buildings | S99: Building Weatherization, Building Efficiency Retrofits, Building Electrification | T99: Implementation/Construction | U99: Grant - Competitive/Discretionary | V99: State, Municipality, Non-Profit, Public Agency/Local Authority, Tribal, Any or All
A100: Existing - Increase | B100: Hydroelectric Efficiency Improvement Incentives | C100: To provide incentives for improvements to hydroelectric facilities that increase their efficiency by at least 3%. | D100: Department of Energy (DOE) | E100: Office of Energy Efficiency & Renewable Energy (EERE) | F100: Eligible applicants include any owners or operators of hydroelectric facilities at existing dams. Eligible projects include capital improvements to the facilities that are directly related to improving the efficiency. | G100: 70% match required | H100: 75000000 | I100: 5000000 | J100: N/A | K100: N/A | L100: 2023-06-20 | M100: Consider improvements that increase the efficiency and resilience of facilities, if possible. Other options may include the potential to co-locate other renewable energy sources at hydroelectric facilities. | O100: See the "Equity Design Considerations for Federal Funding" for general considerations and additional sector-based resources: https://cityrenewables.org/resources/equity-design-considerations-for-federal-funding/ | P100: The Bipartisan Infrastructure Law states that payments shall not exceed 30% of the costs of the applicable capital improvement. A single qualified hydroelectric facility, including pumped storage hydropower, may only receive one incentive payment from this program within a single fiscal year, and that payment shall not exceed $5 million. | Q100: N/A | R100: Electricity | S100: Building Efficiency Retrofits, Community Resiliency, Building Weatherization | T100: Design/Engineering, Implementation/Construction | U100: Unknown/Other Incentive | V100: Any or All, State, Municipality, Non-Profit, Public Agency/Local Authority, Tribal
A101: Existing - Increase | B101: Hydroelectric Production Incentives | C101: To provide funding for projects adding hydroelectric power generating capabilities to existing dams and other water infrastructure. | D101: Department of Energy (DOE) | E101: Office of Energy Efficiency & Renewable Energy (EERE) | F101: Any owner or authorized operator of a hydroelectric generation facility may apply for incentive payments for net electric energy generated by and sold from its operation during the eligibility window, which began on October 1, 2005, and concludes on September 30, 2027. | G101: Not required | H101: 7000000 | I101: 1000000 | J101: N/A | K101: N/A | L101: 2022-02-10 | M101: Consider maximizing the utilization of existing structures to minimize the impact on the environment. Hydropower can provide a major source of reliable power to the grid as more variable renewable resources come online. | O101: Hydroelectric facilities should be supported with regard to up- and downstream communities, as well as natural ecosystems and neighborhoods that might be (dis)affected by generation activities. Planning and engagement should be conducted to clearly communicate and/or mitigate potential negative impacts that would disproportionally affect underserved communities. | P101: More information can be found here: https://www.energy.gov/sites/default/files/2021-12/section-242-guidance-for-fy21-solicitation.pdf | Q101: The incentive is $0.018/kWh in 2005 dollars. The IIJA authorizes the appropriation of $125 million for the program. | R101: Electricity | S101: Renewable Energy | T101: Implementation/Construction | U101: Unknown/Other Incentive | V101: Any or All, State, Municipality, Non-Profit, Public Agency/Local Authority, Tribal
A102: New - IIJA | B102: Regional Clean Hydrogen Hubs (H2Hubs) | C102: To develop at least 4 regional clean hydrogen hubs that: 1) Demonstrably aid the achievement of the clean hydrogen production standard developed; 2) Demonstrate the production, processing, delivery, storage and end-use of clean hydrogen, and; 3) Can be developed into a national clean hydrogen network to facilitate a clean hydrogen economy. | D102: Department of Energy (DOE) | E102: Office of Clean Energy Demonstrations (OCED) | F102: Hydrogen hubs would need to demonstrate all components including the production, processing, delivery, storage, and end-use of clean hydrogen. Clean hydrogen is defined as hydrogen produced with a carbon intensity equal to or less than 2 kilograms of carbon dioxide (CO2)-equivalent produced at the site of production per kilogram of hydrogen produced. | G102: 50% match required | H102: 8000000000 | I102: 1250000000 | J102: 4 | K102: 1000000000 | L102: Concept paper due November 7, 2022; application due April 7, 2023 | M102: Consider working with universities, research institutes, and private sectors to develop regional clean hydrogen hubs to demonstrate hydrogen production from renewable energy and other low-carbon energy sources. Check DOE Hydrogen Shot Request for Information (RFI) results to learn more about diverse resources, end-uses, and impact potential in various regions. If in a region with abundant natural gas resources, consider how hydrogen production can bring cleaner energy in a more efficient way and other long-term benefits. | O102: DOE offers Community Benefits Plan guidance on community and labor engagement, workforce investments, diversity, equity, inclusion, and accessibility,and Justice40, which is available here: https://www.energy.gov/oced/regional-clean-hydrogen-hubs | P102: According to the IIJA Act, at least 1 regional clean hydrogen hub needs to demonstrate hydrogen production from fossil fuels, at least 1 from renewable energy, and at least 1 from nuclear energy. Besides, at least 1 regional hub shall demonstrate the end-use of clean hydrogen in the electric power generation sector, 1 in the industrial sector, 1 in the residential and commercial heating sector, and 1 in the transportation sector. It is also required that at least 2 hydrogen hubs be located in the regions of the United States with the greatest natural gas resources. | Q102: N/A | R102: Electricity, Industry | S102: Renewable Energy, Clean Manufacturing & Supply Chain, Clean Fuels | T102: Planning, Design/Engineering, Implementation/Construction, Any or All | U102: Grant - Competitive/Discretionary | V102: State, Municipality, Non-Profit, Public Agency/Local Authority, Tribal, Any or All
A103: New | B103: Inclusive Energy Innovation Prize (IEIP) | C103: To support ongoing and/or proposed activities related to climate and clean energy that support, build trust, and strengthen relationships and partnerships with disadvantaged communities. Specifically, this prize seeks to enable and enhance business and technology incubation, acceleration, and other community-based and university-based entrepreneurship and innovation in climate and clean energy technologies. | D103: Department of Energy (DOE) | E103: Office of Energy Efficiency and Renewable Energy (EERE), Office of Economic Impact and Diversity (ED) | F103: The intent of this program is to boost national competitiveness; individuals participating in talent recruitment programs are not eligible to compete. | G103: Not required | H103: 2500000 | I103: $200,000 (Phase 1) | J103: 10 | K103: $200,000 (Phase 1) | L103: 2022-02-25 | M103: This prize is intended to enable clean energy and climate innovation, and to create/increase participation in clean energy and climate-smart jobs. Workforce training could cover identifying energy efficiencies and greenhouse gas inventories, renewable energy manufacturing, and deployment. Prizes will help identify and fund activities that will help disadvantaged communities become aware of, apply to, or otherwise secure DOE funding (or other federal, state, local government, private, or non-profit funding. | O103: Prizes will enable the development of replicable clean energy transitions that deliver just and equitable benefits to disadvantaged communities in support of the government's Justice40 goals. Prizes also target colleges and universities that serve large populations of students underrepresented in STEM, Minority Serving Institutions (MSIs), community colleges, and undergraduate institutions, as well as formerly incarcerated individuals and youth transitioning out of foster care. Applicants must seek to foster grassroots innovation and equitable clean energy deployment with activities focusing on community-centric networks and bottom-up solutions, based on the needs of communities involved. | P103: Successful organizations will not necessarily need to have expertise in “deep tech” support and incubation and/or in working with large research institutions but should demonstrate strong community ties and serve as bridges between DOE and innovators with whom DOE has not previously engaged. Additionally, DOE seeks to support clean energy grassroots innovation from disciplines beyond science and engineering. This may include siting, financing, and community ownership of clean energy and climate solutions at the local or state level. Competitors are encouraged to form multidisciplinary teams while developing their concept. The HeroX platform provides a space where parties interested in collaboration can post information about themselves and learn about others who are also interested in competing in this contest. | Q103: This is a new program and is split into two phases. Phase 2 will be open to the winners of Phase 1 roughly 12 months after winners are announced. Phase 2 will offer a total of $500,000 In bonus prizes to further develop Phase 1 activities. Program rules for Phase 1 can be found here: https://americanmadechallenges.org/inclusiveenergyinnovation/docs/rules/Inclusive_Energy_Innovation_Prize_Official_Rules.pdf | R103: Any or All, Electricity, Transportation, Buildings, Industry, Resiliency & Recovery | S103: Any or All, Renewable Energy, Energy Storage, Building Weatherization, Building Efficiency Retrofits, Disaster Recovery, Community Resiliency, Electric Vehicles/Charging Equipment, Public Transit, Smart Growth, Workforce Development, Retaining & Building Capacity, Carbon Capture & Storage (CCS), Clean Manufacturing & Supply Chain | T103: Planning, Design/Engineering | U103: Grant - Competitive/Discretionary | V103: Any or All, State, Municipality, Non-Profit, Public Agency/Local Authority, Tribal
A104: Existing - Increase | B104: Indian Energy Program | C104: To promote Indian tribal energy development, efficiency, and use; reduce or stabilize energy costs; enhance and strengthen Indian tribal energy and economic infrastructure relating to natural resource development and electrification; and bring electrical power and service to Indian land and the homes of tribal members. | D104: Department of Energy (DOE) | E104: Office of Indian Energy Policy and Programs | F104: Eligible entities include an Indian tribe, intertribal organization, tribal energy development organization, or land located in a census tract in which the majority of residents are Natives (as defined under the Alaska Native Claims Settlement Act) or enrolled members of a federally recognized Tribe or village. | G104: Yes, 50% match typically required, tribal organizations may qualify for as low as a 10% match | H104: 30000000 | I104: N/A | J104: N/A | K104: 451696 | L104: Rolling | M104: Consider prioritizing renewable energy development projects, building efficiency, and distributed renewable energy resources, and battery storage. | O104: See the "Equity Design Considerations for Federal Funding" for general considerations and additional sector-based resources: https://cityrenewables.org/resources/equity-design-considerations-for-federal-funding/ | P104: N/A | Q104: Reauthorizes the previously lapsed program at an increased amount (from $20M to $30M annually) for FY 2021-2025. | R104: Electricity | S104: Renewable Energy, Energy Storage, Workforce Development, Building Efficiency Retrofits | T104: Planning | U104: Loan, Grant - Competitive/Discretionary, Technical Assistance | V104: Tribal
A105: New | B105: Indigenous Communities Program (ICP, American Rescue Plan) | C105: To develop and execute economic development projects that indigenous communities need to recover from the pandemic and to create the conditions for economic growth in indigenous communities and to accelerate economic recovery from the pandemic. | D105: Department of Commerce | E105: Economic Development Administration (EDA) | F105: Only eligible for Indian Tribes, a consortium of Indian Tribes, or other public or private non-profit entities serving Native Hawaiians, Native Pacific Islanders of Guam, American Samoa, the Commonwealth of the Northern Mariana Islands, the Republic of the Marshall Islands, the Federated States of Micronesia, or the Republic of Palau. | G105: Not required | H105: 100000000 | I105: 5000000 | J105: 50 | K105: =H105/J105 -> 2000000 | L105: 2022-04-19 | M105: Example projects in the NOFO include foundational economic infrastructure projects, such as energy, road, water, and wastewater infrastructure (including community water facilities). Consider focusing on fundamental improvements to the efficiency and electrification of existing buildings, including weatherization of support facilities like community centers, schools, or housing. Upgrading community facilities with solar plus battery storage can convert such facilities into community resiliency hubs that serve as emergency power centers and cooling centers. Community centers, libraries, schools, and small airports could all serve in this capacity for emergencies. Similarly, consider using this funding to support resiliency through battery storage (as opposed to generators) for public safety operations and other critical facilities. | O105: See the "Equity Design Considerations for Federal Funding" for general considerations and additional sector-based resources: https://cityrenewables.org/resources/equity-design-considerations-for-federal-funding/ | P105: N/A | Q105: EDA plans on funding construction and non-construction projects that cost between approximately $500,000 and $5,000,000 under this NOFO. | R105: Resiliency & Recovery | S105: Community Resiliency, Workforce Development, Retaining & Building Capacity | T105: Planning | U105: Grant - Competitive/Discretionary | V105: Tribal
A106: Existing - Increase | B106: Infrastructure for Rebuilding America (INFRA) | C106: To fund transportation projects of national and regional significance that are in line with the Biden Administration’s principles for national infrastructure projects that result in good-paying jobs, improve safety, apply transformative technology, and explicitly address climate change and racial equity. | D106: Department of Transportation (DOT) | E106: Build America Bureau | F106: Multi-state or multijurisdictional groups of public entities can apply as well as metropolitan planning organizations that serve an urbanized area. All applications should directly support projects of regional or national significance. Eligible INFRA project costs may include: reconstruction, rehabilitation, acquisition of property (including land related to the project and improvements to the land), environmental mitigation, construction contingencies, equipment acquisition, and operational improvements directly related to system performance. | G106: 40% match required | H106: 889000000 | I106: Large projects must request a minimum of $25 million. Small projects must request a minimum of $5 million. | J106: N/A | K106: N/A | L106: 2022-05-23 | M106: This program is intended to upgrade the nation's freight transportation infrastructure and include components that reduce emissions, promote energy efficiency, incorporate electrification or zero-emission vehicle infrastructure, increase resiliency, and recycle or redevelop existing infrastructure. Consider projects that electrify freight operations and transport or create/enhance charging networks for light- and heavy-duty trucks. | O106: USDOT has added two new evaluation criteria: 1) climate change and environmental justice and 2) racial equity and reducing barriers to opportunity. It will also consider whether the project is located in a federally designated community development zone, including qualified Opportunity Zones, Empowerment Zones, Promise Zones, or Choice Neighborhoods. In addition, at least 25% of the funds provided must be used for projects located in rural areas. | P106: New consideration has been given to project labor agreements and local hiring as important aspects of economic vitality and innovative project delivery. The innovation criterion has also been expanded to include technology such as vehicle-to-infrastructure communications and electrification. | Q106: The FY 2021 INFRA competition continues to focus on themes of supporting economic vitality, leveraging federal funding, innovation, and performance and accountability, in addition to the two new criteria. | R106: Transportation, Industry | S106: Public Transit, Smart Growth, Electric Vehicles/Charging Equipment, Clean Fuels | T106: Implementation/Construction | U106: Grant - Competitive/Discretionary | V106: State, Municipality, Public Agency/Local Authority, Tribal
A107: Existing - Constant | B107: Land and Water Conservation Fund (LWCF) | C107: To fund state and tribal governments for the acquisition and development of public parks and other outdoor recreation sites. | D107: Department of Interior (DOI) | E107: National Park Service (NPS) | F107: Funding is provided to state and tribal governments to administer localized matching grant programs. All projects must be aligned with the priorities listed in their respective state's recreation plan (sometimes called a SCORP), which address the demand for and supply of recreation resources (local, state, and federal) within a state and identify needs and new opportunities for recreation improvements. | G107: 50% required unless otherwise specified | H107: Varies by state | I107: Varies by state | J107: Varies by state | K107: N/A | L107: Varies by state | M107: This funding is particularly used to support parks, land conservation, open space, and recreation. When possible, these funds can be optimized if building new trail connections that serve as both recreational assets as well as connections to existing transportation networks. Consider whether such funding makes sense to increase access with multi-modal options, offer new last-mile connectivity options for public transit users, or support expansions to pedestrian and bicycle trail networks (or build new ones where none previously existed). Additional focus on enhancing urban and suburban tree canopies could help mitigate heat islands. Trees can be strategically deployed to help cool pavement and buildings alike, reducing energy needs in particularly hot areas. Another strategy to mitigate both heat islands could be to deploy solar canopies over large recreational areas to offer shade and generate clean electricity for communities. | O107: Multi-modal accessibility to other transit options is particularly critical to ensure last-mile connections exist especially for currently disconnected, marginalized, and/or underserved communities. Consider how this funding can enhance last-mile connectivity options for those relying on public transit to increase safety and accessibility of continued commutes via transit. | P107: Each state has its own priorities and selection criteria (tailored to its own particular needs and unique opportunities), and because individual States make the decisions, in effect, about which projects will receive LWCF grants, the first step for potential applicants is to contact the cooperating State office to find out about local application deadlines, state priorities, and selection criteria. | Q107: N/A | R107: Transportation | S107: Smart Growth, Nature-Based Solutions | T107: Planning, Implementation/Construction | U107: Grant - Competitive/Discretionary | V107: State, Municipality, Non-Profit, Public Agency/Local Authority, Tribal, Any or All
A108: Existing - Increase | B108: Land and Water Conservation Fund (LWCF) Outdoor Recreation Legacy Partnership Program | C108: To enable urban communities to create new outdoor recreation spaces, reinvigorate existing parks, and form connections between people and the outdoors in economically underserved communities. Projects should support locally led, voluntary conservation and restoration efforts that address the nature and climate crises, improve equitable access to the outdoors, and strengthen the economy. | D108: Department of Interior (DOI) | E108: National Park Service (NPS) | F108: The lead state agency may submit on behalf of themselves or another eligible sub-recipient. Eligible sub-recipients (i.e., project sponsors) include state agencies, local units of government (state political subdivisions such as cities, counties, and special-purpose districts such as park districts), and federally recognized Indian Tribes. For a project to be eligible the sub-recipient must: Represent a jurisdiction of at least 50,000 people, AND Be situated within or contiguous with the geographic boundary of one of the 497 Urbanized Areas (UA) delineated by the Census Bureau. | G108: 50% match required | H108: 192000000 | I108: 10000000 | J108: 30 | K108: =H108/J108 -> 6400000 | L108: May 31, 2023, but each state process/deadline will vary | M108: These projects must support the acquistion and/or development of outdoor recreational activities and faciliites. When possible, these funds can be optimized if building new trail connections that serve as both recreational assets as well as connections to existing transportation networks. Consider whether such funding makes sense to increase access with multi-modal options, offer new last-mile connectivity options for public transit users, or support expansions to pedestrian and bicycle trail networks (or build new ones where none previously existed). Additional focus on enhancing urban and suburban tree canopies could help mitigate heat islands. Trees can be strategically deployed to help cool pavement and buildings alike, reducing energy needs in particularly hot areas. Another strategy to mitigate both heat islands could be to deploy solar canopies over large recreational areas to offer shade and generate clean electricity for communities.also be public access, however, access may be controlled, but not prohibited. | O108: Projects must be directly located in communities that are low-income and lack adequate parks or other outdoor recreation spaces. Priority will be given to projects that engage members of the targeted economically disadvantaged community in all aspects of the development and implementation the project. | P108: Each state has its own priorities and selection criteria (tailored to its own particular needs and unique opportunities), and because individual States make the decisions, in effect, about which projects will receive these grants. The first step for potential applicants is to contact the cooperating State office to find out about local application deadlines, state priorities, and selection criteria. Ensuring your project aligns with State Comprehensive Outdoor Recreation Plan (SCORP) will be key to a competitive application at both the state and federal levels. | Q108: In 2021, the Department of Interior opened the ORLP grant program to more communities by removing the cap on the number of proposals states can submit on behalf of local jurisdictions and by increasing the maximum grant from $1 million to $5 million. | R108: Transportation | S108: Smart Growth, Nature-Based Solutions | T108: Planning, Implementation/Construction | U108: Grant - Competitive/Discretionary | V108: State, Municipality, State, Municipality, Public Agency/Local Authority, Tribal
A109: New | B109: Local Energy Action Program (Communities LEAP) Pilot Initiative | C109: To provide energy-burdened, low-income communities with (a) historic ties to the fossil fuel economy or (b) environmental justice concerns with technical assistance to identify clean energy pathways and advance existing clean energy plans. | D109: Department of Energy (DOE) | E109: N/A | F109: All applicants, including tribal nations and territories must have 30% of the community population classified as low-income and high or severe energy burden (median spending of household income on energy bills ≥6%). | G109: Not required | H109: N/A | I109: N/A | J109: 24-36 | K109: N/A | L109: December 15, 2021 (Registration period to apply closes); December 17, 2021 (Application deadline) | M109: LEAP participants will receive support jointly offered by five DOE offices to pursue local energy action plans that focus on one or more of the following opportunities: 1) creating pathways for large-scale clean energy project planning and infrastructure; 2) evaluating the ability to use microgrids to increase community resilience; 3) creating job opportunities in fossil fuel communities or those home to heavy industries; 4) planning for clean transportation investments; 5) improving building energy efficiency; and 6) enhancing investments in the nation’s clean energy supply chain and improving the energy performance and reducing the cost of industrial manufacturing. | O109: This opportunity is specifically open to low-income, energy-burdened communities that are also experiencing either direct environmental justice impacts, or direct economic impacts from a shift away from historical reliance on fossil fuels. | P109: Communities will apply for technical assistance under either the Launch Track or the Accelerate Track. The Launch Track is for communities that are confident of their desire to pursue a clean energy transition but are in need of assistance to identify the specific energy pathway or pathways that will lead to clear economic, environmental, and other community-wide benefits. Communities that have already developed an existing clean energy-related economic development Roadmap, strategic plan, or similar document that demonstrates a commitment to clean energy-related economic development should apply under the Accelerate Track. | Q109: Participating DOE offices include the Office of Energy Efficiency and Renewable Energy (EERE), Electricity (OE), Policy (OP), Indian Energy (IE), Fossil Energy and Carbon Management (FECM), and Economic Impact and Diversity (ED). To learn more about past awardees, see here: https://www.energy.gov/articles/doe-will-assist-24-communities-locally-tailored-pathways-clean-energy | R109: Any or All, Electricity, Transportation, Buildings, Industry, Resiliency & Recovery | S109: Any or All, Renewable Energy, Energy Storage, Building Weatherization, Building Efficiency Retrofits, Disaster Recovery, Community Resiliency, Electric Vehicles/Charging Equipment, Public Transit, Smart Growth, Workforce Development, Retaining & Building Capacity, Carbon Capture & Storage (CCS), Clean Manufacturing & Supply Chain, Building Electrification, Electric Grid Upgrades | T109: Planning, Design/Engineering | U109: Technical Assistance | V109: Municipality, Non-Profit, Public Agency/Local Authority, Tribal
A110: New | B110: Low GHG Vehicle Technologies Research, Development, Demonstration and Deployment (RDD&D) | C110: To develop and accelerate the charging infrastructure and drastically reduced GHG emissions in support of Administration goals. This FOA is interested in electric vehicle community partner demonstration projects and electric vehicle workplace charging projects. | D110: Department of Energy (DOE) | E110: Vehicle Technologies Office | F110: Project must include PEVs and charging infrastructure in underserved communities and multi-family housing and/or curbside charging providing PEV charging opportunities for residents without access to dedicated off-street parking | G110: 50% match required for community EV charging; 20% match required for EV workplace charging | H110: 24000000 | I110: 6666667 | J110: 3-6 | K110: 4000000 | L110: 2021-07-12 | M110: Consider mapping out current EV charging infrastructure to best understand where gaps exist, especially in consideration of lower-income census tracts. | O110: Consider partnering with frontline community-based organizations to understand the needs of the community and align on the best approach to community EV charging. | P110: A concept note was due by May 13th, 2021 in this application cycle. Check for future applications if a concept note is due as part of the process 2-3 months in advance of the official deadline. | Q110: N/A | R110: Transportation | S110: Electric Vehicles/Charging Equipment, Public Transit, Clean Fuels | T110: Planning, Design/Engineering, Implementation/Construction, Any or All | U110: Grant - Competitive/Discretionary | V110: State, Municipality, Non-Profit, Public Agency/Local Authority, Tribal
A111: Existing - Increase | B111: Low Income Home Energy Assistance Program (LIHEAP) (American Rescue Plan Act) | C111: To provide assistance to low-income households for home energy heating and cooling costs. Federal grants provided to states, territories, and tribal governments. These entities set program guidelines and work with local providers to implement services. These program guidelines include income limits and what services may qualify (e.g., direct bill assistance with heating and cooling, weatherization, furnace or AC replacement). | D111: Department of Health and Human Services (HHS) | E111: Office of Community Services | F111: Eligible projects include income limits that are set federally (must target households with incomes no greater than 150% of the federal poverty guidelines of 60% of the state median income), beyond this state grantees set program guidelines. These program guidelines include income limits and what services may qualify (e.g., direct bill assistance with heating and cooling, weatherization, furnace or AC replacement). There is also a carve-out for tribal communities. | G111: Not required | H111: 4500000000 | I111: N/A | J111: HHS allocates LIHEAP funding to states according to a formula. | K111: FY 2023 Third Release of LIHEAP Block Grant Funds to States and Territories under the Consolidated Appropriations Act, 2023 | L111: Expected in late summer for state, territory, and tribal government applications | M111: The primary purpose of LIHEAP is to assist to low-income households in covering home heating and cooling costs. LIHEAP programs are determined by the state, but generally cover direct bill assistance for home heating and cooling costs and certain low-cost energy efficiency measures. Within this program intent, decarbonization strategies may include measures that reduce household energy consumption, including additional energy efficiency improvements, water heater or furnace replacements, or educational materials that may be developed and distributed to LIHEAP recipients. | O111: According to federal LIHEAP guidelines, state grantees must target benefits to households with low incomes. They must cap LIHEAP income-eligibility at (1) no more than the greater of 150% of the Federal Poverty Guidelines (FPG) or 60 percent of the State Median Income; and (2) no less than 110 percent of FPG. They must also give higher benefits to households with the greatest home energy need in relation to household income and number of household members. Grantees also must target benefits to households with members who are elderly, disabled, and/or a young child. The target population of LIHEAP are households who struggle to cover home energy and cooling costs and those with large energy burdens. Beyond these guidelines, state grantees may choose to incorporate other equity metrics. Where appropriate, policymakers may consider the indoor and outdoor air quality improvements that may be associated with reduced energy usage, as well as historic levels of investment in different areas. These may be determined by fuel type, building age, renter/owner status that may contribute to the energy efficiency gap, and other factors. | P111: Funds expire in September 2022, so be sure to pursue these while funding lasts. | Q111: A 2020 HHS Report to Congress on LIHEAP may be viewed here: https://www.acf.hhs.gov/sites/default/files/documents/ocs/rpt_liheap_congressional_request_for_formula_analysis_fy2020_final.pdf A 2019 Congressional Research Service report on the LIHEAP formula may be viewed here: https://fas.org/sgp/crs/misc/RL33275.pdf | R111: Electricity, Buildings | S111: Building Weatherization, Building Efficiency Retrofits, Building Electrification | T111: Implementation/Construction | U111: Grant - Formula/Block | V111: State, Tribal
A112: Existing - IIJA Increase | B112: Low or No Emissions Vehicle Program (Low-No) | C112: To support the purchase or lease of zero-emission and low-emission transit buses, including acquisition, construction, and leasing of required supporting facilities such as recharging, refueling, and maintenance facilities. | D112: Department of Transportation (DOT) | E112: Federal Transit Administration (FTA) | F112: Eligible applicants include designated recipients of FTA grants under the Section 5307 Urbanized Area Formula program, States, local governmental authorities, and Indian Tribes. Proposals for funding projects in rural (non-urbanized) areas may be submitted as part of a consolidated State proposal. | G112: 10-20% match required | H112: 1221350117 | I112: N/A | J112: 110 | K112: =H112/J112 -> 11103182.88 | L112: 2023-04-13 | M112: Examples of zero-emission bus technologies include, but are not limited to, hydrogen fuel-cell buses and battery-electric buses.​ | O112: The Low-No Program will support workforce training to ensure that diesel mechanics and other transit workers are not left behind in the transition to new technology. FTA will give priority consideration to projects that support the Justice40 initiative. Applicants may use DOT’s Transportation Disadvantaged Census Tracts (arcgis.com) tool to identify whether the project impact area encompasses disadvantaged communities: https:// usdot.maps.arcgis.com/apps/ dashboards/ d6f90dfcc8b44525b04c7ce748a3674a. | P112: In 2022, DOT funded $1.6 billion across 150 awards. Selected projects can be found here: https://www.transit.dot.gov/1800buses | Q112: $5,624,550,890 in funding available until expended. | R112: Transportation | S112: Electric Vehicles/Charging Equipment, Public Transit, Clean Fuels | T112: Implementation/Construction | U112: Grant - Competitive/Discretionary | V112: State, Municipality, Public Agency/Local Authority, Tribal
A113: Existing - IIJA Increase | B113: Maintaining and Enhancing Hydroelectricity Incentives | C113: To incentivize owners and operators of hydroelectric facilities for capital improvements related to maintaining and enhancing hydroelectricity generation by improving grid resiliency, improving dam safety, and environmental improvements. | D113: Department of Energy (DOE) | E113: Office of Energy Efficiency & Renewable Energy (EERE) | F113: An eligible hydroelectric facility must be (1) a project licensed by the Federal Energy Regulatory Commission; or constructed, operated, or maintained pursuant to a permit or valid existing right-of-way granted prior to June 10, 1920, or a license granted pursuant to the Federal Power Act; (2) placed into service before enactment of [the IIJA]; and (3) compliant with all applicable Federal, Tribal, and State requirements (or will be compliant as a result of proposed capital improvements). | G113: 70% cost share required | H113: 553600000 | I113: 5000000 | J113: TBA | K113: TBA | L113: Expected Spring 2023 | M113: Hydroelectric power generation is ostensibly renewable and can, in certain areas, be a substitute for carbon-based electricity. Optimized generation facilities can generate more power with less waste. | O113: Hydroelectric facilities should be supported with regard to up- and downstream communities, as well as natural ecosystems and neighborhoods that might be (dis)affected by generation activities. Planning and engagement should be conducted to clearly communicate and/or mitigate potential negative impacts that would disproportionally affect underserved communities. | P113: If interested, check the draft application guidance here to prepare: https://www.energy.gov/sites/default/files/2023-02/Maintaining%20and%20Enhancing%20Hydroelectricity%20Incentives%20EPAct%20247%20Draft%20Guidance.pdf | Q113: $553,600,000 in funding available until expended. | R113: Electricity | S113: Renewable Energy | T113: Implementation/Construction | U113: Unknown/Other Incentive | V113: Any or All, State, Municipality, Non-Profit, Public Agency/Local Authority, Tribal
A114: New - IIJA | B114: Methane Reduction Infrastructure | C114: To fund programs to plug, remediate, and reclaim orphaned wells on Federal, State, and Tribal lands. | D114: Department of Energy (DOE) | E114: TBA | F114: In general, States and Tribal governments may use funds (i) to plug, remediate, or reclaim orphaned wells; (ii) remediate soil and restore native species habitat degraded by orphaned wells or well facilities/infrastructure; (iii) remediate land adjacent to orphaned wells and decommission or remove well facilities/infrastructure; (iv) provide an online public accounting of the cost of plugging, remediation, and reclamation; or (v) identify undocumented orphaned wells. States may use funds to (vi) track methane, other gas, and contaminated water associated with orphaned wells; and (vii) address disproportionate burdens on disadvantaged communities. | G114: TBA | H114: 4425000000 | I114: $25,000,000 per state | J114: TBA | K114: TBA | L114: TBA | M114: Methane is a significantly more potent greenhouse gas than CO2. Unplugged gas wells leak methane into the air until they are remediated. Addressing these orphan wells can reduce greenhouse gasses substantially. | O114: Many orphaned wells are in disadvantaged communities, exposing residents to pollution and other health hazards. Plugging wells would have disproportionate health benefits for these communities, which might also benefit economically if local residents are hired to do the work. This program specifically allows states to use funds to address the disproportionate health and environmental burdens on communities of color, low-income communities, and Tribal and indigenous communities. | P114: Various grant types exist within this program. Applicants are encouraged to study guidelines closely. | Q114: $4,425,000,000 in funding available until expended. | R114: Resiliency & Recovery, Industry | S114: Community Resiliency, Retaining & Building Capacity , Clean Manufacturing & Supply Chain | T114: Implementation/Construction | U114: Grant - Formula/Block, Grant - Competitive/Discretionary | V114: State, Tribal
A115: New - IIJA | B115: National Electric Vehicle Formula Program | C115: To deploy EV charging infrastructure and establish an interconnected network to facilitate data collection, access, and reliability. | D115: Department of Transportation (DOT), Department of Energy (DOE) | E115: Federal Highway Administration (FHA) | F115: Eligible projects include acquisition and installation of electric vehicle charging infrastructure; (2) proper operation and maintenance of electric vehicle charging infrastructure; and (3) data sharing about electric vehicle charging infrastructure. Projects may include electric vehicle charging infrastructure installed on any public road or in other publicly accessible locations. | G115: 20% match required | H115: 5000000000 | I115: Varies by state | J115: N/A | K115: N/A | L115: Funding will be immediately available for State DOTs to obligate for eligible expenses upon the approval of their Plans by FHWA each year. | M115: By expanding access to public EV charging infrastructure, these programs aim to promote EV purchases and ownership and reduce greenhouse gas emissions. | O115: For community grants, projects in rural areas and low- and moderate-income neighborhoods and communities will be prioritized. | P115: Plans will need to be updated on an annual basis to reflect the State DOT funding Plans for that fiscal year. During the planning process, local governments can be actively engaged with State DOTs to reflect their needs and share good practices with other stakeholders. | Q115: Check the 5-year NEVI funding by state here: https://www.fhwa.dot.gov/bipartisan-infrastructure-law/evs_5year_nevi_funding_by_state.cfm Check all state plans here: https://www.fhwa.dot.gov/environment/nevi/ev_deployment_plans/ | R115: Transportation | S115: Electric Vehicles/Charging Equipment | T115: Implementation/Construction | U115: Grant - Formula/Block, Technical Assistance | V115: State
A116: New - IIJA | B116: National Highway Performance Program (NHPP) | C116: To support the condition and performance of the National Highway System (NHS), construction of facilities on the NHS, and progress toward targets established in States' NHS asset management plans. Recent updates aim to increase NHS resilience to sea level rise, extreme weather events, flooding and other natural disasters. | D116: Department of Transportation (DOT) | E116: Federal Highway Administration (FHA) | F116: NHPP funds may be used for a project on an "eligible facility"; that is a project, part of a program of projects, or an eligible activity supporting progress toward national performance goals for improving infrastructure condition, safety, congestion reduction, system reliability, or freight movement on the NHS. Projects must be identified in the Statewide Transportation Improvement Program (STIP)/Transportation Improvement Program (TIP) and be consistent with the Long-Range Statewide Transportation Plan and the Metropolitan Transportation Plan(s). | G116: 20% match required; 10% match required for interstate projects | H116: 148000000000 | I116: Varies by state | J116: N/A | K116: N/A | L116: NHPP funds are available for obligation for a period of 3 years after the last day of the FY for which the funds are authorized | M116: NHPP projects can help traffic flow more efficiently and reduce vehicle congestion, thereby reducing emissions. Applicants should prioritize projects that will repair existing roads (promote a state of good repair), decrease the need for private vehicles on the road and increase transit ridership, promote carpooling and ridesharing, and coordinate with regional transit-oriented development planning. Highway expansions should be avoided - research has shown that expanding highways induces additional demand and does little to mitigate overall traffic. Funds can also be used for community resilience to climate disasters, including natural infrastructure to mitigate the risk of recurring damage or the cost of future repair from extreme weather events, flooding, or other natural disasters. | O116: In order to effectively and equitably improve road performance, understand which communities lack reasonable and convenient access to transit and multi-modal options. This could include additional collaboration with frontline communities and other stakeholders to address both procedural and distributional equity concerns. | P116: The IIJA recently amended NHPP to provide for (1) the undergrounding of public utility infrastructure carried out in conjunction with a project otherwise eligible under this section; (2) resiliency improvements on the National Highway System, including protective features described in subsection (k)(2); and (3) the implementation of activities to protect segments of the National Highway System from cybersecurity threats. Applicants are encouraged to speak to these new priorities. | Q116: From the State's NHPP apportionment, 2% is to be set aside for State Planning and Research (SPR). A new NHPP pilot program allows up to 10 states each year to determine the Federal share on a project, multiple-project, or program basis for eligible projects. | R116: Transportation | S116: Community Resiliency, Public Transit, Smart Growth | T116: Implementation/Construction | U116: Grant - Formula/Block | V116: State
A117: Existing - Decrease | B117: National Petroleum Reserve-Alaska (NPR-A) Impact Grant Program | C117: To help mitigate adverse impacts related to oil and gas development within the NPR-A. | D117: Denali Commission | E117: Alaska Division of Community and Regional Affairs | F117: Municipalities must be in Alaska, within the National Petroleum Reserve, and demonstrate present or foreseeable future impact from oil or gas exploration, production, or transportation activities in the NPR-A. | G117: Not announced | H117: 9100000 | I117: N/A | J117: 15 | K117: =H117/J117 -> 606666.6667 | L117: November 15, 2022 (recurring annually on this date) | M117: This is broad funding for a range of capital and operational needs. Past recipients have received funding for energy efficiency improvements, building upgrades and retrofits, fleet improvements, job training programs, and renovations of municipal and community facilities. For new construction or renovations, consider all-electric construction, high efficiency systems, and including on-site clean energy systems to support facility operations and reduce long-term fuel costs and resource consumption. | O117: As required by Alaska Statute, priority is given to those communities experiencing or will experience the most direct or severe impact from oil and gas development. | P117: Expected number of allocations based upon FY2021 projects recommended for funding. Prior years have funded between 3 and 30 projects. | Q117: For information on prior awardees, see here: https://www.commerce.alaska.gov/web/Portals/4/pub/NPR-A%20Grant/2021%20National%20Petroleum%20Reserve%20-%20Alaska%20(NPR-A)%20Report.pdf | R117: Any or All, Electricity, Transportation, Buildings, Industry, Resiliency & Recovery | S117: Renewable Energy, Energy Storage, Building Weatherization, Building Efficiency Retrofits, Community Resiliency, Electric Vehicles/Charging Equipment, Public Transit, Smart Growth, Workforce Development, Retaining & Building Capacity, Building Electrification | T117: Planning, Design/Engineering, Implementation/Construction, Any or All | U117: Grant - Competitive/Discretionary | V117: Municipality
A118: Existing - IIJA Increase | B118: Nationally Significant Federal Lands and Tribal Projects Program (NSFLTP) | C118: To provide funding for the construction, reconstruction, and rehabilitation of nationally-significant projects within, adjacent to, or accessing Federal and tribal lands. | D118: Department of Transportation (DOT) | E118: Federal Highway Administration (FHA) | F118: In general, 50% of funds shall be reserved for eligible Federal land and Federal land access transportation facilities. 50% shall be reserved for eligible projects on tribal transportation facilities (as defined in section 101(a) of title 23, United States Code). At least one eligible project shall be in a unit of the National Park System with not less than 3 million annual visitors. | G118: 10% match required | H118: 125215000 | I118: 62607500 | J118: 3 | K118: =H118/J118 -> 41738333.33 | L118: 2022-10-24 | M118: Funds can be used to promote public transit in, or in areas with access to, Federal and Tribal lands. To take full advantage of this opportunity, applicants should think expansively about how their community connects to nearby Federal and Tribal land(s) and whether their transportation facilities may thus be eligible for upgrades. | O118: Funds can be used to create transit connections for Tribal communities and support rural areas in or adjacent to Federal land. Funds can also be used to upgrade facilities in these underserved areas that might be in a state of disrepair. Additionally, the program is intended to support the creation of good-paying jobs with the free and fair choice to join a union and the incorporation of strong labor standards and workforce programs, in particular registered apprenticeships and labor management partnerships in project planning stages and program delivery. | P118: This funding is geared towards larger projects. The NSFLTP Program provides discretionary funding for projects that have an estimated construction cost of at least $12.5 million. Construction projects with an estimated cost equal to and exceeding $50 million receive priority consideration in the selection process. | Q118: FHWA last issued 2 awards totalling a combined $73M in 2020 which are available here: https://highways.dot.gov/federal-lands/programs/significant/fiscal-year-2020-awards | R118: Transportation | S118: Community Resiliency, Smart Growth, Public Transit | T118: Implementation/Construction | U118: Grant - Competitive/Discretionary | V118: State, Municipality, Public Agency/Local Authority, Tribal
A119: Existing - Decrease | B119: Partnerships for Opportunity and Workforce and Economic Revitalization (POWER) | C119: To support economic diversity, enhanced job training and re-employment opportunities, create jobs in existing or new industries, and attract new sources of investment in communities affected by job losses in coal mining, coal power plant operations, and coal-related supply chain industries. | D119: Appalachian Regional Commission (ARC) | E119: N/A | F119: Applicants must be in an eligible Appalachian county across the 13-state region: https://www.arc.gov/Appalachian-counties-served-by-arc/ | G119: Minimum 20% match required | H119: 65000000 | I119: $1,500,000; $2,500,000 for broadband projects; $50,000 for planning | J119: N/A | K119: N/A | L119: Letters of intent due March 8, 2023; Applications due April 19, 2023 | M119: POWER grants help communities develop new supply chains, clean energy manufacturing, and workforce training. Consider using planning funding to build partnerships to train contractors for deep efficiency and electrification retrofits for commercial and residential buildings. Recent awardees have included projects for sustainable jobs, solar energy training and deployment, bike trail networks, HVAC and electrical engineering skills training, and other energy, economic diversification, and workforce development-related initiatives. | O119: This program helps communities recover from declines in coal and manufacturing sectors and transition to new industries. The ARC may prioritize its funding and match rates based on levels of economic distress: https://www.arc.gov/match-requirements-for-arc-grants/ | P119: Partnerships that leverage existing educational programs or industry collaborations are heavily encouraged. Regional consortia and public-private partnerships are viewed particularly favorably and also highlight a range of strengths and non-federal leverage. Consider inviting ARC staff to participate in specific roundtables or community events with your regional team to get their input directly as you build momentum for funding support. | Q119: FY2022 awards can be found here highlighting a wide range of workforce, decarbonization, and resiliency goals: https://www.arc.gov/wp-content/uploads/2023/02/POWER-Award-Summaries-by-State-as-of-December-2022.pdf | R119: Industry, Resiliency & Recovery | S119: Workforce Development, Retaining & Building Capacity, Community Resiliency, Smart Growth | T119: Implementation/Construction, Planning | U119: Grant - Competitive/Discretionary | V119: State, Municipality, Non-Profit, Public Agency/Local Authority, Tribal, Any or All
A120: New | B120: Passenger Ferry Grant Program (PFGP) | C120: To support existing passenger ferry service, establish new ferry service, and to repair and modernize ferry boats, terminals, and related facilities and equipment. | D120: Department of Transportation (DOT) | E120: Federal Transit Administration (FTA) | F120: Applicants must be designated recipients or eligible direct recipients of Section 5307 funds. Eligible projects are capital projects for the purchase, construction, replacement, or rehabilitation of ferries, terminals, related infrastructure, and related equipment. Projects are required to support a passenger ferry service that serves an urbanized area and may include services that operate between an urbanized area and non-urbanized areas. | G120: Match required | H120: 36500000 | I120: N/A | J120: 30 | K120: =H120/J120 -> 1216666.667 | L120: 2022-09-06 | M120: This program explicitly intends to reduce emissions from ferries and ferry fleets. $4 million is available only for low or zero-emission ferries or ferries using electric battery or fuel cell components and the infrastructure to support such ferries. | O120: Ferries provide transportation options to people in communities separated by water, and to people without personal automobiles. Ferries can be an important element of equitable, multimodal transit systems. | P120: If an applicant does not currently have an active Urbanized Area Formula Program grant with FTA, the applicant is encouraged to contact the FTA Ferry Program manager for assistance with determining if it is eligible to receive funds under the Ferry Program. | Q120: N/A | R120: Transportation | S120: Public Transit, Electric Vehicles/Charging Equipment, Smart Growth, Clean Fuels | T120: Implementation/Construction | U120: Grant - Competitive/Discretionary | V120: State, Tribal
A121: Existing - Constant | B121: Pilot Program for Transit Oriented Development (TOD) Planning | C121: To conduct comprehensive planning that supports economic development and ridership, fosters multimodal connectivity and accessibility, improves transit access for pedestrian and bicycle traffic, engages the private sector, identifies infrastructure needs, enables mixed-use development near transit stations, and addresses climate change, challenges facing environmental justice populations, and racial equity and barriers to opportunity. | D121: Department of Transportation (DOT) | E121: Federal Transit Administration (FTA) | F121: An applicant must be the project sponsor of an eligible transit capital project or be the land use planning authority in the project corridor of an eligible transit capital project. Evidence of a partnership between these two types of entities will be required unless the applicant has both responsibilities. | G121: 20% cost share required | H121: 13160021 | I121: N/A | J121: 22 | K121: =H121/J121 -> 598182.7727 | L121: 2022-07-25 | M121: Consider projects that reimagine holistic transportation strategies that emphasize walking, cycling, and public transit connectivity alongside electric vehicle (EV) infrastructure build-out for ride-sharing and vehicle sharing programs. Plan new TOD projects to integrate with existing regional transit and trail systems for better connectivity between nearby neighborhoods and transit hubs. | O121: This is an opportunity address both procedural equity in the planning process as well as distributional equity in terms of access to transportation networks. These planning grants can help accelerate efforts to support areas of persistent poverty and increase connectivity for historically marginalized communities. | P121: Competitive projects should be transformative in nature and cover an entire transit capital project corridor, rather than involve planning for individual station areas or only a small section of the corridor. | Q121: N/A | R121: Transportation | S121: Public Transit, Smart Growth, Electric Vehicles/Charging Equipment | T121: Planning | U121: Grant, Grant - Competitive/Discretionary | V121: State, Municipality, Non-Profit, Public Agency/Local Authority, Tribal, Any or All
A122: Existing - Constant | B122: Planning and Local Technical Assistance Program (LTA) | C122: To support economic development, foster job creation, and attract private investment in economically distressed areas by creating and implementing regional economic development plans to build capacity and guide prosperity and resilience. | D122: Department of Commerce | E122: Economic Development Administration (EDA) | F122: Requirements vary by the two programs in this opportunity: the planning program and the local assistance program. Note that eligible applicants for Partnership Planning awards are limited to EDA-designated District Organizations and Indian Tribes; other entities are not eligible for Partnership Planning awards. | G122: 50% required with exceptions for regions of economic distress | H122: $33,000,000 for planning grants; $10,000,000 for local technical assistance program | I122: 300000 | J122: 320-450 planning grants; 30-50 local assistance grants | K122: $70,000 for planning grants; $100,000 for local assistance grants | L122: Rolling | M122: This assistance can help communities create tangible strategies to prepare for new supply chains, clean energy manufacturing, and workforce training. Consider using planning funding to build partnerships that can accelerate the development of trained contractors for deep efficiency and electrification retrofits for commercial and residential buildings. | O122: This is an opportunity to enhance supply chains, attract new energy and transportation sectors, and provide job training for out of work energy and industry professionals and/or those looking to transition to clean energy and EV supply chain related industries. EDA also makes Short-Term and State Planning awards for economic development planning activities that guide the eventual creation and retention of high-quality jobs, particularly for the unemployed and underemployed in the Nation’s most economically distressed regions. | P122: Under the Planning program, EDA makes Partnership Planning, Short-Term Planning, and State Planning awards to eligible recipients to create and implement regional economic development plans designed to build capacity and guide the economic prosperity and resiliency of an area or region. More specifically, EDA makes Partnership Planning investments to designated planning organizations (i.e., District Organizations) serving EDA-designated Economic Development Districts and to Indian Tribes to facilitate the development, implementation, revision, or replacement of Comprehensive Economic Development Strategies (CEDS), which articulate and prioritize the strategic economic goals of recipients’ respective regions. Under the Local Technical Assistance program, EDA makes awards to strengthen the capacity of local or State organizations, institutions of higher education, and other eligible entities to undertake and promote effective economic development programs through projects such as feasibility studies, impact analyses, disaster resiliency plans, and project planning. | Q122: N/A | R122: Electricity, Industry, Transportation, Buildings, Resiliency & Recovery, Any or All | S122: Workforce Development, Retaining & Building Capacity, Renewable Energy, Energy Storage, Building Efficiency Retrofits, Electric Vehicles/Charging Equipment, Building Electrification | T122: Planning | U122: Grant - Competitive/Discretionary | V122: State, Municipality, Non-Profit, Public Agency/Local Authority, Tribal, Any or All
A123: Existing - IIJA Increase | B123: Port Infrastructure Development Program (PIDP) | C123: To improve facilities within, or outside of and directly related to operations of or an intermodal connection to, coastal seaports, inland river ports, and Great Lakes ports. | D123: Department of Transportation (DOT) | E123: Maritime Administration | F123: Eligible applicants include a port authority, a commission or its subdivision or agent under existing authority, a State or political subdivision of a State or local government, a Tribal government, a public agency or publicly-chartered authority established by one or more States, a special purpose district with a transportation function, a multistate or multijurisdictional group of entities, or a lead entity described above jointly with a private entity or group of private entities. | G123: 20% cost share required | H123: 662203512 | I123: Up to $11.25 million for any small project at a small port; no maximum award size for others | J123: N/A | K123: N/A | L123: 2023-04-28 | M123: PIDP grants can improve port infrastructure, including intermodal connections, or reduce or eliminate pollutants and greenhouse gas emission. This program focuses on infrastructure enhancements that directly impact port operations. Consider projects that support freight and port vehicle fleet electrification, port resiliency with battery storage, and major efficiency retrofits to reduce the energy intensity of port operations. According to the 2023 NOFO, DOT seeks to fund projects that reduce emissions in the transportation sector, enable the deployment of clean energy including offshore wind, incorporate evidence-based climate resilience measures and features, reduce the lifecycle greenhouse gas emissions from the project materials, and avoid adverse environmental impacts, to air or water quality, wetlands, and endangered species, and address the disproportionate negative environmental impacts of transportation on disadvantaged communities. | O123: PIDP program priorities have been updated to include a focus on improving racial equity and access to opportunity, mitigating or reducing the effects of climate change in addition to the goals of improving the safety, efficiency and reliability of the movement of goods. Consider clean energy and transportation upgrades that would reduce localized emissions and impact to neighboring communities. | P123: THE FY 2023 NOFO includes updated selection considerations pertaining to: Climate Change and Sustainability; Equity and Justice40; and Workforce Development, Job Quality, and Wealth Creation. Applicants who are planning to re-apply using materials prepared for prior competitions should ensure that their FY 2023 PIDP application fully addresses the statutory merit criteria and selection considerations in the FY 2023 NOFO and that all relevant information is up to date. For funding awarded under the BIL, there is no minimum award size. For all projects funded under the FY 2023 Appropriations Act, the minimum PIDP award size is $1 million. Therefore, to compete for the full amount of funding available, funding requests should be at least $1 million. No more than 25% of the available funds can be awarded for projects in any one State. At least $187,203,512 is reserved for grants to coastal seaports or Great Lakes ports. 25% of the available funds is reserved for small projects at small ports. | Q123: In FY2023, the Bipartisan Infrastructure Law (BIL) appropriated $450 million to the PIDP. An additional $212,203,512 was made available to the program under the FY2023 Consolidated Appropriations Act, resulting in a total of $662,203,512 in FY 2023 PIDP grant funding. Check the list of previous grant awardees here: https://maritime.dot.gov/PIDPgrants | R123: Transportation, Industry | S123: Electric Vehicles/Charging Equipment, Community Resiliency, Building Efficiency Retrofits, Building Weatherization, Energy Storage, Renewable Energy, Clean Fuels | T123: Implementation/Construction | U123: Grant - Competitive/Discretionary | V123: State, Municipality, Public Agency/Local Authority
A124: New - IIJA | B124: Preventing Outages and Enhancing the Resilience of the Electric Grid (Competitive) | C124: To support activities, technologies, equipment, and measures meant to reduce the likelihood and consequences of electric grid damage in the face of extreme weather events. | D124: Department of Energy (DOE) | E124: Grid Deployment Office (GDO) & Office of Clean Energy Demonstrations (OCED) | F124: Eligible recipients for the competitive program include: electric grid operators, electricity storage operators, electricity generators, transmission owners or operators, distribution providers, and fuel suppliers. | G124: 50% match required in general, 1/3 match required for small utilities | H124: $918,000,000 in total; 30% of the total funding will be set aside for small utilities. | I124: Either the total of the applicant's last three years of resilience investments or $100 million, whichever is lower | J124: 10 in total; Approximately 3 awards will made to small utilities | K124: 91800000 | L124: Second round of funding expected in Q1 of FY24 | M124: Consider activities that are supplemental to existing grid resilience efforts, reduce the risk of power lines causing a wildfire, or reduce the likelihood and consequences of disruptive events. Eligible uses include, but are not limited to, weatherization technologies and equipment, undergrounding of electrical equipment, relocation of power lines, and use or construction of distributed energy resources like microgrids and battery storage. | O124: Historically marginalized communities are often more vulnerable to grid outages. Consider building microgrids, new distribution lines, and/or upgrading existing transmission infrastructure to minimize the disruptions in these communities. | P124: This Program falls under a broader DOE Initiative "Building a Better Grid (which includes multiple federal funding streams). For more information, see: https://www.energy.gov/oe/articles/building-better-grid-initiative | Q124: Small utilities are defined as entities that sell no more than 4,000,000 MWh of electricity per year. | R124: Resiliency & Recovery | S124: Community Resiliency, Energy Storage, Electric Grid Upgrades | T124: Planning, Design/Engineering, Implementation/Construction, Any or All | U124: Grant - Competitive/Discretionary | V124: Municipality, Non-Profit, Public Agency/Local Authority, Tribal
A125: New - IIJA | B125: Preventing Outages and Enhancing the Resilience of the Electric Grid (Formula) | C125: To support activities, technologies, equipment, and measures meant to reduce the likelihood and consequences of electric grid damage in the face of extreme weather events. | D125: Department of Energy (DOE) | E125: Grid Deployment Office (GDO) | F125: States and tribal nations are eligible for the formula grant program. Eligible entities for the subgrants include electric grid operators, electricity storage operators, electricity generators, transmission owners or operators, distribution providers, fuel suppliers, and any other relevant entities as determined by the Secretary of Energy. | G125: 15% match required for states and tribal nations; additional match requirements apply to sub-awardees | H125: 459000000 | I125: N/A | J125: N/A | K125: N/A | L125: Application due May 31, 2023 | M125: Consider activities that are supplemental to existing grid resilience efforts, reduce the risk of power lines causing a wildfire, or reduce the likelihood and consequences of disruptive events. Eligible uses include, but are not limited to, weatherization technologies and equipment, undergrounding of electrical equipment, relocation of power lines, and use or construction of distributed energy resources like microgrids and battery storage. | O125: Historically marginalized communities are often more vulnerable to grid outages. Consider building microgrids, new distribution lines, and/or upgrading existing transmission infrastructure to minimize the disruptions in these communities. | P125: N/A | Q125: N/A | R125: Resiliency & Recovery | S125: Community Resiliency, Energy Storage | T125: Planning, Design/Engineering, Implementation/Construction, Any or All | U125: Grant - Formula/Block | V125: State, Tribal
A126: Existing - Increase | B126: Private Activity Bonds (PABs) | C126: To provide private developers and operators with access to tax-exempt interest rates, thereby lowering the cost of capital and enhancing the investment prospects for transportation infrastructure. | D126: Department of Transportation (DOT) | E126: Build America Bureau | F126: Projects must concern qualified Highway or Surface Freight Transfer Facilities. These generally include surface transportation projects, international bridge/tunnel projects, and rail-to-truck/truck-to-rail freight transfer facilities governed by Title 23, U.S. Code. | G126: Not required | H126: $30 billion in exempt facility bonds | I126: N/A | J126: N/A | K126: N/A | L126: Rolling | M126: Any surface transportation project which receives Title 23 assistance is qualified to benefit from private activity bonds. Because projects that receive TIFIA credit assistance are Title 23 projects, this means that TIFIA projects are also eligible to receive this tax-exempt bonding authority. This provision therefore extends eligibility to TIFIA-assisted public transportation, intercity bus or rail facilities and vehicles, including vehicles and facilities owned by Amtrak, public freight rail facilities or private facilities providing public benefit for highway users, and intermodal freight transfer facilities. Together TIFIA and private activity bonds should provide substantial incentives for private equity investment in highway and freight projects. | O126: See the "Equity Design Considerations for Federal Funding" for general considerations and additional sector-based resources: https://cityrenewables.org/resources/equity-design-considerations-for-federal-funding/ | P126: In making application to the Department, applicants should note that there are no specific standards, beyond those set forth in applicable laws or regulation, that apply to the consideration of the applications. The intent is to provide maximum flexibility in the Secretary's award of the $15 billion bonding authority. The Department is particularly concerned that once it makes an allocation, tax-exempt facility bonds are issued in timely fashion. Hence, if the schedules agreed upon in the final allocation action are not met, the allocation may be withdrawn. | Q126: The program is designed to spur private investment. Applicants must pass private activity bond legislation supporting the Government's desire for increased private investment in U.S. transportation infrastructure. A copy of the passed resolution is required with the application, though it may be contingent on receipt of DOT funds. | R126: Transportation | S126: Public Transit | T126: Planning, Design/Engineering, Implementation/Construction, Any or All | U126: Loan | V126: State, Municipality, Public Agency/Local Authority
A127: New - IIJA | B127: Program Upgrading Our Electric Grid and Ensuring Reliability and Resiliency | C127: To coordinate and collaborate with electric sector owners and operators to demonstrate innovative approaches to transmission, storage, and distribution infrastructure to harden and enhance resilience and reliability and demonstrate new approaches to enhance regional grid resilience. | D127: Department of Energy (DOE) | E127: Grid Deployment Office (GDO) & Office of Clean Energy Demonstrations (OCED) | F127: Eligible entities include states, combinations of states, Indian Tribes, unites of local government, and public utility commissions. | G127: 50% cost share required | H127: 1820000000 | I127: $250 million in general, $1 billion for interregional transmission projects only | J127: 4-40 | K127: 80000000 | L127: Concept Paper due January 13, 2023 Application due May 19, 2023 | M127: The shift from fossil fuels to electricity hinges on a reliable electric grid, making grids resilient to disaster, and upgrading grids with modern technology to help improve service reliability, reduce costs, and encourage electrification. | O127: Historically marginalized communities are more vulnerable to grid outages. Consider demonstration projects that showcase adaptive microgrids, or reliable and resilient system operations utilizing high levels of distributed renewable generation and energy storage in these communities to minimize disruptions. | P127: N/A | Q127: N/A | R127: Electricity, Resiliency & Recovery | S127: Community Resiliency, Energy Storage, Electric Grid Upgrades | T127: Planning, Design/Engineering, Implementation/Construction, Any or All | U127: Grant - Competitive/Discretionary | V127: State, Municipality, Public Agency/Local Authority, Tribal
A128: New - IIJA | B128: Promoting Resilient Operations for Transformative, Efficient, and Cost-Saving Transportation (PROTECT) Formula Program | C128: To improve the resiliency of transportation infrastructure, including community resilience and evacuation route grants, and at-risk coastal infrastructure grants. | D128: Department of Transportation (DOT) | E128: Federal Highway Administration (FHA) | F128: States are designated recipients for formula allocations of the PROTECT program | G128: 20% match generally required | H128: 1403000000 | I128: Varies by state | J128: N/A | K128: N/A | L128: N/A | M128: The PROTECT Formula Program will support planning, resilience improvements, community resilience and evacuation routes, and at-risk coastal infrastructure. The extent to which eligible use of funds include projects like the utilization of renewable energy, energy storage, and microgrids for resilience ends is still "to be determined" at this time. Consider opportunities to enhance resiliency of multi-modal transit and rail. | O128: This is an opportunity to integrate how states and local public agencies conduct comprehensive planning and make investments for decarbonization, resilience, and energy justice and equity objectives. | P128: Consider using DOT's new mapping tool "Identifying Transportation Disadvantaged Census Tracts" https://usdot.maps.arcgis.com/apps/dashboards/d6f90dfcc8b44525b04c7ce748a3674a | Q128: N/A | R128: Transportation, Resiliency & Recovery | S128: Energy Storage, Community Resiliency, Electric Vehicles/Charging Equipment, Smart Growth, Public Transit | T128: Planning, Design/Engineering, Implementation/Construction, Any or All | U128: Grant - Formula/Block | V128: State
A129: New - IIJA | B129: Promoting Resilient Operations for Transformative, Efficient, and Cost-Saving Transportation (PROTECT) Discretionary Program | C129: To improve the resiliency of transportation infrastructure, including community resilience and evacuation route grants, and at-risk coastal infrastructure grants. | D129: Department of Transportation (DOT) | E129: Federal Highway Administration (FHA) | F129: Eligible applicants for the competitive portion of the PROTECT program include: state (or political subdivision of a State), MPO, local government, special purpose district or public authority with a transportation function, Tribe, Federal land management agency (applying jointly with State(s)); Different eligibilities apply for at-risk coastal infrastructure grants. | G129: 20% match generally required | H129: 1400000000 | I129: TBA | J129: TBA | K129: TBA | L129: Expected April 2023 | M129: The PROTECT Formula Program will support planning, resilience improvements, community resilience and evacuation routes, and at-risk coastal infrastructure. The extent to which eligible use of funds include projects like the utilization of renewable energy, energy storage, and microgrids for resilience ends is still "to be determined" at this time. Consider opportunities to enhance resiliency of multi-modal transit and rail. | O129: This is an opportunity to integrate how states and local public agencies conduct comprehensive planning and make investments for decarbonization, resilience, and energy justice and equity objectives. | P129: Consider using DOT's new mapping tool "Identifying Transportation Disadvantaged Census Tracts" https://usdot.maps.arcgis.com/apps/dashboards/d6f90dfcc8b44525b04c7ce748a3674a | Q129: N/A | R129: Transportation, Resiliency & Recovery | S129: Energy Storage, Community Resiliency, Electric Vehicles/Charging Equipment, Smart Growth, Public Transit | T129: Planning, Design/Engineering, Implementation/Construction, Any or All | U129: Grant - Competitive/Discretionary | V129: State, Municipality, Public Agency/Local Authority, Tribal
A130: Existing - Increase | B130: Public Works Program (PWP) | C130: To leverage existing regional assets and support the implementation of economic development strategies that advance new ideas and creative approaches to advance economic prosperity in distressed communities, including those negatively impacted by changes to the coal economy and nuclear power plant closures. | D130: Department of Commerce | E130: Economic Development Administration (EDA) | F130: Projects must be consistent with the region’s current Comprehensive Economic Development Strategy (CEDS) or equivalent EDA-accepted regional economic development strategy that meets EDA’s CEDS or strategy requirements. | G130: Minimum match of 20%, varying based on level of economic distress | H130: 121500000 | I130: 3000000 | J130: 80-150 | K130: $1,400,000 (ranging from $600,000 to $5 million) | L130: Rolling | M130: This funding can support the public infrastructure needed to create new or enhance existing programs for clean energy or EV supply chain opportunities. Explore integrating new clean energy and EV supply chain manufacturing hubs/business parks into regional economic development plans. Where possible, consider whether partnerships with universities or community colleges could be leveraged to launch an economic diversification and workforce development strategy to promote and enhance the growth of emerging clean energy industries and retain local talent. | O130: This is an opportunity to enhance supply chains, attract new energy and transportation sectors, and provide job training for out of work energy and industry professionals or those looking to transition to clean energy and EV supply chain related industries. | P130: Applicants are strongly encouraged to contact the EDA representative listed for their applicable State in Section G of this NOFO before submitting an application to EDA to clarify technical matters involving their project, its alignment with EDA’s mission and Investment Priorities, and all other relevant publicly available information relating to general technical matters. | Q130: Due to the extraordinary level of interest in EDA’s CARES Act Recovery Assistance there has been an unusually high volume of applications received. Prospective applicants are strongly encouraged to contact their applicable EDA Regional Office representatives to discuss their needs and availability of funds. Prospective applicants can find current contact information for EDA Regional Office staff at https://www.eda.gov/contact/. | R130: Any or All, Electricity, Transportation, Buildings, Industry, Resiliency & Recovery | S130: Workforce Development, Retaining & Building Capacity, Community Resiliency | T130: Planning, Design/Engineering, Implementation/Construction, Any or All | U130: Grant - Competitive/Discretionary | V130: Municipality, Non-Profit, Public Agency/Local Authority, Tribal, Any or All, State
A131: New - IIJA | B131: Pumped Storage Hydropower (PSH) Wind and Solar Integration and System Reliability Initiative | C131: To provide financial assistance to eligible entities to carry out project design, transmission studies, power market assessments, and permitting for a pumped storage hydropower project to facilitate the long-duration storage of intermittent renewable electricity. | D131: Department of Energy (DOE) | E131: Office of Energy Efficiency & Renewable Energy (EERE) | F131: Eligible entities include electric utilities (investor-owned, municipally-owned, and cooperatives), State Energy Offices, Tribes, institutes of higher education, or consortium thereof. | G131: 50% match required | H131: 10000000 | I131: 10000000 | J131: 1 | K131: 6000000 | L131: Letter of Intent due November 17, 2022 Application due December 15, 2022 | M131: Pumped-storage hydropower (PSH) is a long-duration storage option that can help integrate intermittent renewable energy sources and currently accounts for 95% of utility-scale storage in the United States. This demonstration project focuses on wind and solar integration. Projects which can be scaled to other wind and solar projects or demonstrate lower energy consumption and reduce environmental impacts may improve decarbonization outcomes. | O131: One project eligibility criteria is that the project must be able to store electricity generated by renewable electricity projects on Tribal land. Applicants who are not Tribal entities should closely coordinate with Tribal partners and ensure Tribal voices are included throughout the project design process. | P131: N/A | Q131: To be eligible for financial assistance, a project shall—(i) be designed to provide not less than 1,000 megawatts of storage capacity;(ii) be able to provide energy and capacity for use in more than 1 organized electricity market;(iii) be able to store electricity generated by intermittent renewable electricity projects located on Tribal land; and (iv) have received a preliminary permit from the Federal Energy Regulatory Commission. | R131: Electricity | S131: Energy Storage, Community Resiliency | T131: Planning, Design/Engineering | U131: Grant - Competitive/Discretionary | V131: State, Public Agency/Local Authority, Tribal, Non-Profit
A132: Existing - Constant | B132: Railroad Rehabilitation & Improvement Financing (RRIF) | C132: To provide direct loans and loan guarantees to finance development of railroad infrastructure. Funding may help to acquire, improve, or rehabilitate intermodal or rail equipment or facilities; develop or establish new intermodal or railroad facilities; or reimburse planning and design expenses related to the activities above. | D132: Department of Transportation (DOT) | E132: Build America Bureau | F132: Eligible borrowers include railroads, state and local governments, government-sponsored authorities and corporations, limited option freight shippers that intend to construct a new rail connection, and joint ventures that include at least one of the preceding. | G132: Not required | H132: $35 billion in loans and loan guarantees | I132: N/A | J132: N/A | K132: N/A | L132: Rolling | M132: Eligible activities include a variety of rail transportation infrastructure improvements. Eligible activities have historically included Transit Oriented Development (until September 30, 2021). | O132: See the "Equity Design Considerations for Federal Funding" for general considerations and additional sector-based resources: https://cityrenewables.org/resources/equity-design-considerations-for-federal-funding/ | P132: States may use PROTECT Formula Program funds to conduct resilience planning, strengthen and protect evacuation routes, and increase the resilience of surface transportation infrastructure from the impacts of sea level rise, flooding, wildfires, extreme weather events, and other natural disasters. Highway, transit, and certain port projects are eligible. | Q132: Expedited, low-cost loans are available for short-line and regional railroads. Eligible borrowers include Class II & III Railroads, Commuter Railroads, and Joint Ventures. | R132: Transportation | S132: Public Transit | T132: Planning, Planning, Design/Engineering, Implementation/Construction, Any or All | U132: Loan | V132: State, Municipality, Public Agency/Local Authority
